Transaction Date,Local Authority Department,Beneficiary,Purpose of Expenditure,Amount (excluding VAT),Non Recoverable VAT,Merchant Category
 06-03-2023,Adults,Home Support Services (Havering & Essex) Ltd,Home Care - Private Contractors Payment,501.84,0.00,COMMERCIAL SUPPLIER 
 06-03-2023,Adults,Home Support Services (Havering & Essex) Ltd,Home Care - Private Contractors Payment,501.84,0.00,COMMERCIAL SUPPLIER 
 01-03-2023,Adults,Hospiva Care & Associates Agency Ltd_a,Home Care - Private Contractors Payment,502.17,0.00,COMMERCIAL SUPPLIER 
 20-03-2023,Adults,Funky Willows Ltd,Daycare - Private Contractors Payment,504.00,0.00,COMMERCIAL SUPPLIER 
 06-03-2023,Adults,Home Support Services (Havering & Essex) Ltd,Home Care - Private Contractors Payment,504.14,0.00,COMMERCIAL SUPPLIER 
 01-03-2023,Adults,Matrix SCM Ltd,Agency Staff,506.70,0.00,COMMERCIAL SUPPLIER 
 08-03-2023,Adults,Matrix SCM Ltd,Agency Staff,506.70,0.00,COMMERCIAL SUPPLIER 
 10-03-2023,Adults,Alexander Court Care Centre - Bondcare,Nursing Homes - Private Contractors Payment,509.09,0.00,COMMERCIAL SUPPLIER 
 17-03-2023,Adults,Delight Supported Living Ltd,Home Care - Private Contractors Payment,509.52,0.00,COMMERCIAL SUPPLIER 
 17-03-2023,Adults,Delight Supported Living Ltd,Home Care - Private Contractors Payment,509.52,0.00,COMMERCIAL SUPPLIER 
 01-03-2023,Adults,Matrix SCM Ltd,Agency Staff,510.99,0.00,COMMERCIAL SUPPLIER 
 22-03-2023,Adults,Matrix SCM Ltd,Agency Staff,510.99,0.00,COMMERCIAL SUPPLIER 
 29-03-2023,Adults,Matrix SCM Ltd,Agency Staff,510.99,0.00,COMMERCIAL SUPPLIER 
 03-03-2023,Adults,Anytime Care 2020_a,Home Care - Private Contractors Payment,511.35,0.00,COMMERCIAL SUPPLIER 
 09-03-2023,Adults,Prior Care Ltd_a,Home Care - Private Contractors Payment,511.68,0.00,COMMERCIAL SUPPLIER 
 14-03-2023,Adults,Home Sweet Home Care Ltd,Home Care - Private Contractors Payment,511.68,0.00,COMMERCIAL SUPPLIER 
 14-03-2023,Adults,Home Sweet Home Care Ltd,Home Care - Private Contractors Payment,511.68,0.00,COMMERCIAL SUPPLIER 
 14-03-2023,Adults,Home Sweet Home Care Ltd,Home Care - Private Contractors Payment,511.68,0.00,COMMERCIAL SUPPLIER 
 26-03-2023,Adults,Personal Information � Redacted,Home Care - Private Contractors Payment,511.68,0.00,INDIVIDUALS 
 08-03-2023,Adults,Lodge Group Care UK Ltd,Home Care - Private Contractors Payment,512.01,0.00,COMMERCIAL SUPPLIER 
 02-03-2023,Adults,Gims Care Solution Ltd_a,Home Care - Private Contractors Payment,513.73,0.00,NON COMMERCIAL SUPPLIER 
 10-03-2023,Adults,HC-One Oval Ltd - The Hornchurch Nursing Centre,Nursing Care Income,515.70,0.00,COMMERCIAL SUPPLIER 
 01-03-2023,Adults,Matrix SCM Ltd,Agency Staff,517.20,0.00,COMMERCIAL SUPPLIER 
 08-03-2023,Adults,Matrix SCM Ltd,Agency Staff,517.20,0.00,COMMERCIAL SUPPLIER 
 15-03-2023,Adults,Matrix SCM Ltd,Agency Staff,517.20,0.00,COMMERCIAL SUPPLIER 
 22-03-2023,Adults,Matrix SCM Ltd,Agency Staff,517.20,0.00,COMMERCIAL SUPPLIER 
 29-03-2023,Adults,Matrix SCM Ltd,Agency Staff,517.20,0.00,COMMERCIAL SUPPLIER 
 14-03-2023,Adults,Home Sweet Home Care Ltd,Home Care - Private Contractors Payment,518.24,0.00,COMMERCIAL SUPPLIER 
 28-03-2023,Adults,The Camden Society,Daycare - Private Contractors Payment,520.00,0.00,NON COMMERCIAL SUPPLIER 
 06-03-2023,Adults,Home Support Services (Havering & Essex) Ltd,Home Care - Private Contractors Payment,524.14,0.00,COMMERCIAL SUPPLIER 
 01-03-2023,Adults,Hospiva Care & Associates Agency Ltd_a,Home Care - Private Contractors Payment,527.42,0.00,COMMERCIAL SUPPLIER 
 08-03-2023,Adults,Cera Care Operations Ltd,Home Care - Private Contractors Payment,529.39,0.00,COMMERCIAL SUPPLIER 
 08-03-2023,Adults,Lodge Group Care UK Ltd,Home Care - Private Contractors Payment,530.38,0.00,COMMERCIAL SUPPLIER 
 09-03-2023,Adults,Prior Care Ltd_a,Home Care - Private Contractors Payment,531.36,0.00,COMMERCIAL SUPPLIER 
 13-03-2023,Adults,John Stanleys Care Agency Ltd,Home Care - Private Contractors Payment,531.40,0.00,COMMERCIAL SUPPLIER 
 06-03-2023,Adults,Home Support Services (Havering & Essex) Ltd,Home Care - Private Contractors Payment,531.69,0.00,COMMERCIAL SUPPLIER 
 10-03-2023,Adults,Topaz Care and Support Co Ltd,Supported Other Accommodation - Private Contractors Payment,532.44,0.00,COMMERCIAL SUPPLIER 
 16-03-2023,Adults,Care-Away Ltd T/A Care Support,Home Care - Private Contractors Payment,532.48,0.00,COMMERCIAL SUPPLIER 
 03-03-2023,Adults,Anytime Care 2020_a,Home Care - Private Contractors Payment,533.98,0.00,COMMERCIAL SUPPLIER 
 03-03-2023,Adults,Voiceability,Private Contractors Payment - Other,535.50,0.00,COMMERCIAL SUPPLIER 
 08-03-2023,Adults,Lodge Group Care UK Ltd,Home Care - Private Contractors Payment,541.20,0.00,COMMERCIAL SUPPLIER 
 28-03-2023,Adults,Prestige Care & Support Ltd,Home Care - Private Contractors Payment,541.20,0.00,COMMERCIAL SUPPLIER 
 29-03-2023,Adults,Cera Care Operations Ltd,Home Care - Private Contractors Payment,541.20,0.00,COMMERCIAL SUPPLIER 
 29-03-2023,Adults,Inna Care Ltd,Home Care - Private Contractors Payment,541.20,0.00,COMMERCIAL SUPPLIER 
 09-03-2023,Adults,Prior Care Ltd_a,Home Care - Private Contractors Payment,541.53,0.00,COMMERCIAL SUPPLIER 
 13-03-2023,Adults,Quality Healthcare Solutions Ltd t/a Kare Plus Romford,Home Care - Private Contractors Payment,541.53,0.00,COMMERCIAL SUPPLIER 
 13-03-2023,Adults,Quality Healthcare Solutions Ltd t/a Kare Plus Romford,Home Care - Private Contractors Payment,541.53,0.00,COMMERCIAL SUPPLIER 
 14-03-2023,Adults,Home Sweet Home Care Ltd,Home Care - Private Contractors Payment,542.84,0.00,COMMERCIAL SUPPLIER 
 08-03-2023,Adults,Lodge Group Care UK Ltd,Home Care - Private Contractors Payment,543.17,0.00,COMMERCIAL SUPPLIER 
 03-03-2023,Adults,Anytime Care 2020_a,Home Care - Private Contractors Payment,543.50,0.00,COMMERCIAL SUPPLIER 
 06-03-2023,Adults,Home Support Services (Havering & Essex) Ltd,Home Care - Private Contractors Payment,543.50,0.00,COMMERCIAL SUPPLIER 
 08-03-2023,Adults,Lodge Group Care UK Ltd,Home Care - Private Contractors Payment,543.50,0.00,COMMERCIAL SUPPLIER 
 06-03-2023,Adults,Home Support Services (Havering & Essex) Ltd,Home Care - Private Contractors Payment,544.15,0.00,COMMERCIAL SUPPLIER 
 14-03-2023,Adults,Home Sweet Home Care Ltd,Home Care - Private Contractors Payment,544.15,0.00,COMMERCIAL SUPPLIER 
 14-03-2023,Adults,Home Sweet Home Care Ltd,Home Care - Private Contractors Payment,546.12,0.00,COMMERCIAL SUPPLIER 
 01-03-2023,Adults,Hospiva Care & Associates Agency Ltd_a,Home Care - Private Contractors Payment,546.45,0.00,COMMERCIAL SUPPLIER 
 08-03-2023,Adults,Cera Care Operations Ltd,Home Care - Private Contractors Payment,546.45,0.00,COMMERCIAL SUPPLIER 
 06-03-2023,Adults,Morepower Ltd t/a Aqs Homecare,Home Care - Private Contractors Payment,547.10,0.00,COMMERCIAL SUPPLIER 
 06-03-2023,Adults,Home Support Services (Havering & Essex) Ltd,Home Care - Private Contractors Payment,547.10,0.00,COMMERCIAL SUPPLIER 
 06-03-2023,Adults,Home Support Services (Havering & Essex) Ltd,Home Care - Private Contractors Payment,547.43,0.00,COMMERCIAL SUPPLIER 
 08-03-2023,Adults,Cera Care Operations Ltd,Home Care - Private Contractors Payment,548.09,0.00,COMMERCIAL SUPPLIER 
 10-03-2023,Adults,Leonard Cheshire Disability_a.,Residential Placements - Private Contractors Payment,548.16,0.00,COMMERCIAL SUPPLIER 
 10-03-2023,Adults,Leonard Cheshire Disability_a.,Residential Placements - Private Contractors Payment,548.16,0.00,COMMERCIAL SUPPLIER 
 10-03-2023,Adults,Leonard Cheshire Disability_a.,Residential Placements - Private Contractors Payment,548.16,0.00,COMMERCIAL SUPPLIER 
 10-03-2023,Adults,Leonard Cheshire Disability_a.,Residential Placements - Private Contractors Payment,548.16,0.00,COMMERCIAL SUPPLIER 
 10-03-2023,Adults,Leonard Cheshire Disability_a.,Residential Placements - Private Contractors Payment,548.16,0.00,COMMERCIAL SUPPLIER 
 14-03-2023,Adults,Home Sweet Home Care Ltd,Home Care - Private Contractors Payment,548.42,0.00,COMMERCIAL SUPPLIER 
 09-03-2023,Adults,Prior Care Ltd_a,Home Care - Private Contractors Payment,549.40,0.00,COMMERCIAL SUPPLIER 
 10-03-2023,Adults,The Avenues Trust Support Services Glebe House,Respite Care - Private Contractors Payment,550.43,0.00,COMMERCIAL SUPPLIER 
 06-03-2023,Adults,Home Support Services (Havering & Essex) Ltd,Home Care - Private Contractors Payment,550.71,0.00,COMMERCIAL SUPPLIER 
 06-03-2023,Adults,Home Support Services (Havering & Essex) Ltd,Home Care - Private Contractors Payment,550.71,0.00,COMMERCIAL SUPPLIER 
 01-03-2023,Adults,Hospiva Care & Associates Agency Ltd_a,Home Care - Private Contractors Payment,551.04,0.00,COMMERCIAL SUPPLIER 
 03-03-2023,Adults,Passion Tree Care Services Ltd,Home Care - Private Contractors Payment,551.04,0.00,COMMERCIAL SUPPLIER 
 03-03-2023,Adults,Passion Tree Care Services Ltd,Home Care - Private Contractors Payment,551.04,0.00,COMMERCIAL SUPPLIER 
 03-03-2023,Adults,Passion Tree Care Services Ltd,Home Care - Private Contractors Payment,551.04,0.00,COMMERCIAL SUPPLIER 
 03-03-2023,Adults,Passion Tree Care Services Ltd,Home Care - Private Contractors Payment,551.04,0.00,COMMERCIAL SUPPLIER 
 03-03-2023,Adults,Passion Tree Care Services Ltd,Home Care - Private Contractors Payment,551.04,0.00,COMMERCIAL SUPPLIER 
 06-03-2023,Adults,Morepower Ltd t/a Aqs Homecare,Home Care - Private Contractors Payment,551.04,0.00,COMMERCIAL SUPPLIER 
 06-03-2023,Adults,Morepower Ltd t/a Aqs Homecare,Home Care - Private Contractors Payment,551.04,0.00,COMMERCIAL SUPPLIER 
 06-03-2023,Adults,Morepower Ltd t/a Aqs Homecare,Home Care - Private Contractors Payment,551.04,0.00,COMMERCIAL SUPPLIER 
 06-03-2023,Adults,Home Support Services (Havering & Essex) Ltd,Home Care - Private Contractors Payment,551.04,0.00,COMMERCIAL SUPPLIER 
 06-03-2023,Adults,Home Support Services (Havering & Essex) Ltd,Home Care - Private Contractors Payment,551.04,0.00,COMMERCIAL SUPPLIER 
 06-03-2023,Adults,Home Support Services (Havering & Essex) Ltd,Home Care - Private Contractors Payment,551.04,0.00,COMMERCIAL SUPPLIER 
 06-03-2023,Adults,Home Support Services (Havering & Essex) Ltd,Home Care - Private Contractors Payment,551.04,0.00,COMMERCIAL SUPPLIER 
 06-03-2023,Adults,Home Support Services (Havering & Essex) Ltd,Home Care - Private Contractors Payment,551.04,0.00,COMMERCIAL SUPPLIER 
 06-03-2023,Adults,Home Support Services (Havering & Essex) Ltd,Home Care - Private Contractors Payment,551.04,0.00,COMMERCIAL SUPPLIER 
 06-03-2023,Adults,Home Support Services (Havering & Essex) Ltd,Home Care - Private Contractors Payment,551.04,0.00,COMMERCIAL SUPPLIER 
 07-03-2023,Adults,Crystalize Care Services Ltd,Home Care - Private Contractors Payment,551.04,0.00,COMMERCIAL SUPPLIER 
 08-03-2023,Adults,Lodge Group Care UK Ltd,Home Care - Private Contractors Payment,551.04,0.00,COMMERCIAL SUPPLIER 
 08-03-2023,Adults,Lodge Group Care UK Ltd,Home Care - Private Contractors Payment,551.04,0.00,COMMERCIAL SUPPLIER 
 08-03-2023,Adults,Lodge Group Care UK Ltd,Home Care - Private Contractors Payment,551.04,0.00,COMMERCIAL SUPPLIER 
 08-03-2023,Adults,Lodge Group Care UK Ltd,Home Care - Private Contractors Payment,551.04,0.00,COMMERCIAL SUPPLIER 
 08-03-2023,Adults,Lodge Group Care UK Ltd,Home Care - Private Contractors Payment,551.04,0.00,COMMERCIAL SUPPLIER 
 08-03-2023,Adults,Lodge Group Care UK Ltd,Home Care - Private Contractors Payment,551.04,0.00,COMMERCIAL SUPPLIER 
 09-03-2023,Adults,Prior Care Ltd_a,Home Care - Private Contractors Payment,551.04,0.00,COMMERCIAL SUPPLIER 
 09-03-2023,Adults,Prior Care Ltd_a,Home Care - Private Contractors Payment,551.04,0.00,COMMERCIAL SUPPLIER 
 14-03-2023,Adults,Home Sweet Home Care Ltd,Home Care - Private Contractors Payment,551.04,0.00,COMMERCIAL SUPPLIER 
 14-03-2023,Adults,Home Sweet Home Care Ltd,Home Care - Private Contractors Payment,551.04,0.00,COMMERCIAL SUPPLIER 
 14-03-2023,Adults,Home Sweet Home Care Ltd,Home Care - Private Contractors Payment,551.04,0.00,COMMERCIAL SUPPLIER 
 14-03-2023,Adults,Home Sweet Home Care Ltd,Home Care - Private Contractors Payment,551.04,0.00,COMMERCIAL SUPPLIER 
 14-03-2023,Adults,Home Sweet Home Care Ltd,Home Care - Private Contractors Payment,551.04,0.00,COMMERCIAL SUPPLIER 
 14-03-2023,Adults,Home Sweet Home Care Ltd,Home Care - Private Contractors Payment,551.04,0.00,COMMERCIAL SUPPLIER 
 14-03-2023,Adults,Home Sweet Home Care Ltd,Home Care - Private Contractors Payment,551.04,0.00,COMMERCIAL SUPPLIER 
 26-03-2023,Adults,Personal Information � Redacted,Home Care - Private Contractors Payment,551.04,0.00,INDIVIDUALS 
 26-03-2023,Adults,Personal Information � Redacted,Home Care - Private Contractors Payment,551.04,0.00,INDIVIDUALS 
 27-03-2023,Adults,Outreach Support Services Ltd,Home Care - Private Contractors Payment,551.04,0.00,COMMERCIAL SUPPLIER 
 27-03-2023,Adults,Outreach Support Services Ltd,Home Care - Private Contractors Payment,551.04,0.00,COMMERCIAL SUPPLIER 
 27-03-2023,Adults,Outreach Support Services Ltd,Home Care - Private Contractors Payment,551.04,0.00,COMMERCIAL SUPPLIER 
 27-03-2023,Adults,Outreach Support Services Ltd,Home Care - Private Contractors Payment,551.04,0.00,COMMERCIAL SUPPLIER 
 27-03-2023,Adults,London Homecare Ltd,Home Care - Private Contractors Payment,551.04,0.00,COMMERCIAL SUPPLIER 
 28-03-2023,Adults,Prestige Care & Support Ltd,Home Care - Private Contractors Payment,551.04,0.00,COMMERCIAL SUPPLIER 
 28-03-2023,Adults,Prestige Care & Support Ltd,Home Care - Private Contractors Payment,551.04,0.00,COMMERCIAL SUPPLIER 
 29-03-2023,Adults,Prior Care Ltd_a,Home Care - Private Contractors Payment,551.04,0.00,COMMERCIAL SUPPLIER 
 29-03-2023,Adults,Cera Care Operations Ltd,Home Care - Private Contractors Payment,551.04,0.00,COMMERCIAL SUPPLIER 
 29-03-2023,Adults,Inna Care Ltd,Home Care - Private Contractors Payment,551.04,0.00,COMMERCIAL SUPPLIER 
 29-03-2023,Adults,Inna Care Ltd,Home Care - Private Contractors Payment,551.04,0.00,COMMERCIAL SUPPLIER 
 29-03-2023,Adults,Inna Care Ltd,Home Care - Private Contractors Payment,551.04,0.00,COMMERCIAL SUPPLIER 
 29-03-2023,Adults,Inna Care Ltd,Home Care - Private Contractors Payment,551.04,0.00,COMMERCIAL SUPPLIER 
 29-03-2023,Adults,Inna Care Ltd,Home Care - Private Contractors Payment,551.04,0.00,COMMERCIAL SUPPLIER 
 29-03-2023,Adults,Inna Care Ltd,Home Care - Private Contractors Payment,551.04,0.00,COMMERCIAL SUPPLIER 
 29-03-2023,Adults,Inna Care Ltd,Home Care - Private Contractors Payment,551.04,0.00,COMMERCIAL SUPPLIER 
 31-03-2023,Adults,Crystalize Care Services Ltd,Home Care - Private Contractors Payment,551.04,0.00,COMMERCIAL SUPPLIER 
 28-03-2023,Adults,Prestige Care & Support Ltd,Home Care - Private Contractors Payment,551.37,0.00,COMMERCIAL SUPPLIER 
 01-03-2023,Adults,Hospiva Care & Associates Agency Ltd_a,Home Care - Private Contractors Payment,551.70,0.00,COMMERCIAL SUPPLIER 
 06-03-2023,Adults,Morepower Ltd t/a Aqs Homecare,Home Care - Private Contractors Payment,551.70,0.00,COMMERCIAL SUPPLIER 
 06-03-2023,Adults,Home Support Services (Havering & Essex) Ltd,Home Care - Private Contractors Payment,551.70,0.00,COMMERCIAL SUPPLIER 
 08-03-2023,Adults,Lodge Group Care UK Ltd,Home Care - Private Contractors Payment,551.70,0.00,COMMERCIAL SUPPLIER 
 28-03-2023,Adults,Prestige Care & Support Ltd,Home Care - Private Contractors Payment,551.70,0.00,COMMERCIAL SUPPLIER 
 10-03-2023,Adults,One Tree Estates Ltd t/a Ashbrook Nursing Home,Respite Care - Private Contractors Payment,552.00,0.00,COMMERCIAL SUPPLIER 
 14-03-2023,Adults,Home Sweet Home Care Ltd,Home Care - Private Contractors Payment,552.35,0.00,COMMERCIAL SUPPLIER 
 08-03-2023,Adults,Lodge Group Care UK Ltd,Home Care - Private Contractors Payment,552.68,0.00,COMMERCIAL SUPPLIER 
 08-03-2023,Adults,Lodge Group Care UK Ltd,Home Care - Private Contractors Payment,552.68,0.00,COMMERCIAL SUPPLIER 
 08-03-2023,Adults,Cera Care Operations Ltd,Home Care - Private Contractors Payment,553.01,0.00,COMMERCIAL SUPPLIER 
 28-03-2023,Adults,Prestige Care & Support Ltd,Home Care - Private Contractors Payment,553.01,0.00,COMMERCIAL SUPPLIER 
 06-03-2023,Adults,Morepower Ltd t/a Aqs Homecare,Home Care - Private Contractors Payment,553.66,0.00,COMMERCIAL SUPPLIER 
 03-03-2023,Adults,Anytime Care 2020_a,Home Care - Private Contractors Payment,553.99,0.00,COMMERCIAL SUPPLIER 
 08-03-2023,Adults,Cera Care Operations Ltd,Home Care - Private Contractors Payment,553.99,0.00,COMMERCIAL SUPPLIER 
 06-03-2023,Adults,Morepower Ltd t/a Aqs Homecare,Home Care - Private Contractors Payment,554.32,0.00,COMMERCIAL SUPPLIER 
 08-03-2023,Adults,Lodge Group Care UK Ltd,Home Care - Private Contractors Payment,554.32,0.00,COMMERCIAL SUPPLIER 
 13-03-2023,Adults,Quality Healthcare Solutions Ltd t/a Kare Plus Romford,Home Care - Private Contractors Payment,554.32,0.00,COMMERCIAL SUPPLIER 
 28-03-2023,Adults,Prestige Care & Support Ltd,Home Care - Private Contractors Payment,554.65,0.00,COMMERCIAL SUPPLIER 
 06-03-2023,Adults,Home Support Services (Havering & Essex) Ltd,Home Care - Private Contractors Payment,554.98,0.00,COMMERCIAL SUPPLIER 
 29-03-2023,Adults,Prior Care Ltd_a,Home Care - Private Contractors Payment,555.30,0.00,COMMERCIAL SUPPLIER 
 08-03-2023,Adults,Lodge Group Care UK Ltd,Home Care - Private Contractors Payment,555.96,0.00,COMMERCIAL SUPPLIER 
 06-03-2023,Adults,Home Support Services (Havering & Essex) Ltd,Home Care - Private Contractors Payment,556.29,0.00,COMMERCIAL SUPPLIER 
 10-03-2023,Adults,Alpine Resources UK Ltd,Supported Other Accommodation - Private Contractors Payment,556.29,0.00,COMMERCIAL SUPPLIER 
 08-03-2023,Adults,Cera Care Operations Ltd,Home Care - Private Contractors Payment,557.60,0.00,COMMERCIAL SUPPLIER 
 14-03-2023,Adults,Home Sweet Home Care Ltd,Home Care - Private Contractors Payment,558.58,0.00,COMMERCIAL SUPPLIER 
 06-03-2023,Adults,Morepower Ltd t/a Aqs Homecare,Home Care - Private Contractors Payment,558.91,0.00,COMMERCIAL SUPPLIER 
 29-03-2023,Adults,Cera Care Operations Ltd,Home Care - Private Contractors Payment,558.91,0.00,COMMERCIAL SUPPLIER 
 06-03-2023,Adults,Morepower Ltd t/a Aqs Homecare,Home Care - Private Contractors Payment,559.24,0.00,COMMERCIAL SUPPLIER 
 06-03-2023,Adults,Morepower Ltd t/a Aqs Homecare,Home Care - Private Contractors Payment,559.90,0.00,COMMERCIAL SUPPLIER 
 08-03-2023,Adults,Lodge Group Care UK Ltd,Home Care - Private Contractors Payment,559.90,0.00,COMMERCIAL SUPPLIER 
 29-03-2023,Adults,Cera Care Operations Ltd,Home Care - Private Contractors Payment,559.90,0.00,COMMERCIAL SUPPLIER 
 06-03-2023,Adults,Ranger Home Care Ltd,Home Care - Private Contractors Payment,560.00,0.00,COMMERCIAL SUPPLIER 
 06-03-2023,Adults,Ranger Home Care Ltd,Home Care - Private Contractors Payment,560.00,0.00,COMMERCIAL SUPPLIER 
 06-03-2023,Adults,Ranger Home Care Ltd,Home Care - Private Contractors Payment,560.00,0.00,COMMERCIAL SUPPLIER 
 06-03-2023,Adults,Morepower Ltd t/a Aqs Homecare,Home Care - Private Contractors Payment,560.88,0.00,COMMERCIAL SUPPLIER 
 06-03-2023,Adults,Home Support Services (Havering & Essex) Ltd,Home Care - Private Contractors Payment,560.88,0.00,COMMERCIAL SUPPLIER 
 01-03-2023,Adults,Matrix SCM Ltd,Agency Staff,561.16,0.00,COMMERCIAL SUPPLIER 
 08-03-2023,Adults,Matrix SCM Ltd,Agency Staff,561.16,0.00,COMMERCIAL SUPPLIER 
 15-03-2023,Adults,Matrix SCM Ltd,Agency Staff,561.16,0.00,COMMERCIAL SUPPLIER 
 22-03-2023,Adults,Matrix SCM Ltd,Agency Staff,561.16,0.00,COMMERCIAL SUPPLIER 
 29-03-2023,Adults,Matrix SCM Ltd,Agency Staff,561.16,0.00,COMMERCIAL SUPPLIER 
 06-03-2023,Adults,Home Support Services (Havering & Essex) Ltd,Home Care - Private Contractors Payment,561.21,0.00,COMMERCIAL SUPPLIER 
 06-03-2023,Adults,Home Support Services (Havering & Essex) Ltd,Home Care - Private Contractors Payment,561.54,0.00,COMMERCIAL SUPPLIER 
 10-03-2023,Adults,Affinia Healthcare Ltd_a,Supported Other Accommodation - Private Contractors Payment,562.60,0.00,COMMERCIAL SUPPLIER 
 10-03-2023,Adults,Outlook Care - 76 Neave Crescent,Supported Other Accommodation - Private Contractors Payment,562.72,0.00,COMMERCIAL SUPPLIER 
 06-03-2023,Adults,Home Support Services (Havering & Essex) Ltd,Home Care - Private Contractors Payment,564.49,0.00,COMMERCIAL SUPPLIER 
 09-03-2023,Adults,Prior Care Ltd_a,Home Care - Private Contractors Payment,565.14,0.00,COMMERCIAL SUPPLIER 
 15-03-2023,Adults,Matrix SCM Ltd,Agency Staff,565.73,0.00,COMMERCIAL SUPPLIER 
 10-03-2023,Adults,Paradise Independent Living,Supported Other Accommodation - Private Contractors Payment,565.75,0.00,NON COMMERCIAL SUPPLIER 
 29-03-2023,Adults,Prior Care Ltd_a,Home Care - Private Contractors Payment,565.80,0.00,COMMERCIAL SUPPLIER 
 13-03-2023,Adults,Quality Healthcare Solutions Ltd t/a Kare Plus Romford,Home Care - Private Contractors Payment,566.13,0.00,COMMERCIAL SUPPLIER 
 14-03-2023,Adults,Home Sweet Home Care Ltd,Home Care - Private Contractors Payment,566.46,0.00,COMMERCIAL SUPPLIER 
 08-03-2023,Adults,Cera Care Operations Ltd,Home Care - Private Contractors Payment,566.78,0.00,COMMERCIAL SUPPLIER 
 14-03-2023,Adults,Home Sweet Home Care Ltd,Home Care - Private Contractors Payment,567.44,0.00,COMMERCIAL SUPPLIER 
 29-03-2023,Adults,Cera Care Operations Ltd,Home Care - Private Contractors Payment,567.44,0.00,COMMERCIAL SUPPLIER 
 10-03-2023,Adults,Leonard Cheshire Disability_a.,Residential Placements - Private Contractors Payment,567.74,0.00,COMMERCIAL SUPPLIER 
 08-03-2023,Adults,Cera Care Operations Ltd,Home Care - Private Contractors Payment,567.77,0.00,COMMERCIAL SUPPLIER 
 06-03-2023,Adults,Home Support Services (Havering & Essex) Ltd,Home Care - Private Contractors Payment,568.75,0.00,COMMERCIAL SUPPLIER 
 27-03-2023,Adults,Tapestry_a.,Daycare - Private Contractors Payment,570.00,0.00,COMMERCIAL SUPPLIER 
 27-03-2023,Adults,Tapestry_a.,Daycare - Private Contractors Payment,570.00,0.00,COMMERCIAL SUPPLIER 
 06-03-2023,Adults,Home Support Services (Havering & Essex) Ltd,Home Care - Private Contractors Payment,570.39,0.00,COMMERCIAL SUPPLIER 
 13-03-2023,Adults,Quality Healthcare Solutions Ltd t/a Kare Plus Romford,Home Care - Private Contractors Payment,570.39,0.00,COMMERCIAL SUPPLIER 
 14-03-2023,Adults,Home Sweet Home Care Ltd,Home Care - Private Contractors Payment,570.72,0.00,COMMERCIAL SUPPLIER 
 26-03-2023,Adults,Personal Information � Redacted,Home Care - Private Contractors Payment,570.72,0.00,INDIVIDUALS 
 06-03-2023,Adults,Home Support Services (Havering & Essex) Ltd,Home Care - Private Contractors Payment,572.69,0.00,COMMERCIAL SUPPLIER 
 06-03-2023,Adults,Home Support Services (Havering & Essex) Ltd,Home Care - Private Contractors Payment,573.02,0.00,COMMERCIAL SUPPLIER 
 08-03-2023,Adults,Matrix SCM Ltd,Agency Staff,575.40,0.00,COMMERCIAL SUPPLIER 
 29-03-2023,Adults,Matrix SCM Ltd,Agency Staff,575.40,0.00,COMMERCIAL SUPPLIER 
 08-03-2023,Adults,Lodge Group Care UK Ltd,Home Care - Private Contractors Payment,575.64,0.00,COMMERCIAL SUPPLIER 
 20-03-2023,Adults,Funky Willows Ltd,Daycare - Private Contractors Payment,576.00,0.00,COMMERCIAL SUPPLIER 
 29-03-2023,Adults,Cera Care Operations Ltd,Home Care - Private Contractors Payment,576.62,0.00,COMMERCIAL SUPPLIER 
 10-03-2023,Adults,Efficiency - For Care,Supported Other Accommodation - Private Contractors Payment,580.00,0.00,COMMERCIAL SUPPLIER 
 08-03-2023,Adults,Lodge Group Care UK Ltd,Home Care - Private Contractors Payment,581.54,0.00,COMMERCIAL SUPPLIER 
 16-03-2023,Adults,Care-Away Ltd T/A Care Support,Home Care - Private Contractors Payment,582.40,0.00,COMMERCIAL SUPPLIER 
 16-03-2023,Adults,Care-Away Ltd T/A Care Support,Home Care - Private Contractors Payment,582.40,0.00,COMMERCIAL SUPPLIER 
 03-03-2023,Adults,Anytime Care 2020_a,Home Care - Private Contractors Payment,582.86,0.00,COMMERCIAL SUPPLIER 
 08-03-2023,Adults,Cera Care Operations Ltd,Home Care - Private Contractors Payment,582.86,0.00,COMMERCIAL SUPPLIER 
 14-03-2023,Adults,Home Sweet Home Care Ltd,Home Care - Private Contractors Payment,584.82,0.00,COMMERCIAL SUPPLIER 
 29-03-2023,Adults,Cera Care Operations Ltd,Home Care - Private Contractors Payment,587.12,0.00,COMMERCIAL SUPPLIER 
 06-03-2023,Adults,Home Support Services (Havering & Essex) Ltd,Home Care - Private Contractors Payment,588.10,0.00,COMMERCIAL SUPPLIER 
 08-03-2023,Adults,Lodge Group Care UK Ltd,Home Care - Private Contractors Payment,588.10,0.00,COMMERCIAL SUPPLIER 
 10-03-2023,Adults,Raynet Recruitment Agency Ltd,Supported Other Accommodation - Private Contractors Payment,588.87,0.00,COMMERCIAL SUPPLIER 
 15-03-2023,Adults,Matrix SCM Ltd,Agency Staff,589.68,0.00,COMMERCIAL SUPPLIER 
 01-03-2023,Adults,Matrix SCM Ltd,Agency Staff,589.70,0.00,COMMERCIAL SUPPLIER 
 01-03-2023,Adults,Matrix SCM Ltd,Agency Staff,589.70,0.00,COMMERCIAL SUPPLIER 
 08-03-2023,Adults,Matrix SCM Ltd,Agency Staff,589.70,0.00,COMMERCIAL SUPPLIER 
 15-03-2023,Adults,Matrix SCM Ltd,Agency Staff,589.70,0.00,COMMERCIAL SUPPLIER 
 22-03-2023,Adults,Matrix SCM Ltd,Agency Staff,589.70,0.00,COMMERCIAL SUPPLIER 
 22-03-2023,Adults,Matrix SCM Ltd,Agency Staff,589.70,0.00,COMMERCIAL SUPPLIER 
 29-03-2023,Adults,Matrix SCM Ltd,Agency Staff,589.70,0.00,COMMERCIAL SUPPLIER 
 29-03-2023,Adults,Matrix SCM Ltd,Agency Staff,589.70,0.00,COMMERCIAL SUPPLIER 
 01-03-2023,Adults,Matrix SCM Ltd,Agency Staff,589.88,0.00,COMMERCIAL SUPPLIER 
 06-03-2023,Adults,Home Support Services (Havering & Essex) Ltd,Home Care - Private Contractors Payment,590.07,0.00,COMMERCIAL SUPPLIER 
 09-03-2023,Adults,Prior Care Ltd_a,Home Care - Private Contractors Payment,590.07,0.00,COMMERCIAL SUPPLIER 
 09-03-2023,Adults,Prior Care Ltd_a,Home Care - Private Contractors Payment,590.40,0.00,COMMERCIAL SUPPLIER 
 14-03-2023,Adults,Home Sweet Home Care Ltd,Home Care - Private Contractors Payment,590.40,0.00,COMMERCIAL SUPPLIER 
 27-03-2023,Adults,London Homecare Ltd,Home Care - Private Contractors Payment,590.40,0.00,COMMERCIAL SUPPLIER 
 29-03-2023,Adults,Prior Care Ltd_a,Home Care - Private Contractors Payment,590.40,0.00,COMMERCIAL SUPPLIER 
 09-03-2023,Adults,Prior Care Ltd_a,Home Care - Private Contractors Payment,590.73,0.00,COMMERCIAL SUPPLIER 
 13-03-2023,Adults,Quality Healthcare Solutions Ltd t/a Kare Plus Romford,Home Care - Private Contractors Payment,591.06,0.00,COMMERCIAL SUPPLIER 
 10-03-2023,Adults,Sahara Care Ltd,Residential Placements - Private Contractors Payment,592.00,0.00,COMMERCIAL SUPPLIER 
 08-03-2023,Adults,Lodge Group Care UK Ltd,Home Care - Private Contractors Payment,593.68,0.00,COMMERCIAL SUPPLIER 
 07-03-2023,Adults,Ace Outreach Ltd,Home Care - Private Contractors Payment,594.00,0.00,COMMERCIAL SUPPLIER 
 08-03-2023,Adults,Lodge Group Care UK Ltd,Home Care - Private Contractors Payment,594.34,0.00,COMMERCIAL SUPPLIER 
 08-03-2023,Adults,Lodge Group Care UK Ltd,Home Care - Private Contractors Payment,594.34,0.00,COMMERCIAL SUPPLIER 
 08-03-2023,Adults,Lodge Group Care UK Ltd,Home Care - Private Contractors Payment,594.99,0.00,COMMERCIAL SUPPLIER 
 28-03-2023,Adults,Prestige Care & Support Ltd,Home Care - Private Contractors Payment,595.98,0.00,COMMERCIAL SUPPLIER 
 06-03-2023,Adults,Morepower Ltd t/a Aqs Homecare,Home Care - Private Contractors Payment,597.62,0.00,COMMERCIAL SUPPLIER 
 28-03-2023,Adults,Prestige Care & Support Ltd,Home Care - Private Contractors Payment,597.62,0.00,COMMERCIAL SUPPLIER 
 03-03-2023,Adults,Anytime Care 2020_a,Home Care - Private Contractors Payment,598.27,0.00,COMMERCIAL SUPPLIER 
 16-03-2023,Adults,Care-Away Ltd T/A Care Support,Home Care - Private Contractors Payment,599.04,0.00,COMMERCIAL SUPPLIER 
 08-03-2023,Adults,Lodge Group Care UK Ltd,Home Care - Private Contractors Payment,600.90,0.00,COMMERCIAL SUPPLIER 
 03-03-2023,Adults,Anytime Care 2020_a,Home Care - Private Contractors Payment,601.22,0.00,COMMERCIAL SUPPLIER 
 06-03-2023,Adults,Home Support Services (Havering & Essex) Ltd,Home Care - Private Contractors Payment,602.86,0.00,COMMERCIAL SUPPLIER 
 06-03-2023,Adults,Home Support Services (Havering & Essex) Ltd,Home Care - Private Contractors Payment,603.52,0.00,COMMERCIAL SUPPLIER 
 28-03-2023,Adults,Prestige Care & Support Ltd,Home Care - Private Contractors Payment,603.52,0.00,COMMERCIAL SUPPLIER 
 01-03-2023,Adults,Hospiva Care & Associates Agency Ltd_a,Home Care - Private Contractors Payment,604.50,0.00,COMMERCIAL SUPPLIER 
 06-03-2023,Adults,Home Support Services (Havering & Essex) Ltd,Home Care - Private Contractors Payment,604.50,0.00,COMMERCIAL SUPPLIER 
 27-03-2023,Adults,Radfield Home Care Havering & Brentwood,Home Care - Private Contractors Payment,604.80,0.00,COMMERCIAL SUPPLIER 
 01-03-2023,Adults,Matrix SCM Ltd,Agency Staff,608.42,0.00,COMMERCIAL SUPPLIER 
 08-03-2023,Adults,Matrix SCM Ltd,Agency Staff,608.42,0.00,COMMERCIAL SUPPLIER 
 15-03-2023,Adults,Matrix SCM Ltd,Agency Staff,608.42,0.00,COMMERCIAL SUPPLIER 
 22-03-2023,Adults,Matrix SCM Ltd,Agency Staff,608.42,0.00,COMMERCIAL SUPPLIER 
 29-03-2023,Adults,Matrix SCM Ltd,Agency Staff,608.42,0.00,COMMERCIAL SUPPLIER 
 01-03-2023,Adults,Potton Services Ltd,Home Care - Private Contractors Payment,608.85,0.00,COMMERCIAL SUPPLIER 
 01-03-2023,Adults,Potton Services Ltd,Home Care - Private Contractors Payment,608.85,0.00,COMMERCIAL SUPPLIER 
 13-03-2023,Adults,Quality Healthcare Solutions Ltd t/a Kare Plus Romford,Home Care - Private Contractors Payment,609.42,0.00,COMMERCIAL SUPPLIER 
 06-03-2023,Adults,Morepower Ltd t/a Aqs Homecare,Home Care - Private Contractors Payment,609.75,0.00,COMMERCIAL SUPPLIER 
 06-03-2023,Adults,Morepower Ltd t/a Aqs Homecare,Home Care - Private Contractors Payment,611.06,0.00,COMMERCIAL SUPPLIER 
 14-03-2023,Adults,Home Sweet Home Care Ltd,Home Care - Private Contractors Payment,611.72,0.00,COMMERCIAL SUPPLIER 
 28-03-2023,Adults,Prestige Care & Support Ltd,Home Care - Private Contractors Payment,611.72,0.00,COMMERCIAL SUPPLIER 
 14-03-2023,Adults,Home Sweet Home Care Ltd,Home Care - Private Contractors Payment,612.38,0.00,COMMERCIAL SUPPLIER 
 08-03-2023,Adults,Lodge Group Care UK Ltd,Home Care - Private Contractors Payment,613.69,0.00,COMMERCIAL SUPPLIER 
 14-03-2023,Adults,Home Sweet Home Care Ltd,Home Care - Private Contractors Payment,615.98,0.00,COMMERCIAL SUPPLIER 
 26-03-2023,Adults,Personal Information � Redacted,Home Care - Private Contractors Payment,619.92,0.00,INDIVIDUALS 
 26-03-2023,Adults,Personal Information � Redacted,Home Care - Private Contractors Payment,619.92,0.00,INDIVIDUALS 
 22-03-2023,Adults,Action First Assessments Ltd,Private Contractors Payment - Other,620.00,0.00,COMMERCIAL SUPPLIER 
 22-03-2023,Adults,Action First Assessments Ltd,Private Contractors Payment - Other,620.00,0.00,COMMERCIAL SUPPLIER 
 06-03-2023,Adults,Morepower Ltd t/a Aqs Homecare,Home Care - Private Contractors Payment,620.90,0.00,COMMERCIAL SUPPLIER 
 10-03-2023,Adults,Outreach Support Services Ltd,Supported Other Accommodation - Private Contractors Payment,621.43,0.00,COMMERCIAL SUPPLIER 
 08-03-2023,Adults,Lodge Group Care UK Ltd,Home Care - Private Contractors Payment,622.22,0.00,COMMERCIAL SUPPLIER 
 10-03-2023,Adults,Bupa Care Homes (HVC) - Havering Court,Nursing Care Income,627.80,0.00,COMMERCIAL SUPPLIER 
 10-03-2023,Adults,Beechcourt Care Centre - Bondcare,Nursing Care Income,627.80,0.00,COMMERCIAL SUPPLIER 
 08-03-2023,Adults,Lodge Group Care UK Ltd,Home Care - Private Contractors Payment,629.76,0.00,COMMERCIAL SUPPLIER 
 20-03-2023,Adults,Romford Private Hire Ltd,Client Transport,630.00,0.00,COMMERCIAL SUPPLIER 
 08-03-2023,Adults,Lodge Group Care UK Ltd,Home Care - Private Contractors Payment,630.09,0.00,COMMERCIAL SUPPLIER 
 10-03-2023,Adults,Ash Grove Residential Care Home,Residential Care Income,631.76,0.00,COMMERCIAL SUPPLIER 
 10-03-2023,Adults,BeTo Solutions Ltd,Supported Other Accommodation - Private Contractors Payment,635.14,0.00,COMMERCIAL SUPPLIER 
 01-03-2023,Adults,Matrix SCM Ltd,Agency Staff,637.12,0.00,COMMERCIAL SUPPLIER 
 10-03-2023,Adults,Masumin Ltd t/s Abbeleigh House,Residential Care Income,638.43,0.00,COMMERCIAL SUPPLIER 
 06-03-2023,Adults,Home Support Services (Havering & Essex) Ltd,Home Care - Private Contractors Payment,639.60,0.00,COMMERCIAL SUPPLIER 
 09-03-2023,Adults,Prior Care Ltd_a,Home Care - Private Contractors Payment,640.58,0.00,COMMERCIAL SUPPLIER 
 06-03-2023,Adults,Home Support Services (Havering & Essex) Ltd,Home Care - Private Contractors Payment,643.54,0.00,COMMERCIAL SUPPLIER 
 10-03-2023,Adults,Masumin Ltd t/s Abbeleigh House,Residential Care Income,643.80,0.00,COMMERCIAL SUPPLIER 
 10-03-2023,Adults,Masumin Ltd t/s Abbeleigh House,Residential Care Income,643.80,0.00,COMMERCIAL SUPPLIER 
 10-03-2023,Adults,Masumin Ltd t/s Abbeleigh House,Residential Care Income,643.80,0.00,COMMERCIAL SUPPLIER 
 10-03-2023,Adults,Masumin Ltd t/s Abbeleigh House,Residential Care Income,643.80,0.00,COMMERCIAL SUPPLIER 
 10-03-2023,Adults,Masumin Ltd t/s Abbeleigh House,Residential Care Income,643.80,0.00,COMMERCIAL SUPPLIER 
 10-03-2023,Adults,Masumin Ltd t/s Abbeleigh House,Residential Care Income,643.80,0.00,COMMERCIAL SUPPLIER 
 10-03-2023,Adults,Masumin Ltd t/s Abbeleigh House,Residential Care Income,643.80,0.00,COMMERCIAL SUPPLIER 
 10-03-2023,Adults,Masumin Ltd t/s Abbeleigh House,Residential Care Income,643.80,0.00,COMMERCIAL SUPPLIER 
 10-03-2023,Adults,Masumin Ltd t/s Abbeleigh House,Residential Care Income,643.80,0.00,COMMERCIAL SUPPLIER 
 10-03-2023,Adults,Masumin Ltd t/s Abbeleigh House,Residential Care Income,643.80,0.00,COMMERCIAL SUPPLIER 
 10-03-2023,Adults,Masumin Ltd t/s Abbeleigh House,Residential Care Income,643.80,0.00,COMMERCIAL SUPPLIER 
 06-03-2023,Adults,Home Support Services (Havering & Essex) Ltd,Home Care - Private Contractors Payment,644.85,0.00,COMMERCIAL SUPPLIER 
 10-03-2023,Adults,Blessday Services Ltd,Supported Other Accommodation - Private Contractors Payment,646.00,0.00,COMMERCIAL SUPPLIER 
 06-03-2023,Adults,Morepower Ltd t/a Aqs Homecare,Home Care - Private Contractors Payment,647.14,0.00,COMMERCIAL SUPPLIER 
 06-03-2023,Adults,Care-Away Ltd T/A Care Support,Home Care - Private Contractors Payment,648.96,0.00,COMMERCIAL SUPPLIER 
 14-03-2023,Adults,Home Sweet Home Care Ltd,Home Care - Private Contractors Payment,649.44,0.00,COMMERCIAL SUPPLIER 
 10-03-2023,Adults,Cygnet Health Care,Residential Placements - Private Contractors Payment,652.50,0.00,COMMERCIAL SUPPLIER 
 14-03-2023,Adults,Pristine Care London Ltd ,Daycare - Private Contractors Payment,660.00,0.00,COMMERCIAL SUPPLIER 
 14-03-2023,Adults,Pristine Care London Ltd ,Daycare - Private Contractors Payment,660.00,0.00,COMMERCIAL SUPPLIER 
 14-03-2023,Adults,Pristine Care London Ltd ,Daycare - Private Contractors Payment,660.00,0.00,COMMERCIAL SUPPLIER 
 14-03-2023,Adults,Pristine Care London Ltd ,Daycare - Private Contractors Payment,660.00,0.00,COMMERCIAL SUPPLIER 
 28-03-2023,Adults,Prestige Care & Support Ltd,Home Care - Private Contractors Payment,660.26,0.00,COMMERCIAL SUPPLIER 
 14-03-2023,Adults,Home Sweet Home Care Ltd,Home Care - Private Contractors Payment,661.90,0.00,COMMERCIAL SUPPLIER 
 08-03-2023,Adults,Lodge Group Care UK Ltd,Home Care - Private Contractors Payment,662.23,0.00,COMMERCIAL SUPPLIER 
 17-03-2023,Adults,Ebony Health Care Services Limited,Home Care - Private Contractors Payment,662.25,0.00,COMMERCIAL SUPPLIER 
 14-03-2023,Adults,Home Sweet Home Care Ltd,Home Care - Private Contractors Payment,665.18,0.00,COMMERCIAL SUPPLIER 
 13-03-2023,Adults,Quality Healthcare Solutions Ltd t/a Kare Plus Romford,Home Care - Private Contractors Payment,665.84,0.00,COMMERCIAL SUPPLIER 
 13-03-2023,Adults,Quality Healthcare Solutions Ltd t/a Kare Plus Romford,Home Care - Private Contractors Payment,667.15,0.00,COMMERCIAL SUPPLIER 
 02-03-2023,Adults,Personal Information � Redacted,Miscellaneous Expenses,667.76,0.00,INDIVIDUALS 
 01-03-2023,Adults,Hospiva Care & Associates Agency Ltd_a,Home Care - Private Contractors Payment,668.14,0.00,COMMERCIAL SUPPLIER 
 26-03-2023,Adults,Personal Information � Redacted,Home Care - Private Contractors Payment,669.12,0.00,INDIVIDUALS 
 27-03-2023,Adults,London Homecare Ltd,Home Care - Private Contractors Payment,669.12,0.00,COMMERCIAL SUPPLIER 
 27-03-2023,Adults,London Homecare Ltd,Home Care - Private Contractors Payment,669.12,0.00,COMMERCIAL SUPPLIER 
 29-03-2023,Adults,Inna Care Ltd,Home Care - Private Contractors Payment,669.12,0.00,COMMERCIAL SUPPLIER 
 09-03-2023,Adults,REMARK LTD,Home Care - Private Contractors Payment,672.00,0.00,COMMERCIAL SUPPLIER 
 09-03-2023,Adults,REMARK LTD,Home Care - Private Contractors Payment,672.00,0.00,COMMERCIAL SUPPLIER 
 09-03-2023,Adults,REMARK LTD,Home Care - Private Contractors Payment,672.00,0.00,COMMERCIAL SUPPLIER 
 09-03-2023,Adults,REMARK LTD,Home Care - Private Contractors Payment,672.00,0.00,COMMERCIAL SUPPLIER 
 09-03-2023,Adults,REMARK LTD,Home Care - Private Contractors Payment,672.00,0.00,COMMERCIAL SUPPLIER 
 09-03-2023,Adults,REMARK LTD,Home Care - Private Contractors Payment,672.00,0.00,COMMERCIAL SUPPLIER 
 09-03-2023,Adults,REMARK LTD,Home Care - Private Contractors Payment,672.00,0.00,COMMERCIAL SUPPLIER 
 06-03-2023,Adults,Home Support Services (Havering & Essex) Ltd,Home Care - Private Contractors Payment,672.07,0.00,COMMERCIAL SUPPLIER 
 01-03-2023,Adults,Matrix SCM Ltd,Agency Staff,673.21,0.00,COMMERCIAL SUPPLIER 
 08-03-2023,Adults,Matrix SCM Ltd,Agency Staff,673.22,0.00,COMMERCIAL SUPPLIER 
 15-03-2023,Adults,Matrix SCM Ltd,Agency Staff,673.22,0.00,COMMERCIAL SUPPLIER 
 22-03-2023,Adults,Matrix SCM Ltd,Agency Staff,673.22,0.00,COMMERCIAL SUPPLIER 
 10-03-2023,Adults,Coastal Supported Living CIC,Supported Other Accommodation - Private Contractors Payment,674.64,0.00,COMMERCIAL SUPPLIER 
 08-03-2023,Adults,Matrix SCM Ltd,Agency Staff,676.92,0.00,COMMERCIAL SUPPLIER 
 10-03-2023,Adults,HC-One Oval Ltd - The Hornchurch Nursing Centre,Nursing Homes - Private Contractors Payment,678.00,0.00,COMMERCIAL SUPPLIER 
 01-03-2023,Adults,Phoenix Care Havering Ltd,Home Care - Private Contractors Payment,678.96,0.00,COMMERCIAL SUPPLIER 
 28-03-2023,Adults,Prestige Care & Support Ltd,Home Care - Private Contractors Payment,679.94,0.00,COMMERCIAL SUPPLIER 
 27-03-2023,Adults,Tapestry_a.,Daycare - Private Contractors Payment,684.00,0.00,COMMERCIAL SUPPLIER 
 27-03-2023,Adults,Tapestry_a.,Daycare - Private Contractors Payment,684.00,0.00,COMMERCIAL SUPPLIER 
 27-03-2023,Adults,Tapestry_a.,Daycare - Private Contractors Payment,684.00,0.00,COMMERCIAL SUPPLIER 
 27-03-2023,Adults,Tapestry_a.,Daycare - Private Contractors Payment,684.00,0.00,COMMERCIAL SUPPLIER 
 27-03-2023,Adults,Tapestry_a.,Daycare - Private Contractors Payment,684.00,0.00,COMMERCIAL SUPPLIER 
 27-03-2023,Adults,Tapestry_a.,Daycare - Private Contractors Payment,684.00,0.00,COMMERCIAL SUPPLIER 
 27-03-2023,Adults,Tapestry_a.,Daycare - Private Contractors Payment,684.00,0.00,COMMERCIAL SUPPLIER 
 02-03-2023,Adults,Mayflower Travel,Client Transport,688.00,0.00,COMMERCIAL SUPPLIER 
 06-03-2023,Adults,Home Support Services (Havering & Essex) Ltd,Home Care - Private Contractors Payment,688.80,0.00,COMMERCIAL SUPPLIER 
 27-03-2023,Adults,London Homecare Ltd,Home Care - Private Contractors Payment,688.80,0.00,COMMERCIAL SUPPLIER 
 27-03-2023,Adults,London Homecare Ltd,Home Care - Private Contractors Payment,688.80,0.00,COMMERCIAL SUPPLIER 
 29-03-2023,Adults,Inna Care Ltd,Home Care - Private Contractors Payment,688.80,0.00,COMMERCIAL SUPPLIER 
 29-03-2023,Adults,Inna Care Ltd,Home Care - Private Contractors Payment,688.80,0.00,COMMERCIAL SUPPLIER 
 08-03-2023,Adults,Cera Care Operations Ltd,Home Care - Private Contractors Payment,692.74,0.00,COMMERCIAL SUPPLIER 
 08-03-2023,Adults,Lodge Group Care UK Ltd,Home Care - Private Contractors Payment,693.72,0.00,COMMERCIAL SUPPLIER 
 29-03-2023,Adults,Prior Care Ltd_a,Home Care - Private Contractors Payment,694.05,0.00,COMMERCIAL SUPPLIER 
 08-03-2023,Adults,Cera Care Operations Ltd,Home Care - Private Contractors Payment,695.36,0.00,COMMERCIAL SUPPLIER 
 14-03-2023,Adults,Home Sweet Home Care Ltd,Home Care - Private Contractors Payment,695.36,0.00,COMMERCIAL SUPPLIER 
 01-03-2023,Adults,Matrix SCM Ltd,Agency Staff,696.26,0.00,COMMERCIAL SUPPLIER 
 15-03-2023,Adults,Matrix SCM Ltd,Agency Staff,696.26,0.00,COMMERCIAL SUPPLIER 
 22-03-2023,Adults,Matrix SCM Ltd,Agency Staff,696.26,0.00,COMMERCIAL SUPPLIER 
 29-03-2023,Adults,Matrix SCM Ltd,Agency Staff,696.26,0.00,COMMERCIAL SUPPLIER 
 06-03-2023,Adults,Home Support Services (Havering & Essex) Ltd,Home Care - Private Contractors Payment,698.31,0.00,COMMERCIAL SUPPLIER 
 16-03-2023,Adults,Care-Away Ltd T/A Care Support,Home Care - Private Contractors Payment,698.88,0.00,COMMERCIAL SUPPLIER 
 16-03-2023,Adults,Care-Away Ltd T/A Care Support,Home Care - Private Contractors Payment,698.88,0.00,COMMERCIAL SUPPLIER 
 08-03-2023,Adults,Lodge Group Care UK Ltd,Home Care - Private Contractors Payment,699.95,0.00,COMMERCIAL SUPPLIER 
 07-03-2023,Adults,Inclusive Care Support Limited,Supported Other Accommodation - Private Contractors Payment,700.84,0.00,COMMERCIAL SUPPLIER 
 07-03-2023,Adults,Inclusive Care Support Limited,Long Term Support - Community: Supported Living,700.84,0.00,COMMERCIAL SUPPLIER 
 07-03-2023,Adults,Inclusive Care Support Limited,Supported Other Accommodation - Private Contractors Payment,700.84,0.00,COMMERCIAL SUPPLIER 
 07-03-2023,Adults,Inclusive Care Support Limited,Supported Other Accommodation - Private Contractors Payment,700.84,0.00,COMMERCIAL SUPPLIER 
 07-03-2023,Adults,Inclusive Care Support Limited,Supported Other Accommodation - Private Contractors Payment,700.84,0.00,COMMERCIAL SUPPLIER 
 07-03-2023,Adults,Inclusive Care Support Limited,Supported Other Accommodation - Private Contractors Payment,700.84,0.00,COMMERCIAL SUPPLIER 
 14-03-2023,Adults,Home Sweet Home Care Ltd,Home Care - Private Contractors Payment,701.92,0.00,COMMERCIAL SUPPLIER 
 10-03-2023,Adults,Affinia Healthcare Ltd_a,Supported Other Accommodation - Private Contractors Payment,703.21,0.00,COMMERCIAL SUPPLIER 
 13-03-2023,Adults,Quality Healthcare Solutions Ltd t/a Kare Plus Romford,Home Care - Private Contractors Payment,707.50,0.00,COMMERCIAL SUPPLIER 
 13-03-2023,Adults,Quality Healthcare Solutions Ltd t/a Kare Plus Romford,Home Care - Private Contractors Payment,708.15,0.00,COMMERCIAL SUPPLIER 
 10-03-2023,Adults,BeTo Solutions Ltd,Supported Other Accommodation - Private Contractors Payment,708.43,0.00,COMMERCIAL SUPPLIER 
 02-03-2023,Adults,Gims Care Solution Ltd_a,Home Care - Private Contractors Payment,708.48,0.00,NON COMMERCIAL SUPPLIER 
 27-03-2023,Adults,Outreach Support Services Ltd,Home Care - Private Contractors Payment,708.48,0.00,COMMERCIAL SUPPLIER 
 08-03-2023,Adults,Lodge Group Care UK Ltd,Home Care - Private Contractors Payment,708.81,0.00,COMMERCIAL SUPPLIER 
 10-03-2023,Adults,Gemini Assisted Living Ltd,Supported Other Accommodation - Private Contractors Payment,710.91,0.00,COMMERCIAL SUPPLIER 
 16-03-2023,Adults,Care-Away Ltd T/A Care Support,Home Care - Private Contractors Payment,711.36,0.00,COMMERCIAL SUPPLIER 
 16-03-2023,Adults,Care-Away Ltd T/A Care Support,Home Care - Private Contractors Payment,711.36,0.00,COMMERCIAL SUPPLIER 
 06-03-2023,Adults,Home Support Services (Havering & Essex) Ltd,Home Care - Private Contractors Payment,712.42,0.00,COMMERCIAL SUPPLIER 
 08-03-2023,Adults,Lodge Group Care UK Ltd,Home Care - Private Contractors Payment,714.38,0.00,COMMERCIAL SUPPLIER 
 13-03-2023,Adults,Quality Healthcare Solutions Ltd t/a Kare Plus Romford,Home Care - Private Contractors Payment,714.71,0.00,COMMERCIAL SUPPLIER 
 16-03-2023,Adults,Care-Away Ltd T/A Care Support,Home Care - Private Contractors Payment,715.52,0.00,COMMERCIAL SUPPLIER 
 16-03-2023,Adults,Care-Away Ltd T/A Care Support,Home Care - Private Contractors Payment,715.52,0.00,COMMERCIAL SUPPLIER 
 06-03-2023,Adults,Morepower Ltd t/a Aqs Homecare,Home Care - Private Contractors Payment,716.35,0.00,COMMERCIAL SUPPLIER 
 14-03-2023,Adults,Home Sweet Home Care Ltd,Home Care - Private Contractors Payment,718.32,0.00,COMMERCIAL SUPPLIER 
 10-03-2023,Adults,BeTo Solutions Ltd,Supported Other Accommodation - Private Contractors Payment,718.71,0.00,COMMERCIAL SUPPLIER 
 06-03-2023,Adults,London Borough of Barking & Dagenham_a,Daycare - Private Contractors Payment,720.00,0.00,LOCAL AUTHORITY SERVICES 
 13-03-2023,Adults,Radfield Home Care Havering & Brentwood,Home Care - Private Contractors Payment,731.04,0.00,COMMERCIAL SUPPLIER 
 16-03-2023,Adults,Care-Away Ltd T/A Care Support,Home Care - Private Contractors Payment,732.16,0.00,COMMERCIAL SUPPLIER 
 10-03-2023,Adults,The Avenues Trust Support Services Glebe House,Respite Care - Private Contractors Payment,733.90,0.00,COMMERCIAL SUPPLIER 
 08-03-2023,Adults,Lodge Group Care UK Ltd,Home Care - Private Contractors Payment,735.38,0.00,COMMERCIAL SUPPLIER 
 01-03-2023,Adults,Certified Healthcare Solutions Ltd t/a In Home Care Havering,Home Care - Private Contractors Payment,738.00,0.00,COMMERCIAL SUPPLIER 
 01-03-2023,Adults,Certified Healthcare Solutions Ltd t/a In Home Care Havering,Home Care - Private Contractors Payment,738.00,0.00,COMMERCIAL SUPPLIER 
 08-03-2023,Adults,Lodge Group Care UK Ltd,Home Care - Private Contractors Payment,738.66,0.00,COMMERCIAL SUPPLIER 
 08-03-2023,Adults,Matrix SCM Ltd,Agency Staff,741.32,0.00,COMMERCIAL SUPPLIER 
 06-03-2023,Adults,Morepower Ltd t/a Aqs Homecare,Home Care - Private Contractors Payment,743.25,0.00,COMMERCIAL SUPPLIER 
 09-03-2023,Adults,Prior Care Ltd_a,Home Care - Private Contractors Payment,743.25,0.00,COMMERCIAL SUPPLIER 
 06-03-2023,Adults,Morepower Ltd t/a Aqs Homecare,Home Care - Private Contractors Payment,743.58,0.00,COMMERCIAL SUPPLIER 
 08-03-2023,Adults,Matrix SCM Ltd,Agency Staff,745.76,0.00,COMMERCIAL SUPPLIER 
 15-03-2023,Adults,Matrix SCM Ltd,Agency Staff,745.76,0.00,COMMERCIAL SUPPLIER 
 06-03-2023,Adults,Home Support Services (Havering & Essex) Ltd,Home Care - Private Contractors Payment,747.84,0.00,COMMERCIAL SUPPLIER 
 13-03-2023,Adults,Quality Healthcare Solutions Ltd t/a Kare Plus Romford,Home Care - Private Contractors Payment,748.82,0.00,COMMERCIAL SUPPLIER 
 06-03-2023,Adults,Home Support Services (Havering & Essex) Ltd,Home Care - Private Contractors Payment,749.15,0.00,COMMERCIAL SUPPLIER 
 08-03-2023,Adults,Cera Care Operations Ltd,Home Care - Private Contractors Payment,749.15,0.00,COMMERCIAL SUPPLIER 
 29-03-2023,Adults,Cera Care Operations Ltd,Home Care - Private Contractors Payment,749.15,0.00,COMMERCIAL SUPPLIER 
 29-03-2023,Adults,Prior Care Ltd_a,Home Care - Private Contractors Payment,749.48,0.00,COMMERCIAL SUPPLIER 
 08-03-2023,Adults,Cera Care Operations Ltd,Home Care - Private Contractors Payment,752.76,0.00,COMMERCIAL SUPPLIER 
 06-03-2023,Adults,Home Support Services (Havering & Essex) Ltd,Home Care - Private Contractors Payment,753.09,0.00,COMMERCIAL SUPPLIER 
 10-03-2023,Adults,Coastal Supported Living CIC,Supported Other Accommodation - Private Contractors Payment,755.60,0.00,COMMERCIAL SUPPLIER 
 10-03-2023,Adults,Coastal Supported Living CIC,Supported Other Accommodation - Private Contractors Payment,755.60,0.00,COMMERCIAL SUPPLIER 
 10-03-2023,Adults,Coastal Supported Living CIC,Supported Other Accommodation - Private Contractors Payment,755.60,0.00,COMMERCIAL SUPPLIER 
 10-03-2023,Adults,Phoenix Care Havering Ltd,Home Care - Private Contractors Payment,757.68,0.00,COMMERCIAL SUPPLIER 
 08-03-2023,Adults,Lodge Group Care UK Ltd,Home Care - Private Contractors Payment,762.60,0.00,COMMERCIAL SUPPLIER 
 13-03-2023,Adults,Bluebird Care Havering,Home Care - Private Contractors Payment,762.60,0.00,COMMERCIAL SUPPLIER 
 27-03-2023,Adults,Bluebird Care Havering,Home Care - Private Contractors Payment,762.60,0.00,COMMERCIAL SUPPLIER 
 08-03-2023,Adults,Lodge Group Care UK Ltd,Home Care - Private Contractors Payment,763.26,0.00,COMMERCIAL SUPPLIER 
 14-03-2023,Adults,Home Sweet Home Care Ltd,Home Care - Private Contractors Payment,763.26,0.00,COMMERCIAL SUPPLIER 
 08-03-2023,Adults,Lodge Group Care UK Ltd,Home Care - Private Contractors Payment,763.58,0.00,COMMERCIAL SUPPLIER 
 01-03-2023,Adults,Radfield Home Care Havering & Brentwood,Home Care - Private Contractors Payment,764.40,0.00,COMMERCIAL SUPPLIER 
 08-03-2023,Adults,Lodge Group Care UK Ltd,Home Care - Private Contractors Payment,766.54,0.00,COMMERCIAL SUPPLIER 
 10-03-2023,Adults,Optimal Care Services Ltd,Supported Other Accommodation - Private Contractors Payment,767.11,0.00,COMMERCIAL SUPPLIER 
 29-03-2023,Adults,Inna Care Ltd,Home Care - Private Contractors Payment,767.52,0.00,COMMERCIAL SUPPLIER 
 29-03-2023,Adults,Cera Care Operations Ltd,Home Care - Private Contractors Payment,768.83,0.00,COMMERCIAL SUPPLIER 
 08-03-2023,Adults,Lodge Group Care UK Ltd,Home Care - Private Contractors Payment,769.16,0.00,COMMERCIAL SUPPLIER 
 08-03-2023,Adults,Matrix SCM Ltd,Agency Staff,771.96,0.00,COMMERCIAL SUPPLIER 
 10-03-2023,Adults,Chosen Care Group Ltd,Supported Other Accommodation - Private Contractors Payment,772.60,0.00,COMMERCIAL SUPPLIER 
 10-03-2023,Adults,Ashgate House Ltd_a,Residential Placements - Private Contractors Payment,772.81,0.00,COMMERCIAL SUPPLIER 
 03-03-2023,Adults,Headway East London,Daycare - Private Contractors Payment,774.16,0.00,COMMERCIAL SUPPLIER 
 10-03-2023,Adults,Highfield Care Homes Ltd t/a Romford Grange Care Home,Nursing Homes - Private Contractors Payment,774.86,0.00,COMMERCIAL SUPPLIER 
 01-03-2023,Adults,Matrix SCM Ltd,Agency Staff,774.90,0.00,COMMERCIAL SUPPLIER 
 22-03-2023,Adults,Matrix SCM Ltd,Agency Staff,774.90,0.00,COMMERCIAL SUPPLIER 
 01-03-2023,Adults,Hospiva Care & Associates Agency Ltd_a,Home Care - Private Contractors Payment,775.72,0.00,COMMERCIAL SUPPLIER 
 29-03-2023,Adults,Cera Care Operations Ltd,Home Care - Private Contractors Payment,776.05,0.00,COMMERCIAL SUPPLIER 
 08-03-2023,Adults,Lodge Group Care UK Ltd,Home Care - Private Contractors Payment,777.36,0.00,COMMERCIAL SUPPLIER 
 03-03-2023,Adults,Anytime Care 2020_a,Home Care - Private Contractors Payment,777.69,0.00,COMMERCIAL SUPPLIER 
 03-03-2023,Adults,Anytime Care 2020_a,Home Care - Private Contractors Payment,778.02,0.00,COMMERCIAL SUPPLIER 
 14-03-2023,Adults,Home Sweet Home Care Ltd,Home Care - Private Contractors Payment,779.00,0.00,COMMERCIAL SUPPLIER 
 06-03-2023,Adults,Home Support Services (Havering & Essex) Ltd,Home Care - Private Contractors Payment,779.66,0.00,COMMERCIAL SUPPLIER 
 15-03-2023,Adults,New Opportunity Groups Havering,Daycare - Private Contractors Payment,780.00,0.00,COMMERCIAL SUPPLIER 
 27-03-2023,Adults,Tapestry_a.,Daycare - Private Contractors Payment,781.72,0.00,COMMERCIAL SUPPLIER 
 10-03-2023,Adults,Coastal Supported Living CIC,Supported Other Accommodation - Private Contractors Payment,782.59,0.00,COMMERCIAL SUPPLIER 
 21-03-2023,Adults,The Cedars,Supported Other Accommodation - Private Contractors Payment,784.64,0.00,COMMERCIAL SUPPLIER 
 08-03-2023,Adults,Lodge Group Care UK Ltd,Home Care - Private Contractors Payment,787.20,0.00,COMMERCIAL SUPPLIER 
 08-03-2023,Adults,Lodge Group Care UK Ltd,Home Care - Private Contractors Payment,787.20,0.00,COMMERCIAL SUPPLIER 
 26-03-2023,Adults,Personal Information � Redacted,Home Care - Private Contractors Payment,787.20,0.00,INDIVIDUALS 
 27-03-2023,Adults,Premier Carewaiting Ltd,Home Care - Private Contractors Payment,787.20,0.00,COMMERCIAL SUPPLIER 
 17-03-2023,Adults,Delight Supported Living Ltd,Home Care - Private Contractors Payment,787.44,0.00,COMMERCIAL SUPPLIER 
 17-03-2023,Adults,Delight Supported Living Ltd,Home Care - Private Contractors Payment,787.44,0.00,COMMERCIAL SUPPLIER 
 29-03-2023,Adults,Prior Care Ltd_a,Home Care - Private Contractors Payment,787.53,0.00,COMMERCIAL SUPPLIER 
 08-03-2023,Adults,Lodge Group Care UK Ltd,Home Care - Private Contractors Payment,788.18,0.00,COMMERCIAL SUPPLIER 
 22-03-2023,Adults,Potton Services Ltd,Home Care - Private Contractors Payment,789.25,0.00,COMMERCIAL SUPPLIER 
 01-03-2023,Adults,Matrix SCM Ltd,Agency Staff,790.91,0.00,COMMERCIAL SUPPLIER 
 01-03-2023,Adults,Matrix SCM Ltd,Agency Staff,790.91,0.00,COMMERCIAL SUPPLIER 
 01-03-2023,Adults,Matrix SCM Ltd,Agency Staff,790.91,0.00,COMMERCIAL SUPPLIER 
 08-03-2023,Adults,Matrix SCM Ltd,Agency Staff,790.91,0.00,COMMERCIAL SUPPLIER 
 08-03-2023,Adults,Matrix SCM Ltd,Agency Staff,790.91,0.00,COMMERCIAL SUPPLIER 
 08-03-2023,Adults,Matrix SCM Ltd,Agency Staff,790.91,0.00,COMMERCIAL SUPPLIER 
 15-03-2023,Adults,Matrix SCM Ltd,Agency Staff,790.91,0.00,COMMERCIAL SUPPLIER 
 15-03-2023,Adults,Matrix SCM Ltd,Agency Staff,790.91,0.00,COMMERCIAL SUPPLIER 
 15-03-2023,Adults,Matrix SCM Ltd,Agency Staff,790.91,0.00,COMMERCIAL SUPPLIER 
 22-03-2023,Adults,Matrix SCM Ltd,Agency Staff,790.91,0.00,COMMERCIAL SUPPLIER 
 22-03-2023,Adults,Matrix SCM Ltd,Agency Staff,790.91,0.00,COMMERCIAL SUPPLIER 
 22-03-2023,Adults,Matrix SCM Ltd,Agency Staff,790.91,0.00,COMMERCIAL SUPPLIER 
 22-03-2023,Adults,Matrix SCM Ltd,Agency Staff,790.91,0.00,COMMERCIAL SUPPLIER 
 29-03-2023,Adults,Matrix SCM Ltd,Agency Staff,790.91,0.00,COMMERCIAL SUPPLIER 
 29-03-2023,Adults,Matrix SCM Ltd,Agency Staff,790.91,0.00,COMMERCIAL SUPPLIER 
 29-03-2023,Adults,Matrix SCM Ltd,Agency Staff,790.91,0.00,COMMERCIAL SUPPLIER 
 01-03-2023,Adults,Matrix SCM Ltd,Agency Staff,790.93,0.00,COMMERCIAL SUPPLIER 
 08-03-2023,Adults,Matrix SCM Ltd,Agency Staff,790.93,0.00,COMMERCIAL SUPPLIER 
 15-03-2023,Adults,Matrix SCM Ltd,Agency Staff,790.93,0.00,COMMERCIAL SUPPLIER 
 22-03-2023,Adults,Matrix SCM Ltd,Agency Staff,790.93,0.00,COMMERCIAL SUPPLIER 
 29-03-2023,Adults,Matrix SCM Ltd,Agency Staff,790.93,0.00,COMMERCIAL SUPPLIER 
 06-03-2023,Adults,Morepower Ltd t/a Aqs Homecare,Home Care - Private Contractors Payment,791.14,0.00,COMMERCIAL SUPPLIER 
 20-03-2023,Adults,Funky Willows Ltd,Daycare - Private Contractors Payment,792.00,0.00,COMMERCIAL SUPPLIER 
 06-03-2023,Adults,Home Support Services (Havering & Essex) Ltd,Home Care - Private Contractors Payment,792.78,0.00,COMMERCIAL SUPPLIER 
 14-03-2023,Adults,Home Sweet Home Care Ltd,Home Care - Private Contractors Payment,793.76,0.00,COMMERCIAL SUPPLIER 
 10-03-2023,Adults,Lodge Lane Care Home Limited,Residential Placements - Private Contractors Payment,794.29,0.00,COMMERCIAL SUPPLIER 
 06-03-2023,Adults,Home Support Services (Havering & Essex) Ltd,Home Care - Private Contractors Payment,795.07,0.00,COMMERCIAL SUPPLIER 
 29-03-2023,Adults,Cera Care Operations Ltd,Home Care - Private Contractors Payment,796.71,0.00,COMMERCIAL SUPPLIER 
 06-03-2023,Adults,Morepower Ltd t/a Aqs Homecare,Home Care - Private Contractors Payment,797.04,0.00,COMMERCIAL SUPPLIER 
 06-03-2023,Adults,Home Support Services (Havering & Essex) Ltd,Home Care - Private Contractors Payment,797.04,0.00,COMMERCIAL SUPPLIER 
 14-03-2023,Adults,Home Sweet Home Care Ltd,Home Care - Private Contractors Payment,797.04,0.00,COMMERCIAL SUPPLIER 
 08-03-2023,Adults,Cera Care Operations Ltd,Home Care - Private Contractors Payment,799.66,0.00,COMMERCIAL SUPPLIER 
 06-03-2023,Adults,R G Care Ltd ,Daycare - Private Contractors Payment,800.00,0.00,COMMERCIAL SUPPLIER 
 10-03-2023,Adults,Chosen Care Group Ltd,Supported Other Accommodation - Private Contractors Payment,800.19,0.00,COMMERCIAL SUPPLIER 
 10-03-2023,Adults,BeTo Solutions Ltd,Supported Other Accommodation - Private Contractors Payment,801.64,0.00,COMMERCIAL SUPPLIER 
 09-03-2023,Adults,Prior Care Ltd_a,Home Care - Private Contractors Payment,802.29,0.00,COMMERCIAL SUPPLIER 
 10-03-2023,Adults,Acorn Village_a,Residential Placements - Private Contractors Payment,802.60,0.00,COMMERCIAL SUPPLIER 
 14-03-2023,Adults,Home Sweet Home Care Ltd,Home Care - Private Contractors Payment,803.27,0.00,COMMERCIAL SUPPLIER 
 14-03-2023,Adults,Home Sweet Home Care Ltd,Home Care - Private Contractors Payment,803.60,0.00,COMMERCIAL SUPPLIER 
 13-03-2023,Adults,Quality Healthcare Solutions Ltd t/a Kare Plus Romford,Home Care - Private Contractors Payment,805.24,0.00,COMMERCIAL SUPPLIER 
 29-03-2023,Adults,Matrix SCM Ltd,Agency Staff,805.76,0.00,COMMERCIAL SUPPLIER 
 06-03-2023,Adults,Morepower Ltd t/a Aqs Homecare,Home Care - Private Contractors Payment,806.22,0.00,COMMERCIAL SUPPLIER 
 06-03-2023,Adults,Morepower Ltd t/a Aqs Homecare,Home Care - Private Contractors Payment,806.22,0.00,COMMERCIAL SUPPLIER 
 06-03-2023,Adults,Care-Away Ltd T/A Care Support,Home Care - Private Contractors Payment,807.04,0.00,COMMERCIAL SUPPLIER 
 08-03-2023,Adults,Lodge Group Care UK Ltd,Home Care - Private Contractors Payment,807.21,0.00,COMMERCIAL SUPPLIER 
 03-03-2023,Adults,Anytime Care 2020_a,Home Care - Private Contractors Payment,807.54,0.00,COMMERCIAL SUPPLIER 
 06-03-2023,Adults,Home Support Services (Havering & Essex) Ltd,Home Care - Private Contractors Payment,808.19,0.00,COMMERCIAL SUPPLIER 
 14-03-2023,Adults,Home Sweet Home Care Ltd,Home Care - Private Contractors Payment,808.19,0.00,COMMERCIAL SUPPLIER 
 08-03-2023,Adults,Lodge Group Care UK Ltd,Home Care - Private Contractors Payment,809.83,0.00,COMMERCIAL SUPPLIER 
 15-03-2023,Adults,Matrix SCM Ltd,Agency Staff,810.41,0.00,COMMERCIAL SUPPLIER 
 29-03-2023,Adults,Cera Care Operations Ltd,Home Care - Private Contractors Payment,811.47,0.00,COMMERCIAL SUPPLIER 
 18-03-2023,Adults,Dignified Homecare,Home Care - Private Contractors Payment,812.00,0.00,COMMERCIAL SUPPLIER 
 06-03-2023,Adults,Morepower Ltd t/a Aqs Homecare,Home Care - Private Contractors Payment,814.42,0.00,COMMERCIAL SUPPLIER 
 08-03-2023,Adults,Cera Care Operations Ltd,Home Care - Private Contractors Payment,814.75,0.00,COMMERCIAL SUPPLIER 
 16-03-2023,Adults,Care-Away Ltd T/A Care Support,Home Care - Private Contractors Payment,815.36,0.00,COMMERCIAL SUPPLIER 
 08-03-2023,Adults,Cera Care Operations Ltd,Home Care - Private Contractors Payment,815.74,0.00,COMMERCIAL SUPPLIER 
 08-03-2023,Adults,Matrix SCM Ltd,Agency Staff,816.48,0.00,COMMERCIAL SUPPLIER 
 15-03-2023,Adults,Matrix SCM Ltd,Agency Staff,816.48,0.00,COMMERCIAL SUPPLIER 
 22-03-2023,Adults,Matrix SCM Ltd,Agency Staff,816.48,0.00,COMMERCIAL SUPPLIER 
 06-03-2023,Adults,Home Support Services (Havering & Essex) Ltd,Home Care - Private Contractors Payment,816.72,0.00,COMMERCIAL SUPPLIER 
 14-03-2023,Adults,Home Sweet Home Care Ltd,Home Care - Private Contractors Payment,816.72,0.00,COMMERCIAL SUPPLIER 
 26-03-2023,Adults,Westminster Homecare Ltd_a,Home Care - Private Contractors Payment,816.72,0.00,COMMERCIAL SUPPLIER 
 29-03-2023,Adults,Cera Care Operations Ltd,Home Care - Private Contractors Payment,816.72,0.00,COMMERCIAL SUPPLIER 
 08-03-2023,Adults,Lodge Group Care UK Ltd,Home Care - Private Contractors Payment,818.36,0.00,COMMERCIAL SUPPLIER 
 03-03-2023,Adults,Anytime Care 2020_a,Home Care - Private Contractors Payment,819.34,0.00,COMMERCIAL SUPPLIER 
 06-03-2023,Adults,Morepower Ltd t/a Aqs Homecare,Home Care - Private Contractors Payment,820.33,0.00,COMMERCIAL SUPPLIER 
 06-03-2023,Adults,Morepower Ltd t/a Aqs Homecare,Home Care - Private Contractors Payment,820.33,0.00,COMMERCIAL SUPPLIER 
 02-03-2023,Adults,Gims Care Solution Ltd_a,Home Care - Private Contractors Payment,820.96,0.00,NON COMMERCIAL SUPPLIER 
 02-03-2023,Adults,Gims Care Solution Ltd_a,Home Care - Private Contractors Payment,820.96,0.00,NON COMMERCIAL SUPPLIER 
 14-03-2023,Adults,Home Sweet Home Care Ltd,Home Care - Private Contractors Payment,820.98,0.00,COMMERCIAL SUPPLIER 
 03-03-2023,Adults,Anytime Care 2020_a,Home Care - Private Contractors Payment,821.31,0.00,COMMERCIAL SUPPLIER 
 22-03-2023,Adults,Matrix SCM Ltd,Agency Staff,822.15,0.00,COMMERCIAL SUPPLIER 
 29-03-2023,Adults,Matrix SCM Ltd,Agency Staff,822.15,0.00,COMMERCIAL SUPPLIER 
 29-03-2023,Adults,Prior Care Ltd_a,Home Care - Private Contractors Payment,822.62,0.00,COMMERCIAL SUPPLIER 
 08-03-2023,Adults,Cera Care Operations Ltd,Home Care - Private Contractors Payment,822.95,0.00,COMMERCIAL SUPPLIER 
 08-03-2023,Adults,Cera Care Operations Ltd,Home Care - Private Contractors Payment,823.28,0.00,COMMERCIAL SUPPLIER 
 06-03-2023,Adults,Home Support Services (Havering & Essex) Ltd,Home Care - Private Contractors Payment,824.26,0.00,COMMERCIAL SUPPLIER 
 10-03-2023,Adults,Outlook Care - 76 Neave Crescent,Supported Other Accommodation - Private Contractors Payment,825.42,0.00,COMMERCIAL SUPPLIER 
 02-03-2023,Adults,Carers Trust East Midlands,Home Care - Private Contractors Payment,826.56,0.00,COMMERCIAL SUPPLIER 
 03-03-2023,Adults,Passion Tree Care Services Ltd,Home Care - Private Contractors Payment,826.56,0.00,COMMERCIAL SUPPLIER 
 06-03-2023,Adults,Morepower Ltd t/a Aqs Homecare,Home Care - Private Contractors Payment,826.56,0.00,COMMERCIAL SUPPLIER 
 06-03-2023,Adults,Home Support Services (Havering & Essex) Ltd,Home Care - Private Contractors Payment,826.56,0.00,COMMERCIAL SUPPLIER 
 06-03-2023,Adults,Home Support Services (Havering & Essex) Ltd,Home Care - Private Contractors Payment,826.56,0.00,COMMERCIAL SUPPLIER 
 06-03-2023,Adults,Home Support Services (Havering & Essex) Ltd,Home Care - Private Contractors Payment,826.56,0.00,COMMERCIAL SUPPLIER 
 06-03-2023,Adults,Home Support Services (Havering & Essex) Ltd,Home Care - Private Contractors Payment,826.56,0.00,COMMERCIAL SUPPLIER 
 06-03-2023,Adults,Home Support Services (Havering & Essex) Ltd,Home Care - Private Contractors Payment,826.56,0.00,COMMERCIAL SUPPLIER 
 06-03-2023,Adults,Home Support Services (Havering & Essex) Ltd,Home Care - Private Contractors Payment,826.56,0.00,COMMERCIAL SUPPLIER 
 06-03-2023,Adults,Home Support Services (Havering & Essex) Ltd,Home Care - Private Contractors Payment,826.56,0.00,COMMERCIAL SUPPLIER 
 06-03-2023,Adults,Westminster Homecare Ltd_a,Home Care - Private Contractors Payment,826.56,0.00,COMMERCIAL SUPPLIER 
 07-03-2023,Adults,Rosemont Care Limited,Home Care - Private Contractors Payment,826.56,0.00,COMMERCIAL SUPPLIER 
 07-03-2023,Adults,Rosemont Care Limited,Home Care - Private Contractors Payment,826.56,0.00,COMMERCIAL SUPPLIER 
 08-03-2023,Adults,Lodge Group Care UK Ltd,Home Care - Private Contractors Payment,826.56,0.00,COMMERCIAL SUPPLIER 
 08-03-2023,Adults,Lodge Group Care UK Ltd,Home Care - Private Contractors Payment,826.56,0.00,COMMERCIAL SUPPLIER 
 08-03-2023,Adults,Lodge Group Care UK Ltd,Home Care - Private Contractors Payment,826.56,0.00,COMMERCIAL SUPPLIER 
 08-03-2023,Adults,Lodge Group Care UK Ltd,Home Care - Private Contractors Payment,826.56,0.00,COMMERCIAL SUPPLIER 
 08-03-2023,Adults,Lodge Group Care UK Ltd,Home Care - Private Contractors Payment,826.56,0.00,COMMERCIAL SUPPLIER 
 08-03-2023,Adults,Lodge Group Care UK Ltd,Home Care - Private Contractors Payment,826.56,0.00,COMMERCIAL SUPPLIER 
 14-03-2023,Adults,Home Sweet Home Care Ltd,Home Care - Private Contractors Payment,826.56,0.00,COMMERCIAL SUPPLIER 
 14-03-2023,Adults,Home Sweet Home Care Ltd,Home Care - Private Contractors Payment,826.56,0.00,COMMERCIAL SUPPLIER 
 14-03-2023,Adults,Home Sweet Home Care Ltd,Home Care - Private Contractors Payment,826.56,0.00,COMMERCIAL SUPPLIER 
 14-03-2023,Adults,Home Sweet Home Care Ltd,Home Care - Private Contractors Payment,826.56,0.00,COMMERCIAL SUPPLIER 
 26-03-2023,Adults,Personal Information � Redacted,Home Care - Private Contractors Payment,826.56,0.00,INDIVIDUALS 
 26-03-2023,Adults,Personal Information � Redacted,Home Care - Private Contractors Payment,826.56,0.00,INDIVIDUALS 
 26-03-2023,Adults,Westminster Homecare Ltd_a,Home Care - Private Contractors Payment,826.56,0.00,COMMERCIAL SUPPLIER 
 27-03-2023,Adults,Outreach Support Services Ltd,Home Care - Private Contractors Payment,826.56,0.00,COMMERCIAL SUPPLIER 
 27-03-2023,Adults,Outreach Support Services Ltd,Home Care - Private Contractors Payment,826.56,0.00,COMMERCIAL SUPPLIER 
 28-03-2023,Adults,Prestige Care & Support Ltd,Home Care - Private Contractors Payment,826.56,0.00,COMMERCIAL SUPPLIER 
 29-03-2023,Adults,Inna Care Ltd,Home Care - Private Contractors Payment,826.56,0.00,COMMERCIAL SUPPLIER 
 29-03-2023,Adults,Inna Care Ltd,Home Care - Private Contractors Payment,826.56,0.00,COMMERCIAL SUPPLIER 
 29-03-2023,Adults,Inna Care Ltd,Home Care - Private Contractors Payment,826.56,0.00,COMMERCIAL SUPPLIER 
 29-03-2023,Adults,Inna Care Ltd,Home Care - Private Contractors Payment,826.56,0.00,COMMERCIAL SUPPLIER 
 29-03-2023,Adults,Inna Care Ltd,Home Care - Private Contractors Payment,826.56,0.00,COMMERCIAL SUPPLIER 
 29-03-2023,Adults,Inna Care Ltd,Home Care - Private Contractors Payment,826.56,0.00,COMMERCIAL SUPPLIER 
 01-03-2023,Adults,Hospiva Care & Associates Agency Ltd_a,Home Care - Private Contractors Payment,826.89,0.00,COMMERCIAL SUPPLIER 
 01-03-2023,Adults,Hospiva Care & Associates Agency Ltd_a,Home Care - Private Contractors Payment,826.89,0.00,COMMERCIAL SUPPLIER 
 08-03-2023,Adults,Lodge Group Care UK Ltd,Home Care - Private Contractors Payment,826.89,0.00,COMMERCIAL SUPPLIER 
 08-03-2023,Adults,Lodge Group Care UK Ltd,Home Care - Private Contractors Payment,827.22,0.00,COMMERCIAL SUPPLIER 
 06-03-2023,Adults,Home Support Services (Havering & Essex) Ltd,Home Care - Private Contractors Payment,827.54,0.00,COMMERCIAL SUPPLIER 
 08-03-2023,Adults,Lodge Group Care UK Ltd,Home Care - Private Contractors Payment,827.54,0.00,COMMERCIAL SUPPLIER 
 08-03-2023,Adults,Lodge Group Care UK Ltd,Home Care - Private Contractors Payment,827.54,0.00,COMMERCIAL SUPPLIER 
 28-03-2023,Adults,Prestige Care & Support Ltd,Home Care - Private Contractors Payment,827.54,0.00,COMMERCIAL SUPPLIER 
 06-03-2023,Adults,Westminster Homecare Ltd_a,Home Care - Private Contractors Payment,827.87,0.00,COMMERCIAL SUPPLIER 
 08-03-2023,Adults,Lodge Group Care UK Ltd,Home Care - Private Contractors Payment,827.87,0.00,COMMERCIAL SUPPLIER 
 26-03-2023,Adults,Westminster Homecare Ltd_a,Home Care - Private Contractors Payment,827.87,0.00,COMMERCIAL SUPPLIER 
 29-03-2023,Adults,Cera Care Operations Ltd,Home Care - Private Contractors Payment,828.20,0.00,COMMERCIAL SUPPLIER 
 08-03-2023,Adults,Lodge Group Care UK Ltd,Home Care - Private Contractors Payment,828.53,0.00,COMMERCIAL SUPPLIER 
 28-03-2023,Adults,Prestige Care & Support Ltd,Home Care - Private Contractors Payment,828.53,0.00,COMMERCIAL SUPPLIER 
 28-03-2023,Adults,Prestige Care & Support Ltd,Home Care - Private Contractors Payment,828.53,0.00,COMMERCIAL SUPPLIER 
 08-03-2023,Adults,Lodge Group Care UK Ltd,Home Care - Private Contractors Payment,828.86,0.00,COMMERCIAL SUPPLIER 
 06-03-2023,Adults,Morepower Ltd t/a Aqs Homecare,Home Care - Private Contractors Payment,829.18,0.00,COMMERCIAL SUPPLIER 
 08-03-2023,Adults,Lodge Group Care UK Ltd,Home Care - Private Contractors Payment,829.51,0.00,COMMERCIAL SUPPLIER 
 14-03-2023,Adults,Home Sweet Home Care Ltd,Home Care - Private Contractors Payment,829.51,0.00,COMMERCIAL SUPPLIER 
 08-03-2023,Adults,Lodge Group Care UK Ltd,Home Care - Private Contractors Payment,829.84,0.00,COMMERCIAL SUPPLIER 
 28-03-2023,Adults,Prestige Care & Support Ltd,Home Care - Private Contractors Payment,829.84,0.00,COMMERCIAL SUPPLIER 
 06-03-2023,Adults,Home Support Services (Havering & Essex) Ltd,Home Care - Private Contractors Payment,830.17,0.00,COMMERCIAL SUPPLIER 
 06-03-2023,Adults,Westminster Homecare Ltd_a,Home Care - Private Contractors Payment,830.17,0.00,COMMERCIAL SUPPLIER 
 13-03-2023,Adults,Quality Healthcare Solutions Ltd t/a Kare Plus Romford,Home Care - Private Contractors Payment,830.17,0.00,COMMERCIAL SUPPLIER 
 06-03-2023,Adults,Home Support Services (Havering & Essex) Ltd,Home Care - Private Contractors Payment,830.50,0.00,COMMERCIAL SUPPLIER 
 08-03-2023,Adults,Cera Care Operations Ltd,Home Care - Private Contractors Payment,830.50,0.00,COMMERCIAL SUPPLIER 
 06-03-2023,Adults,Home Support Services (Havering & Essex) Ltd,Home Care - Private Contractors Payment,830.82,0.00,COMMERCIAL SUPPLIER 
 06-03-2023,Adults,Home Support Services (Havering & Essex) Ltd,Home Care - Private Contractors Payment,830.82,0.00,COMMERCIAL SUPPLIER 
 28-03-2023,Adults,Prestige Care & Support Ltd,Home Care - Private Contractors Payment,830.82,0.00,COMMERCIAL SUPPLIER 
 08-03-2023,Adults,Lodge Group Care UK Ltd,Home Care - Private Contractors Payment,831.81,0.00,COMMERCIAL SUPPLIER 
 16-03-2023,Adults,Care-Away Ltd T/A Care Support,Home Care - Private Contractors Payment,832.00,0.00,COMMERCIAL SUPPLIER 
 08-03-2023,Adults,Lodge Group Care UK Ltd,Home Care - Private Contractors Payment,832.14,0.00,COMMERCIAL SUPPLIER 
 08-03-2023,Adults,Lodge Group Care UK Ltd,Home Care - Private Contractors Payment,832.46,0.00,COMMERCIAL SUPPLIER 
 08-03-2023,Adults,Cera Care Operations Ltd,Home Care - Private Contractors Payment,832.46,0.00,COMMERCIAL SUPPLIER 
 29-03-2023,Adults,Cera Care Operations Ltd,Home Care - Private Contractors Payment,832.46,0.00,COMMERCIAL SUPPLIER 
 06-03-2023,Adults,Morepower Ltd t/a Aqs Homecare,Home Care - Private Contractors Payment,833.45,0.00,COMMERCIAL SUPPLIER 
 01-03-2023,Adults,Matrix SCM Ltd,Agency Staff,833.56,0.00,COMMERCIAL SUPPLIER 
 06-03-2023,Adults,Morepower Ltd t/a Aqs Homecare,Home Care - Private Contractors Payment,834.43,0.00,COMMERCIAL SUPPLIER 
 06-03-2023,Adults,Westminster Homecare Ltd_a,Home Care - Private Contractors Payment,834.43,0.00,COMMERCIAL SUPPLIER 
 22-03-2023,Adults,Matrix SCM Ltd,Agency Staff,834.74,0.00,COMMERCIAL SUPPLIER 
 22-03-2023,Adults,Matrix SCM Ltd,Agency Staff,834.74,0.00,COMMERCIAL SUPPLIER 
 22-03-2023,Adults,Matrix SCM Ltd,Agency Staff,834.74,0.00,COMMERCIAL SUPPLIER 
 06-03-2023,Adults,Morepower Ltd t/a Aqs Homecare,Home Care - Private Contractors Payment,834.76,0.00,COMMERCIAL SUPPLIER 
 08-03-2023,Adults,Lodge Group Care UK Ltd,Home Care - Private Contractors Payment,834.76,0.00,COMMERCIAL SUPPLIER 
 08-03-2023,Adults,Lodge Group Care UK Ltd,Home Care - Private Contractors Payment,834.76,0.00,COMMERCIAL SUPPLIER 
 29-03-2023,Adults,Cera Care Operations Ltd,Home Care - Private Contractors Payment,834.76,0.00,COMMERCIAL SUPPLIER 
 06-03-2023,Adults,Morepower Ltd t/a Aqs Homecare,Home Care - Private Contractors Payment,835.09,0.00,COMMERCIAL SUPPLIER 
 06-03-2023,Adults,Home Support Services (Havering & Essex) Ltd,Home Care - Private Contractors Payment,835.74,0.00,COMMERCIAL SUPPLIER 
 14-03-2023,Adults,Home Sweet Home Care Ltd,Home Care - Private Contractors Payment,836.40,0.00,COMMERCIAL SUPPLIER 
 20-03-2023,Adults,ECL Person Centred Care,Daycare - Private Contractors Payment,836.64,0.00,COMMERCIAL SUPPLIER 
 08-03-2023,Adults,Lodge Group Care UK Ltd,Home Care - Private Contractors Payment,838.70,0.00,COMMERCIAL SUPPLIER 
 29-03-2023,Adults,Cera Care Operations Ltd,Home Care - Private Contractors Payment,838.70,0.00,COMMERCIAL SUPPLIER 
 29-03-2023,Adults,Cera Care Operations Ltd,Home Care - Private Contractors Payment,839.02,0.00,COMMERCIAL SUPPLIER 
 06-03-2023,Adults,Morepower Ltd t/a Aqs Homecare,Home Care - Private Contractors Payment,839.35,0.00,COMMERCIAL SUPPLIER 
 02-03-2023,Adults,Star Mini Cabs.,Client Transport,840.00,0.00,COMMERCIAL SUPPLIER 
 08-03-2023,Adults,Cera Care Operations Ltd,Home Care - Private Contractors Payment,840.99,0.00,COMMERCIAL SUPPLIER 
 08-03-2023,Adults,Lodge Group Care UK Ltd,Home Care - Private Contractors Payment,841.32,0.00,COMMERCIAL SUPPLIER 
 06-03-2023,Adults,Home Support Services (Havering & Essex) Ltd,Home Care - Private Contractors Payment,841.65,0.00,COMMERCIAL SUPPLIER 
 08-03-2023,Adults,Cera Care Operations Ltd,Home Care - Private Contractors Payment,842.30,0.00,COMMERCIAL SUPPLIER 
 01-03-2023,Adults,Matrix SCM Ltd,Agency Staff,842.75,0.00,COMMERCIAL SUPPLIER 
 15-03-2023,Adults,Matrix SCM Ltd,Agency Staff,842.75,0.00,COMMERCIAL SUPPLIER 
 15-03-2023,Adults,Matrix SCM Ltd,Agency Staff,842.75,0.00,COMMERCIAL SUPPLIER 
 22-03-2023,Adults,Matrix SCM Ltd,Agency Staff,842.75,0.00,COMMERCIAL SUPPLIER 
 29-03-2023,Adults,Matrix SCM Ltd,Agency Staff,842.75,0.00,COMMERCIAL SUPPLIER 
 08-03-2023,Adults,Lodge Group Care UK Ltd,Home Care - Private Contractors Payment,842.96,0.00,COMMERCIAL SUPPLIER 
 06-03-2023,Adults,Home Support Services (Havering & Essex) Ltd,Home Care - Private Contractors Payment,843.29,0.00,COMMERCIAL SUPPLIER 
 02-03-2023,Adults,Carers Trust East Midlands,Home Care - Private Contractors Payment,846.24,0.00,COMMERCIAL SUPPLIER 
 08-03-2023,Adults,Lodge Group Care UK Ltd,Home Care - Private Contractors Payment,846.24,0.00,COMMERCIAL SUPPLIER 
 08-03-2023,Adults,Lodge Group Care UK Ltd,Home Care - Private Contractors Payment,846.24,0.00,COMMERCIAL SUPPLIER 
 14-03-2023,Adults,Home Sweet Home Care Ltd,Home Care - Private Contractors Payment,846.57,0.00,COMMERCIAL SUPPLIER 
 26-03-2023,Adults,Westminster Homecare Ltd_a,Home Care - Private Contractors Payment,846.57,0.00,COMMERCIAL SUPPLIER 
 29-03-2023,Adults,Cera Care Operations Ltd,Home Care - Private Contractors Payment,847.88,0.00,COMMERCIAL SUPPLIER 
 06-03-2023,Adults,Home Support Services (Havering & Essex) Ltd,Home Care - Private Contractors Payment,849.85,0.00,COMMERCIAL SUPPLIER 
 14-03-2023,Adults,Home Sweet Home Care Ltd,Home Care - Private Contractors Payment,856.08,0.00,COMMERCIAL SUPPLIER 
 28-03-2023,Adults,Prestige Care & Support Ltd,Home Care - Private Contractors Payment,856.08,0.00,COMMERCIAL SUPPLIER 
 28-03-2023,Adults,Prestige Care & Support Ltd,Home Care - Private Contractors Payment,856.08,0.00,COMMERCIAL SUPPLIER 
 16-03-2023,Adults,Care-Away Ltd T/A Care Support,Home Care - Private Contractors Payment,856.96,0.00,COMMERCIAL SUPPLIER 
 10-03-2023,Adults,Ladyville Lodge_a,Respite Care - Private Contractors Payment,857.14,0.00,COMMERCIAL SUPPLIER 
 14-03-2023,Adults,Home Sweet Home Care Ltd,Home Care - Private Contractors Payment,857.72,0.00,COMMERCIAL SUPPLIER 
 06-03-2023,Adults,Home Support Services (Havering & Essex) Ltd,Home Care - Private Contractors Payment,859.69,0.00,COMMERCIAL SUPPLIER 
 20-03-2023,Adults,Mayflower Travel,Client Transport,860.00,0.00,COMMERCIAL SUPPLIER 
 20-03-2023,Adults,Eastway Care Ltd_a,Daycare - Private Contractors Payment,860.00,0.00,COMMERCIAL SUPPLIER 
 20-03-2023,Adults,Eastway Care Ltd_a,Daycare - Private Contractors Payment,860.00,0.00,COMMERCIAL SUPPLIER 
 20-03-2023,Adults,Eastway Care Ltd_a,Daycare - Private Contractors Payment,860.00,0.00,COMMERCIAL SUPPLIER 
 13-03-2023,Adults,Quality Healthcare Solutions Ltd t/a Kare Plus Romford,Home Care - Private Contractors Payment,860.02,0.00,COMMERCIAL SUPPLIER 
 15-03-2023,Adults,London Care Plc_a,Home Care - Private Contractors Payment,860.02,0.00,COMMERCIAL SUPPLIER 
 06-03-2023,Adults,R G Care Ltd ,Daycare - Private Contractors Payment,864.00,0.00,COMMERCIAL SUPPLIER 
 06-03-2023,Adults,R G Care Ltd ,Daycare - Private Contractors Payment,864.00,0.00,COMMERCIAL SUPPLIER 
 20-03-2023,Adults,Funky Willows Ltd,Daycare - Private Contractors Payment,864.00,0.00,COMMERCIAL SUPPLIER 
 20-03-2023,Adults,Funky Willows Ltd,Daycare - Private Contractors Payment,864.00,0.00,COMMERCIAL SUPPLIER 
 20-03-2023,Adults,Funky Willows Ltd,Daycare - Private Contractors Payment,864.00,0.00,COMMERCIAL SUPPLIER 
 06-03-2023,Adults,Home Support Services (Havering & Essex) Ltd,Home Care - Private Contractors Payment,864.94,0.00,COMMERCIAL SUPPLIER 
 06-03-2023,Adults,Care-Away Ltd T/A Care Support,Home Care - Private Contractors Payment,865.28,0.00,COMMERCIAL SUPPLIER 
 02-03-2023,Adults,Carers Trust East Midlands,Home Care - Private Contractors Payment,865.92,0.00,COMMERCIAL SUPPLIER 
 02-03-2023,Adults,Carers Trust East Midlands,Home Care - Private Contractors Payment,865.92,0.00,COMMERCIAL SUPPLIER 
 02-03-2023,Adults,Carers Trust East Midlands,Home Care - Private Contractors Payment,865.92,0.00,COMMERCIAL SUPPLIER 
 02-03-2023,Adults,Carers Trust East Midlands,Home Care - Private Contractors Payment,865.92,0.00,COMMERCIAL SUPPLIER 
 02-03-2023,Adults,Carers Trust East Midlands,Home Care - Private Contractors Payment,865.92,0.00,COMMERCIAL SUPPLIER 
 26-03-2023,Adults,Personal Information � Redacted,Home Care - Private Contractors Payment,865.92,0.00,INDIVIDUALS 
 26-03-2023,Adults,Personal Information � Redacted,Home Care - Private Contractors Payment,865.92,0.00,INDIVIDUALS 
 22-03-2023,Adults,Matrix SCM Ltd,Agency Staff,866.74,0.00,COMMERCIAL SUPPLIER 
 28-03-2023,Adults,Prestige Care & Support Ltd,Home Care - Private Contractors Payment,872.81,0.00,COMMERCIAL SUPPLIER 
 03-03-2023,Adults,Headway East London,Daycare - Private Contractors Payment,875.52,0.00,COMMERCIAL SUPPLIER 
 14-03-2023,Adults,Home Sweet Home Care Ltd,Home Care - Private Contractors Payment,875.76,0.00,COMMERCIAL SUPPLIER 
 06-03-2023,Adults,Morepower Ltd t/a Aqs Homecare,Home Care - Private Contractors Payment,881.34,0.00,COMMERCIAL SUPPLIER 
 10-03-2023,Adults,Kadmiel Projects Ltd,Supported Other Accommodation - Private Contractors Payment,884.58,0.00,COMMERCIAL SUPPLIER 
 10-03-2023,Adults,Topaz Care and Support Co Ltd,Supported Other Accommodation - Private Contractors Payment,884.71,0.00,COMMERCIAL SUPPLIER 
 29-03-2023,Adults,Matrix SCM Ltd,Agency Staff,885.60,0.00,COMMERCIAL SUPPLIER 
 13-03-2023,Adults,Quality Healthcare Solutions Ltd t/a Kare Plus Romford,Home Care - Private Contractors Payment,891.18,0.00,COMMERCIAL SUPPLIER 
 08-03-2023,Adults,Cera Care Operations Ltd,Home Care - Private Contractors Payment,894.13,0.00,COMMERCIAL SUPPLIER 
 13-03-2023,Adults,Quality Healthcare Solutions Ltd t/a Kare Plus Romford,Home Care - Private Contractors Payment,903.64,0.00,COMMERCIAL SUPPLIER 
 29-03-2023,Adults,Prior Care Ltd_a,Home Care - Private Contractors Payment,904.30,0.00,COMMERCIAL SUPPLIER 
 08-03-2023,Adults,Cera Care Operations Ltd,Home Care - Private Contractors Payment,905.28,0.00,COMMERCIAL SUPPLIER 
 29-03-2023,Adults,Inna Care Ltd,Home Care - Private Contractors Payment,905.28,0.00,COMMERCIAL SUPPLIER 
 06-03-2023,Adults,Home Support Services (Havering & Essex) Ltd,Home Care - Private Contractors Payment,905.61,0.00,COMMERCIAL SUPPLIER 
 29-03-2023,Adults,Cera Care Operations Ltd,Home Care - Private Contractors Payment,905.61,0.00,COMMERCIAL SUPPLIER 
 01-03-2023,Adults,Matrix SCM Ltd,Agency Staff,906.48,0.00,COMMERCIAL SUPPLIER 
 08-03-2023,Adults,Matrix SCM Ltd,Agency Staff,906.48,0.00,COMMERCIAL SUPPLIER 
 15-03-2023,Adults,Matrix SCM Ltd,Agency Staff,906.48,0.00,COMMERCIAL SUPPLIER 
 22-03-2023,Adults,Matrix SCM Ltd,Agency Staff,906.48,0.00,COMMERCIAL SUPPLIER 
 01-03-2023,Adults,Matrix SCM Ltd,Agency Staff,906.60,0.00,COMMERCIAL SUPPLIER 
 29-03-2023,Adults,Prior Care Ltd_a,Home Care - Private Contractors Payment,908.56,0.00,COMMERCIAL SUPPLIER 
 22-03-2023,Adults,Matrix SCM Ltd,Agency Staff,909.44,0.00,COMMERCIAL SUPPLIER 
 01-03-2023,Adults,Matrix SCM Ltd,Agency Staff,910.08,0.00,COMMERCIAL SUPPLIER 
 22-03-2023,Adults,Matrix SCM Ltd,Agency Staff,910.08,0.00,COMMERCIAL SUPPLIER 
 29-03-2023,Adults,Matrix SCM Ltd,Agency Staff,910.08,0.00,COMMERCIAL SUPPLIER 
 27-03-2023,Adults,Tapestry_a.,Daycare - Private Contractors Payment,912.00,0.00,COMMERCIAL SUPPLIER 
 27-03-2023,Adults,Tapestry_a.,Daycare - Private Contractors Payment,912.00,0.00,COMMERCIAL SUPPLIER 
 27-03-2023,Adults,Tapestry_a.,Daycare - Private Contractors Payment,912.00,0.00,COMMERCIAL SUPPLIER 
 10-03-2023,Adults,Ebony Health Care Services Limited,Supported Other Accommodation - Private Contractors Payment,912.96,0.00,COMMERCIAL SUPPLIER 
 06-03-2023,Adults,Morepower Ltd t/a Aqs Homecare,Home Care - Private Contractors Payment,913.15,0.00,COMMERCIAL SUPPLIER 
 06-03-2023,Adults,Morepower Ltd t/a Aqs Homecare,Home Care - Private Contractors Payment,914.14,0.00,COMMERCIAL SUPPLIER 
 06-03-2023,Adults,Home Support Services (Havering & Essex) Ltd,Home Care - Private Contractors Payment,915.45,0.00,COMMERCIAL SUPPLIER 
 08-03-2023,Adults,Matrix SCM Ltd,Agency Staff,916.56,0.00,COMMERCIAL SUPPLIER 
 06-03-2023,Adults,Morepower Ltd t/a Aqs Homecare,Home Care - Private Contractors Payment,920.37,0.00,COMMERCIAL SUPPLIER 
 03-03-2023,Adults,Anytime Care 2020_a,Home Care - Private Contractors Payment,923.98,0.00,COMMERCIAL SUPPLIER 
 28-03-2023,Adults,Prestige Care & Support Ltd,Home Care - Private Contractors Payment,924.96,0.00,COMMERCIAL SUPPLIER 
 28-03-2023,Adults,Prestige Care & Support Ltd,Home Care - Private Contractors Payment,924.96,0.00,COMMERCIAL SUPPLIER 
 29-03-2023,Adults,Cera Care Operations Ltd,Home Care - Private Contractors Payment,926.27,0.00,COMMERCIAL SUPPLIER 
 10-03-2023,Adults,Willows Care Home - Churchgate Healthcare (Willows) Ltd,Nursing Care Income,926.36,0.00,COMMERCIAL SUPPLIER 
 10-03-2023,Adults,Alpine Resources UK Ltd,Supported Other Accommodation - Private Contractors Payment,927.14,0.00,COMMERCIAL SUPPLIER 
 10-03-2023,Adults,Fresh Tree Care Services,Supported Other Accommodation - Private Contractors Payment,928.00,0.00,COMMERCIAL SUPPLIER 
 10-03-2023,Adults,Oaks Residential Home,Respite Care - Private Contractors Payment,928.57,0.00,COMMERCIAL SUPPLIER 
 16-03-2023,Adults,Care-Away Ltd T/A Care Support,Home Care - Private Contractors Payment,931.84,0.00,COMMERCIAL SUPPLIER 
 16-03-2023,Adults,Care-Away Ltd T/A Care Support,Home Care - Private Contractors Payment,931.84,0.00,COMMERCIAL SUPPLIER 
 16-03-2023,Adults,Care-Away Ltd T/A Care Support,Home Care - Private Contractors Payment,931.84,0.00,COMMERCIAL SUPPLIER 
 16-03-2023,Adults,Care-Away Ltd T/A Care Support,Home Care - Private Contractors Payment,931.84,0.00,COMMERCIAL SUPPLIER 
 16-03-2023,Adults,Care-Away Ltd T/A Care Support,Home Care - Private Contractors Payment,931.84,0.00,COMMERCIAL SUPPLIER 
 08-03-2023,Adults,Cera Care Operations Ltd,Home Care - Private Contractors Payment,931.85,0.00,COMMERCIAL SUPPLIER 
 14-03-2023,Adults,Home Sweet Home Care Ltd,Home Care - Private Contractors Payment,934.80,0.00,COMMERCIAL SUPPLIER 
 29-03-2023,Adults,Cera Care Operations Ltd,Home Care - Private Contractors Payment,936.11,0.00,COMMERCIAL SUPPLIER 
 10-03-2023,Adults,Pathways Care Group Ltd,Residential Placements - Private Contractors Payment,936.33,0.00,COMMERCIAL SUPPLIER 
 03-03-2023,Adults,Anytime Care 2020_a,Home Care - Private Contractors Payment,938.41,0.00,COMMERCIAL SUPPLIER 
 10-03-2023,Adults,Meadowbanks,Residential Placements - Private Contractors Payment,940.95,0.00,COMMERCIAL SUPPLIER 
 06-03-2023,Adults,Morepower Ltd t/a Aqs Homecare,Home Care - Private Contractors Payment,941.69,0.00,COMMERCIAL SUPPLIER 
 10-03-2023,Adults,Fountains Care Centre - Bondcare,Nursing Homes - Private Contractors Payment,942.86,0.00,COMMERCIAL SUPPLIER 
 06-03-2023,Adults,Home Support Services (Havering & Essex) Ltd,Home Care - Private Contractors Payment,943.98,0.00,COMMERCIAL SUPPLIER 
 02-03-2023,Adults,Gims Care Solution Ltd_a,Home Care - Private Contractors Payment,944.64,0.00,NON COMMERCIAL SUPPLIER 
 03-03-2023,Adults,Passion Tree Care Services Ltd,Home Care - Private Contractors Payment,944.64,0.00,COMMERCIAL SUPPLIER 
 29-03-2023,Adults,Inna Care Ltd,Home Care - Private Contractors Payment,944.64,0.00,COMMERCIAL SUPPLIER 
 10-03-2023,Adults,The Cedars,Supported Other Accommodation - Private Contractors Payment,947.89,0.00,COMMERCIAL SUPPLIER 
 10-03-2023,Adults,Outlook Care - 4 Peel Way,Supported Other Accommodation - Private Contractors Payment,950.37,0.00,COMMERCIAL SUPPLIER 
 29-03-2023,Adults,London Care Plc_a,Home Care - Private Contractors Payment,950.87,0.00,COMMERCIAL SUPPLIER 
 10-03-2023,Adults,Omega Elifar Ltd,Residential Placements - Private Contractors Payment,951.20,0.00,COMMERCIAL SUPPLIER 
 15-03-2023,Adults,London Care Plc_a,Home Care - Private Contractors Payment,952.51,0.00,COMMERCIAL SUPPLIER 
 29-03-2023,Adults,Matrix SCM Ltd,Agency Staff,956.41,0.00,COMMERCIAL SUPPLIER 
 08-03-2023,Adults,Matrix SCM Ltd,Agency Staff,959.40,0.00,COMMERCIAL SUPPLIER 
 28-03-2023,Adults,Prestige Care & Support Ltd,Home Care - Private Contractors Payment,959.73,0.00,COMMERCIAL SUPPLIER 
 15-03-2023,Adults,London Care Plc_a,Home Care - Private Contractors Payment,963.34,0.00,COMMERCIAL SUPPLIER 
 26-03-2023,Adults,Personal Information � Redacted,Home Care - Private Contractors Payment,964.32,0.00,INDIVIDUALS 
 16-03-2023,Adults,Care-Away Ltd T/A Care Support,Home Care - Private Contractors Payment,965.12,0.00,COMMERCIAL SUPPLIER 
 16-03-2023,Adults,Care-Away Ltd T/A Care Support,Home Care - Private Contractors Payment,965.12,0.00,COMMERCIAL SUPPLIER 
 10-03-2023,Adults,Beechcourt Care Centre - Bondcare,Nursing Homes - Private Contractors Payment,966.86,0.00,COMMERCIAL SUPPLIER 
 08-03-2023,Adults,Cera Care Operations Ltd,Home Care - Private Contractors Payment,968.58,0.00,COMMERCIAL SUPPLIER 
 06-03-2023,Adults,Morepower Ltd t/a Aqs Homecare,Home Care - Private Contractors Payment,969.24,0.00,COMMERCIAL SUPPLIER 
 06-03-2023,Adults,Home Support Services (Havering & Essex) Ltd,Home Care - Private Contractors Payment,974.49,0.00,COMMERCIAL SUPPLIER 
 29-03-2023,Adults,Cera Care Operations Ltd,Home Care - Private Contractors Payment,975.47,0.00,COMMERCIAL SUPPLIER 
 28-03-2023,Adults,Prestige Care & Support Ltd,Home Care - Private Contractors Payment,976.78,0.00,COMMERCIAL SUPPLIER 
 28-03-2023,Adults,Prestige Care & Support Ltd,Home Care - Private Contractors Payment,978.42,0.00,COMMERCIAL SUPPLIER 
 10-03-2023,Adults,DMP Healthcare (Cherry Orchard) Ltd,Nursing Homes - Private Contractors Payment,980.13,0.00,COMMERCIAL SUPPLIER 
 06-03-2023,Adults,Home Support Services (Havering & Essex) Ltd,Home Care - Private Contractors Payment,985.64,0.00,COMMERCIAL SUPPLIER 
 06-03-2023,Adults,Home Support Services (Havering & Essex) Ltd,Home Care - Private Contractors Payment,987.94,0.00,COMMERCIAL SUPPLIER 
 13-03-2023,Adults,Quality Healthcare Solutions Ltd t/a Kare Plus Romford,Home Care - Private Contractors Payment,991.22,0.00,COMMERCIAL SUPPLIER 
 15-03-2023,Adults,Matrix SCM Ltd,Agency Staff,991.30,0.00,COMMERCIAL SUPPLIER 
 08-03-2023,Adults,Lodge Group Care UK Ltd,Home Care - Private Contractors Payment,992.86,0.00,COMMERCIAL SUPPLIER 
 01-03-2023,Adults,Hospiva Care & Associates Agency Ltd_a,Home Care - Private Contractors Payment,995.48,0.00,COMMERCIAL SUPPLIER 
 28-03-2023,Adults,Prestige Care & Support Ltd,Home Care - Private Contractors Payment,996.46,0.00,COMMERCIAL SUPPLIER 
 10-03-2023,Adults,2 Peel Way - Outlook Care,Supported Other Accommodation - Private Contractors Payment,998.35,0.00,NON COMMERCIAL SUPPLIER 
 10-03-2023,Adults,IECC Care,Supported Other Accommodation - Private Contractors Payment,998.76,0.00,COMMERCIAL SUPPLIER 
 28-03-2023,Adults,Prestige Care & Support Ltd,Home Care - Private Contractors Payment,999.09,0.00,COMMERCIAL SUPPLIER 
 15-03-2023,Adults,Matrix SCM Ltd,Agency Staff,999.92,0.00,COMMERCIAL SUPPLIER 
 29-03-2023,Adults,Matrix SCM Ltd,Agency Staff,999.92,0.00,COMMERCIAL SUPPLIER 
 28-03-2023,Adults,Prestige Care & Support Ltd,Home Care - Private Contractors Payment,1002.37,0.00,COMMERCIAL SUPPLIER 
 10-03-2023,Adults,Coastal Supported Living CIC,Supported Other Accommodation - Private Contractors Payment,1002.56,0.00,COMMERCIAL SUPPLIER 
 10-03-2023,Adults,Coastal Supported Living CIC,Supported Other Accommodation - Private Contractors Payment,1002.56,0.00,COMMERCIAL SUPPLIER 
 14-03-2023,Adults,Home Sweet Home Care Ltd,Home Care - Private Contractors Payment,1002.70,0.00,COMMERCIAL SUPPLIER 
 28-03-2023,Adults,Prestige Care & Support Ltd,Home Care - Private Contractors Payment,1003.68,0.00,COMMERCIAL SUPPLIER 
 29-03-2023,Adults,London Care Plc_a,Home Care - Private Contractors Payment,1011.55,0.00,COMMERCIAL SUPPLIER 
 14-03-2023,Adults,Home Sweet Home Care Ltd,Home Care - Private Contractors Payment,1014.18,0.00,COMMERCIAL SUPPLIER 
 16-03-2023,Adults,Care-Away Ltd T/A Care Support,Home Care - Private Contractors Payment,1015.04,0.00,COMMERCIAL SUPPLIER 
 14-03-2023,Adults,Home Sweet Home Care Ltd,Home Care - Private Contractors Payment,1015.82,0.00,COMMERCIAL SUPPLIER 
 14-03-2023,Adults,Home Sweet Home Care Ltd,Home Care - Private Contractors Payment,1016.47,0.00,COMMERCIAL SUPPLIER 
 05-03-2023,Adults,Romford Private Hire Ltd,Client Transport,1020.00,0.00,COMMERCIAL SUPPLIER 
 01-03-2023,Adults,Hospiva Care & Associates Agency Ltd_a,Home Care - Private Contractors Payment,1020.74,0.00,COMMERCIAL SUPPLIER 
 01-03-2023,Adults,Hospiva Care & Associates Agency Ltd_a,Home Care - Private Contractors Payment,1022.38,0.00,COMMERCIAL SUPPLIER 
 06-03-2023,Adults,Morepower Ltd t/a Aqs Homecare,Home Care - Private Contractors Payment,1023.36,0.00,COMMERCIAL SUPPLIER 
 07-03-2023,Adults,Amachyck Care Solution Ltd.,Home Care - Private Contractors Payment,1023.36,0.00,COMMERCIAL SUPPLIER 
 07-03-2023,Adults,Amachyck Care Solution Ltd.,Home Care - Private Contractors Payment,1023.36,0.00,COMMERCIAL SUPPLIER 
 07-03-2023,Adults,Amachyck Care Solution Ltd.,Home Care - Private Contractors Payment,1023.36,0.00,COMMERCIAL SUPPLIER 
 26-03-2023,Adults,Personal Information � Redacted,Home Care - Private Contractors Payment,1023.36,0.00,INDIVIDUALS 
 26-03-2023,Adults,Personal Information � Redacted,Home Care - Private Contractors Payment,1023.36,0.00,INDIVIDUALS 
 31-03-2023,Adults,IJB Healthcare Ltd,Home Care - Private Contractors Payment,1023.36,0.00,COMMERCIAL SUPPLIER 
 31-03-2023,Adults,IJB Healthcare Ltd,Home Care - Private Contractors Payment,1023.36,0.00,COMMERCIAL SUPPLIER 
 06-03-2023,Adults,Home Support Services (Havering & Essex) Ltd,Home Care - Private Contractors Payment,1024.02,0.00,COMMERCIAL SUPPLIER 
 29-03-2023,Adults,London Care Plc_a,Home Care - Private Contractors Payment,1024.34,0.00,COMMERCIAL SUPPLIER 
 20-03-2023,Adults,Trinity London Care Ltd,Daycare - Private Contractors Payment,1025.20,0.00,COMMERCIAL SUPPLIER 
 20-03-2023,Adults,Trinity London Care Ltd,Daycare - Private Contractors Payment,1025.20,0.00,COMMERCIAL SUPPLIER 
 20-03-2023,Adults,Trinity London Care Ltd,Daycare - Private Contractors Payment,1025.20,0.00,COMMERCIAL SUPPLIER 
 06-03-2023,Adults,Home Support Services (Havering & Essex) Ltd,Home Care - Private Contractors Payment,1026.97,0.00,COMMERCIAL SUPPLIER 
 06-03-2023,Adults,Home Support Services (Havering & Essex) Ltd,Home Care - Private Contractors Payment,1026.97,0.00,COMMERCIAL SUPPLIER 
 02-03-2023,Adults,Gims Care Solution Ltd_a,Home Care - Private Contractors Payment,1027.56,0.00,NON COMMERCIAL SUPPLIER 
 10-03-2023,Adults,Ebony Health Care Services Limited,Supported Other Accommodation - Private Contractors Payment,1027.68,0.00,COMMERCIAL SUPPLIER 
 15-03-2023,Adults,Matrix SCM Ltd,Agency Staff,1027.76,0.00,COMMERCIAL SUPPLIER 
 09-03-2023,Adults,Prior Care Ltd_a,Home Care - Private Contractors Payment,1028.94,0.00,COMMERCIAL SUPPLIER 
 17-03-2023,Adults,Ebony Health Care Services Limited,Home Care - Private Contractors Payment,1030.16,0.00,COMMERCIAL SUPPLIER 
 17-03-2023,Adults,Ebony Health Care Services Limited,Home Care - Private Contractors Payment,1030.16,0.00,COMMERCIAL SUPPLIER 
 17-03-2023,Adults,Ebony Health Care Services Limited,Home Care - Private Contractors Payment,1030.16,0.00,COMMERCIAL SUPPLIER 
 17-03-2023,Adults,Ebony Health Care Services Limited,Home Care - Private Contractors Payment,1030.16,0.00,COMMERCIAL SUPPLIER 
 17-03-2023,Adults,Ebony Health Care Services Limited,Home Care - Private Contractors Payment,1030.16,0.00,COMMERCIAL SUPPLIER 
 17-03-2023,Adults,Ebony Health Care Services Limited,Home Care - Private Contractors Payment,1030.16,0.00,COMMERCIAL SUPPLIER 
 17-03-2023,Adults,Ebony Health Care Services Limited,Home Care - Private Contractors Payment,1030.16,0.00,COMMERCIAL SUPPLIER 
 29-03-2023,Adults,Matrix SCM Ltd,Agency Staff,1032.98,0.00,COMMERCIAL SUPPLIER 
 01-03-2023,Adults,Matrix SCM Ltd,Agency Staff,1033.00,0.00,COMMERCIAL SUPPLIER 
 10-03-2023,Adults,Coastal Supported Living CIC,Supported Other Accommodation - Private Contractors Payment,1038.37,0.00,COMMERCIAL SUPPLIER 
 28-03-2023,Adults,Prestige Care & Support Ltd,Home Care - Private Contractors Payment,1038.78,0.00,COMMERCIAL SUPPLIER 
 01-03-2023,Adults,Matrix SCM Ltd,Agency Staff,1039.36,0.00,COMMERCIAL SUPPLIER 
 08-03-2023,Adults,Lodge Group Care UK Ltd,Home Care - Private Contractors Payment,1039.76,0.00,COMMERCIAL SUPPLIER 
 29-03-2023,Adults,London Care Plc_a,Home Care - Private Contractors Payment,1039.76,0.00,COMMERCIAL SUPPLIER 
 01-03-2023,Adults,Phoenix Care Havering Ltd,Home Care - Private Contractors Payment,1043.04,0.00,COMMERCIAL SUPPLIER 
 10-03-2023,Adults,Independent Community Support Ltd t/a Wingletye Lodge ,Supported Other Accommodation - Private Contractors Payment,1044.00,0.00,COMMERCIAL SUPPLIER 
 10-03-2023,Adults,Personal Information � Redacted,Supported Other Accommodation - Private Contractors Payment,1044.00,0.00,INDIVIDUALS 
 14-03-2023,Adults,Home Sweet Home Care Ltd,Home Care - Private Contractors Payment,1044.68,0.00,COMMERCIAL SUPPLIER 
 16-03-2023,Adults,Care-Away Ltd T/A Care Support,Home Care - Private Contractors Payment,1048.32,0.00,COMMERCIAL SUPPLIER 
 16-03-2023,Adults,Care-Away Ltd T/A Care Support,Home Care - Private Contractors Payment,1048.32,0.00,COMMERCIAL SUPPLIER 
 16-03-2023,Adults,Care-Away Ltd T/A Care Support,Home Care - Private Contractors Payment,1048.32,0.00,COMMERCIAL SUPPLIER 
 06-03-2023,Adults,Morepower Ltd t/a Aqs Homecare,Home Care - Private Contractors Payment,1049.93,0.00,COMMERCIAL SUPPLIER 
 06-03-2023,Adults,Morepower Ltd t/a Aqs Homecare,Home Care - Private Contractors Payment,1050.58,0.00,COMMERCIAL SUPPLIER 
 14-03-2023,Adults,Home Sweet Home Care Ltd,Home Care - Private Contractors Payment,1052.88,0.00,COMMERCIAL SUPPLIER 
 14-03-2023,Adults,Home Sweet Home Care Ltd,Home Care - Private Contractors Payment,1054.52,0.00,COMMERCIAL SUPPLIER 
 08-03-2023,Adults,Lodge Group Care UK Ltd,Home Care - Private Contractors Payment,1055.18,0.00,COMMERCIAL SUPPLIER 
 14-03-2023,Adults,Home Sweet Home Care Ltd,Home Care - Private Contractors Payment,1055.18,0.00,COMMERCIAL SUPPLIER 
 10-03-2023,Adults,Infinite Healthcare Services Ltd.,Supported Other Accommodation - Private Contractors Payment,1056.43,0.00,COMMERCIAL SUPPLIER 
 10-03-2023,Adults,The Cedars,Supported Other Accommodation - Private Contractors Payment,1057.26,0.00,COMMERCIAL SUPPLIER 
 06-03-2023,Adults,Morepower Ltd t/a Aqs Homecare,Home Care - Private Contractors Payment,1057.47,0.00,COMMERCIAL SUPPLIER 
 10-03-2023,Adults,Black Swan International Ltd - Drummonds,Residential Placements - Private Contractors Payment,1058.40,0.00,COMMERCIAL SUPPLIER 
 13-03-2023,Adults,John Stanleys Care Agency Ltd,Home Care - Private Contractors Payment,1060.10,0.00,COMMERCIAL SUPPLIER 
 06-03-2023,Adults,Home Support Services (Havering & Essex) Ltd,Home Care - Private Contractors Payment,1062.72,0.00,COMMERCIAL SUPPLIER 
 06-03-2023,Adults,Home Support Services (Havering & Essex) Ltd,Home Care - Private Contractors Payment,1062.72,0.00,COMMERCIAL SUPPLIER 
 07-03-2023,Adults,Crystalize Care Services Ltd,Home Care - Private Contractors Payment,1062.72,0.00,COMMERCIAL SUPPLIER 
 07-03-2023,Adults,Rosemont Care Limited,Home Care - Private Contractors Payment,1062.72,0.00,COMMERCIAL SUPPLIER 
 14-03-2023,Adults,Home Sweet Home Care Ltd,Home Care - Private Contractors Payment,1062.72,0.00,COMMERCIAL SUPPLIER 
 29-03-2023,Adults,Inna Care Ltd,Home Care - Private Contractors Payment,1062.72,0.00,COMMERCIAL SUPPLIER 
 31-03-2023,Adults,Crystalize Care Services Ltd,Home Care - Private Contractors Payment,1062.72,0.00,COMMERCIAL SUPPLIER 
 14-03-2023,Adults,Home Sweet Home Care Ltd,Home Care - Private Contractors Payment,1064.69,0.00,COMMERCIAL SUPPLIER 
 17-03-2023,Adults,Ebony Health Care Services Limited,Home Care - Private Contractors Payment,1066.95,0.00,COMMERCIAL SUPPLIER 
 14-03-2023,Adults,Home Sweet Home Care Ltd,Home Care - Private Contractors Payment,1066.98,0.00,COMMERCIAL SUPPLIER 
 29-03-2023,Adults,Matrix SCM Ltd,Agency Staff,1070.12,0.00,COMMERCIAL SUPPLIER 
 15-03-2023,Adults,Matrix SCM Ltd,Agency Staff,1071.84,0.00,COMMERCIAL SUPPLIER 
 08-03-2023,Adults,Cera Care Operations Ltd,Home Care - Private Contractors Payment,1071.90,0.00,COMMERCIAL SUPPLIER 
 10-03-2023,Adults,Outlook Care - 4 Peel Way,Supported Other Accommodation - Private Contractors Payment,1072.05,0.00,COMMERCIAL SUPPLIER 
 06-03-2023,Adults,Home Support Services (Havering & Essex) Ltd,Home Care - Private Contractors Payment,1072.56,0.00,COMMERCIAL SUPPLIER 
 14-03-2023,Adults,Home Sweet Home Care Ltd,Home Care - Private Contractors Payment,1072.56,0.00,COMMERCIAL SUPPLIER 
 06-03-2023,Adults,Home Support Services (Havering & Essex) Ltd,Home Care - Private Contractors Payment,1073.22,0.00,COMMERCIAL SUPPLIER 
 14-03-2023,Adults,Home Sweet Home Care Ltd,Home Care - Private Contractors Payment,1074.86,0.00,COMMERCIAL SUPPLIER 
 14-03-2023,Adults,Home Sweet Home Care Ltd,Home Care - Private Contractors Payment,1077.15,0.00,COMMERCIAL SUPPLIER 
 10-03-2023,Adults,The Cottage Residential Care Home,Residential Placements - Private Contractors Payment,1077.43,0.00,COMMERCIAL SUPPLIER 
 06-03-2023,Adults,Home Support Services (Havering & Essex) Ltd,Home Care - Private Contractors Payment,1080.43,0.00,COMMERCIAL SUPPLIER 
 06-03-2023,Adults,Home Support Services (Havering & Essex) Ltd,Home Care - Private Contractors Payment,1080.76,0.00,COMMERCIAL SUPPLIER 
 06-03-2023,Adults,Home Support Services (Havering & Essex) Ltd,Home Care - Private Contractors Payment,1080.76,0.00,COMMERCIAL SUPPLIER 
 09-03-2023,Adults,Prior Care Ltd_a,Home Care - Private Contractors Payment,1082.40,0.00,COMMERCIAL SUPPLIER 
 09-03-2023,Adults,Prior Care Ltd_a,Home Care - Private Contractors Payment,1082.40,0.00,COMMERCIAL SUPPLIER 
 29-03-2023,Adults,Prior Care Ltd_a,Home Care - Private Contractors Payment,1082.40,0.00,COMMERCIAL SUPPLIER 
 03-03-2023,Adults,Anytime Care 2020_a,Home Care - Private Contractors Payment,1084.04,0.00,COMMERCIAL SUPPLIER 
 14-03-2023,Adults,Home Sweet Home Care Ltd,Home Care - Private Contractors Payment,1084.04,0.00,COMMERCIAL SUPPLIER 
 10-03-2023,Adults,Care Management Group Ltd - The Ridgeway,Supported Other Accommodation - Private Contractors Payment,1085.18,0.00,COMMERCIAL SUPPLIER 
 10-03-2023,Adults,Sahara Care Ltd,Respite Care - Private Contractors Payment,1086.29,0.00,COMMERCIAL SUPPLIER 
 29-03-2023,Adults,Prior Care Ltd_a,Home Care - Private Contractors Payment,1086.34,0.00,COMMERCIAL SUPPLIER 
 10-03-2023,Adults,Gims Care Solution Ltd_a,Supported Other Accommodation - Private Contractors Payment,1087.50,0.00,NON COMMERCIAL SUPPLIER 
 10-03-2023,Adults,Protecthand Care Ltd ,Supported Other Accommodation - Private Contractors Payment,1087.50,0.00,COMMERCIAL SUPPLIER 
 14-03-2023,Adults,Home Sweet Home Care Ltd,Home Care - Private Contractors Payment,1087.98,0.00,COMMERCIAL SUPPLIER 
 14-03-2023,Adults,Home Sweet Home Care Ltd,Home Care - Private Contractors Payment,1088.30,0.00,COMMERCIAL SUPPLIER 
 10-03-2023,Adults,Nightingale Residential Care Home Ltd,Respite Care - Private Contractors Payment,1092.14,0.00,COMMERCIAL SUPPLIER 
 10-03-2023,Adults,Lodge Lane Care Home Limited,Respite Care - Private Contractors Payment,1092.14,0.00,COMMERCIAL SUPPLIER 
 14-03-2023,Adults,Home Sweet Home Care Ltd,Home Care - Private Contractors Payment,1092.24,0.00,COMMERCIAL SUPPLIER 
 28-03-2023,Adults,Prestige Care & Support Ltd,Home Care - Private Contractors Payment,1092.24,0.00,COMMERCIAL SUPPLIER 
 28-03-2023,Adults,Prestige Care & Support Ltd,Home Care - Private Contractors Payment,1092.24,0.00,COMMERCIAL SUPPLIER 
 29-03-2023,Adults,Prior Care Ltd_a,Home Care - Private Contractors Payment,1092.24,0.00,COMMERCIAL SUPPLIER 
 29-03-2023,Adults,Prior Care Ltd_a,Home Care - Private Contractors Payment,1092.24,0.00,COMMERCIAL SUPPLIER 
 13-03-2023,Adults,Quality Healthcare Solutions Ltd t/a Kare Plus Romford,Home Care - Private Contractors Payment,1092.90,0.00,COMMERCIAL SUPPLIER 
 14-03-2023,Adults,Home Sweet Home Care Ltd,Home Care - Private Contractors Payment,1092.90,0.00,COMMERCIAL SUPPLIER 
 28-03-2023,Adults,Prestige Care & Support Ltd,Home Care - Private Contractors Payment,1092.90,0.00,COMMERCIAL SUPPLIER 
 06-03-2023,Adults,Home Support Services (Havering & Essex) Ltd,Home Care - Private Contractors Payment,1093.55,0.00,COMMERCIAL SUPPLIER 
 29-03-2023,Adults,Cera Care Operations Ltd,Home Care - Private Contractors Payment,1093.55,0.00,COMMERCIAL SUPPLIER 
 08-03-2023,Adults,Lodge Group Care UK Ltd,Home Care - Private Contractors Payment,1093.88,0.00,COMMERCIAL SUPPLIER 
 06-03-2023,Adults,Home Support Services (Havering & Essex) Ltd,Home Care - Private Contractors Payment,1094.21,0.00,COMMERCIAL SUPPLIER 
 01-03-2023,Adults,Matrix SCM Ltd,Agency Staff,1094.74,0.00,COMMERCIAL SUPPLIER 
 08-03-2023,Adults,Matrix SCM Ltd,Agency Staff,1094.74,0.00,COMMERCIAL SUPPLIER 
 06-03-2023,Adults,Home Support Services (Havering & Essex) Ltd,Home Care - Private Contractors Payment,1094.86,0.00,COMMERCIAL SUPPLIER 
 10-03-2023,Adults,Masumin Ltd t/s Abbeleigh House,Residential Care Income,1095.76,0.00,COMMERCIAL SUPPLIER 
 14-03-2023,Adults,Home Sweet Home Care Ltd,Home Care - Private Contractors Payment,1096.18,0.00,COMMERCIAL SUPPLIER 
 10-03-2023,Adults,Outreach Support Services Ltd,Supported Other Accommodation - Private Contractors Payment,1096.20,0.00,COMMERCIAL SUPPLIER 
 08-03-2023,Adults,Cera Care Operations Ltd,Home Care - Private Contractors Payment,1096.50,0.00,COMMERCIAL SUPPLIER 
 14-03-2023,Adults,Home Sweet Home Care Ltd,Home Care - Private Contractors Payment,1096.50,0.00,COMMERCIAL SUPPLIER 
 14-03-2023,Adults,Home Sweet Home Care Ltd,Home Care - Private Contractors Payment,1097.16,0.00,COMMERCIAL SUPPLIER 
 14-03-2023,Adults,Home Sweet Home Care Ltd,Home Care - Private Contractors Payment,1097.49,0.00,COMMERCIAL SUPPLIER 
 14-03-2023,Adults,Home Sweet Home Care Ltd,Home Care - Private Contractors Payment,1097.49,0.00,COMMERCIAL SUPPLIER 
 29-03-2023,Adults,Cera Care Operations Ltd,Home Care - Private Contractors Payment,1097.49,0.00,COMMERCIAL SUPPLIER 
 16-03-2023,Adults,Care-Away Ltd T/A Care Support,Home Care - Private Contractors Payment,1098.24,0.00,COMMERCIAL SUPPLIER 
 13-03-2023,Adults,Quality Healthcare Solutions Ltd t/a Kare Plus Romford,Home Care - Private Contractors Payment,1098.47,0.00,COMMERCIAL SUPPLIER 
 14-03-2023,Adults,Home Sweet Home Care Ltd,Home Care - Private Contractors Payment,1098.47,0.00,COMMERCIAL SUPPLIER 
 06-03-2023,Adults,Home Support Services (Havering & Essex) Ltd,Home Care - Private Contractors Payment,1098.80,0.00,COMMERCIAL SUPPLIER 
 09-03-2023,Adults,Prior Care Ltd_a,Home Care - Private Contractors Payment,1099.13,0.00,COMMERCIAL SUPPLIER 
 09-03-2023,Adults,Prior Care Ltd_a,Home Care - Private Contractors Payment,1099.46,0.00,COMMERCIAL SUPPLIER 
 28-03-2023,Adults,Prestige Care & Support Ltd,Home Care - Private Contractors Payment,1099.78,0.00,COMMERCIAL SUPPLIER 
 09-03-2023,Adults,Prior Care Ltd_a,Home Care - Private Contractors Payment,1100.44,0.00,COMMERCIAL SUPPLIER 
 14-03-2023,Adults,Home Sweet Home Care Ltd,Home Care - Private Contractors Payment,1101.42,0.00,COMMERCIAL SUPPLIER 
 14-03-2023,Adults,Home Sweet Home Care Ltd,Home Care - Private Contractors Payment,1101.42,0.00,COMMERCIAL SUPPLIER 
 10-03-2023,Adults,Lodge Lane Care Home Limited,Residential Placements - Private Contractors Payment,1102.00,0.00,COMMERCIAL SUPPLIER 
 01-03-2023,Adults,Recruitcare Professionals Ltd ,Home Care - Private Contractors Payment,1102.08,0.00,COMMERCIAL SUPPLIER 
 02-03-2023,Adults,IJB Healthcare Ltd,Home Care - Private Contractors Payment,1102.08,0.00,COMMERCIAL SUPPLIER 
 02-03-2023,Adults,IJB Healthcare Ltd,Home Care - Private Contractors Payment,1102.08,0.00,COMMERCIAL SUPPLIER 
 03-03-2023,Adults,Passion Tree Care Services Ltd,Home Care - Private Contractors Payment,1102.08,0.00,COMMERCIAL SUPPLIER 
 03-03-2023,Adults,Passion Tree Care Services Ltd,Home Care - Private Contractors Payment,1102.08,0.00,COMMERCIAL SUPPLIER 
 06-03-2023,Adults,Home Support Services (Havering & Essex) Ltd,Home Care - Private Contractors Payment,1102.08,0.00,COMMERCIAL SUPPLIER 
 06-03-2023,Adults,Home Support Services (Havering & Essex) Ltd,Home Care - Private Contractors Payment,1102.08,0.00,COMMERCIAL SUPPLIER 
 06-03-2023,Adults,Home Support Services (Havering & Essex) Ltd,Home Care - Private Contractors Payment,1102.08,0.00,COMMERCIAL SUPPLIER 
 06-03-2023,Adults,Home Support Services (Havering & Essex) Ltd,Home Care - Private Contractors Payment,1102.08,0.00,COMMERCIAL SUPPLIER 
 06-03-2023,Adults,Home Support Services (Havering & Essex) Ltd,Home Care - Private Contractors Payment,1102.08,0.00,COMMERCIAL SUPPLIER 
 06-03-2023,Adults,Home Support Services (Havering & Essex) Ltd,Home Care - Private Contractors Payment,1102.08,0.00,COMMERCIAL SUPPLIER 
 06-03-2023,Adults,Home Support Services (Havering & Essex) Ltd,Home Care - Private Contractors Payment,1102.08,0.00,COMMERCIAL SUPPLIER 
 06-03-2023,Adults,Home Support Services (Havering & Essex) Ltd,Home Care - Private Contractors Payment,1102.08,0.00,COMMERCIAL SUPPLIER 
 06-03-2023,Adults,Home Support Services (Havering & Essex) Ltd,Home Care - Private Contractors Payment,1102.08,0.00,COMMERCIAL SUPPLIER 
 06-03-2023,Adults,Home Support Services (Havering & Essex) Ltd,Home Care - Private Contractors Payment,1102.08,0.00,COMMERCIAL SUPPLIER 
 06-03-2023,Adults,Home Support Services (Havering & Essex) Ltd,Home Care - Private Contractors Payment,1102.08,0.00,COMMERCIAL SUPPLIER 
 07-03-2023,Adults,Crystalize Care Services Ltd,Home Care - Private Contractors Payment,1102.08,0.00,COMMERCIAL SUPPLIER 
 07-03-2023,Adults,Crystalize Care Services Ltd,Home Care - Private Contractors Payment,1102.08,0.00,COMMERCIAL SUPPLIER 
 07-03-2023,Adults,Rosemont Care Limited,Home Care - Private Contractors Payment,1102.08,0.00,COMMERCIAL SUPPLIER 
 07-03-2023,Adults,Rosemont Care Limited,Home Care - Private Contractors Payment,1102.08,0.00,COMMERCIAL SUPPLIER 
 07-03-2023,Adults,Rosemont Care Limited,Home Care - Private Contractors Payment,1102.08,0.00,COMMERCIAL SUPPLIER 
 07-03-2023,Adults,Rosemont Care Limited,Home Care - Private Contractors Payment,1102.08,0.00,COMMERCIAL SUPPLIER 
 07-03-2023,Adults,Rosemont Care Limited,Home Care - Private Contractors Payment,1102.08,0.00,COMMERCIAL SUPPLIER 
 07-03-2023,Adults,Rosemont Care Limited,Home Care - Private Contractors Payment,1102.08,0.00,COMMERCIAL SUPPLIER 
 08-03-2023,Adults,Lodge Group Care UK Ltd,Home Care - Private Contractors Payment,1102.08,0.00,COMMERCIAL SUPPLIER 
 08-03-2023,Adults,Lodge Group Care UK Ltd,Home Care - Private Contractors Payment,1102.08,0.00,COMMERCIAL SUPPLIER 
 08-03-2023,Adults,Lodge Group Care UK Ltd,Home Care - Private Contractors Payment,1102.08,0.00,COMMERCIAL SUPPLIER 
 08-03-2023,Adults,Lodge Group Care UK Ltd,Home Care - Private Contractors Payment,1102.08,0.00,COMMERCIAL SUPPLIER 
 08-03-2023,Adults,Lodge Group Care UK Ltd,Home Care - Private Contractors Payment,1102.08,0.00,COMMERCIAL SUPPLIER 
 14-03-2023,Adults,Home Sweet Home Care Ltd,Home Care - Private Contractors Payment,1102.08,0.00,COMMERCIAL SUPPLIER 
 14-03-2023,Adults,Home Sweet Home Care Ltd,Home Care - Private Contractors Payment,1102.08,0.00,COMMERCIAL SUPPLIER 
 20-03-2023,Adults,Crystalize Care Services Ltd,Home Care - Private Contractors Payment,1102.08,0.00,COMMERCIAL SUPPLIER 
 20-03-2023,Adults,Crystalize Care Services Ltd,Home Care - Private Contractors Payment,1102.08,0.00,COMMERCIAL SUPPLIER 
 26-03-2023,Adults,Personal Information � Redacted,Home Care - Private Contractors Payment,1102.08,0.00,INDIVIDUALS 
 26-03-2023,Adults,Personal Information � Redacted,Home Care - Private Contractors Payment,1102.08,0.00,INDIVIDUALS 
 26-03-2023,Adults,Personal Information � Redacted,Home Care - Private Contractors Payment,1102.08,0.00,INDIVIDUALS 
 27-03-2023,Adults,Recruitcare Professionals Ltd ,Home Care - Private Contractors Payment,1102.08,0.00,COMMERCIAL SUPPLIER 
 27-03-2023,Adults,Outreach Support Services Ltd,Home Care - Private Contractors Payment,1102.08,0.00,COMMERCIAL SUPPLIER 
 27-03-2023,Adults,Outreach Support Services Ltd,Home Care - Private Contractors Payment,1102.08,0.00,COMMERCIAL SUPPLIER 
 27-03-2023,Adults,Outreach Support Services Ltd,Home Care - Private Contractors Payment,1102.08,0.00,COMMERCIAL SUPPLIER 
 27-03-2023,Adults,Outreach Support Services Ltd,Home Care - Private Contractors Payment,1102.08,0.00,COMMERCIAL SUPPLIER 
 27-03-2023,Adults,London Homecare Ltd,Home Care - Private Contractors Payment,1102.08,0.00,COMMERCIAL SUPPLIER 
 28-03-2023,Adults,Prestige Care & Support Ltd,Home Care - Private Contractors Payment,1102.08,0.00,COMMERCIAL SUPPLIER 
 28-03-2023,Adults,Prestige Care & Support Ltd,Home Care - Private Contractors Payment,1102.08,0.00,COMMERCIAL SUPPLIER 
 28-03-2023,Adults,Prestige Care & Support Ltd,Home Care - Private Contractors Payment,1102.08,0.00,COMMERCIAL SUPPLIER 
 28-03-2023,Adults,Prestige Care & Support Ltd,Home Care - Private Contractors Payment,1102.08,0.00,COMMERCIAL SUPPLIER 
 28-03-2023,Adults,Prestige Care & Support Ltd,Home Care - Private Contractors Payment,1102.08,0.00,COMMERCIAL SUPPLIER 
 28-03-2023,Adults,Prestige Care & Support Ltd,Home Care - Private Contractors Payment,1102.08,0.00,COMMERCIAL SUPPLIER 
 28-03-2023,Adults,Prestige Care & Support Ltd,Home Care - Private Contractors Payment,1102.08,0.00,COMMERCIAL SUPPLIER 
 28-03-2023,Adults,Prestige Care & Support Ltd,Home Care - Private Contractors Payment,1102.08,0.00,COMMERCIAL SUPPLIER 
 29-03-2023,Adults,Inna Care Ltd,Home Care - Private Contractors Payment,1102.08,0.00,COMMERCIAL SUPPLIER 
 29-03-2023,Adults,Inna Care Ltd,Home Care - Private Contractors Payment,1102.08,0.00,COMMERCIAL SUPPLIER 
 29-03-2023,Adults,Inna Care Ltd,Home Care - Private Contractors Payment,1102.08,0.00,COMMERCIAL SUPPLIER 
 29-03-2023,Adults,Inna Care Ltd,Home Care - Private Contractors Payment,1102.08,0.00,COMMERCIAL SUPPLIER 
 29-03-2023,Adults,Inna Care Ltd,Home Care - Private Contractors Payment,1102.08,0.00,COMMERCIAL SUPPLIER 
 06-03-2023,Adults,Home Support Services (Havering & Essex) Ltd,Home Care - Private Contractors Payment,1102.41,0.00,COMMERCIAL SUPPLIER 
 28-03-2023,Adults,Prestige Care & Support Ltd,Home Care - Private Contractors Payment,1102.41,0.00,COMMERCIAL SUPPLIER 
 29-03-2023,Adults,Cera Care Operations Ltd,Home Care - Private Contractors Payment,1102.41,0.00,COMMERCIAL SUPPLIER 
 14-03-2023,Adults,Home Sweet Home Care Ltd,Home Care - Private Contractors Payment,1102.74,0.00,COMMERCIAL SUPPLIER 
 06-03-2023,Adults,Home Support Services (Havering & Essex) Ltd,Home Care - Private Contractors Payment,1103.06,0.00,COMMERCIAL SUPPLIER 
 06-03-2023,Adults,Home Support Services (Havering & Essex) Ltd,Home Care - Private Contractors Payment,1103.06,0.00,COMMERCIAL SUPPLIER 
 28-03-2023,Adults,Prestige Care & Support Ltd,Home Care - Private Contractors Payment,1103.06,0.00,COMMERCIAL SUPPLIER 
 29-03-2023,Adults,Prior Care Ltd_a,Home Care - Private Contractors Payment,1103.06,0.00,COMMERCIAL SUPPLIER 
 06-03-2023,Adults,Morepower Ltd t/a Aqs Homecare,Home Care - Private Contractors Payment,1103.39,0.00,COMMERCIAL SUPPLIER 
 09-03-2023,Adults,Prior Care Ltd_a,Home Care - Private Contractors Payment,1103.39,0.00,COMMERCIAL SUPPLIER 
 29-03-2023,Adults,Prior Care Ltd_a,Home Care - Private Contractors Payment,1103.39,0.00,COMMERCIAL SUPPLIER 
 06-03-2023,Adults,Home Support Services (Havering & Essex) Ltd,Home Care - Private Contractors Payment,1103.72,0.00,COMMERCIAL SUPPLIER 
 06-03-2023,Adults,Home Support Services (Havering & Essex) Ltd,Home Care - Private Contractors Payment,1103.72,0.00,COMMERCIAL SUPPLIER 
 06-03-2023,Adults,Home Support Services (Havering & Essex) Ltd,Home Care - Private Contractors Payment,1104.05,0.00,COMMERCIAL SUPPLIER 
 28-03-2023,Adults,Prestige Care & Support Ltd,Home Care - Private Contractors Payment,1104.05,0.00,COMMERCIAL SUPPLIER 
 29-03-2023,Adults,Matrix SCM Ltd,Agency Staff,1104.32,0.00,COMMERCIAL SUPPLIER 
 09-03-2023,Adults,Prior Care Ltd_a,Home Care - Private Contractors Payment,1104.38,0.00,COMMERCIAL SUPPLIER 
 14-03-2023,Adults,Home Sweet Home Care Ltd,Home Care - Private Contractors Payment,1104.38,0.00,COMMERCIAL SUPPLIER 
 03-03-2023,Adults,Anytime Care 2020_a,Home Care - Private Contractors Payment,1104.70,0.00,COMMERCIAL SUPPLIER 
 08-03-2023,Adults,Lodge Group Care UK Ltd,Home Care - Private Contractors Payment,1104.70,0.00,COMMERCIAL SUPPLIER 
 14-03-2023,Adults,Home Sweet Home Care Ltd,Home Care - Private Contractors Payment,1105.03,0.00,COMMERCIAL SUPPLIER 
 03-03-2023,Adults,Anytime Care 2020_a,Home Care - Private Contractors Payment,1105.36,0.00,COMMERCIAL SUPPLIER 
 06-03-2023,Adults,Home Support Services (Havering & Essex) Ltd,Home Care - Private Contractors Payment,1105.36,0.00,COMMERCIAL SUPPLIER 
 08-03-2023,Adults,Lodge Group Care UK Ltd,Home Care - Private Contractors Payment,1105.36,0.00,COMMERCIAL SUPPLIER 
 08-03-2023,Adults,Lodge Group Care UK Ltd,Home Care - Private Contractors Payment,1105.36,0.00,COMMERCIAL SUPPLIER 
 28-03-2023,Adults,Prestige Care & Support Ltd,Home Care - Private Contractors Payment,1105.36,0.00,COMMERCIAL SUPPLIER 
 08-03-2023,Adults,Lodge Group Care UK Ltd,Home Care - Private Contractors Payment,1105.69,0.00,COMMERCIAL SUPPLIER 
 06-03-2023,Adults,Home Support Services (Havering & Essex) Ltd,Home Care - Private Contractors Payment,1106.02,0.00,COMMERCIAL SUPPLIER 
 06-03-2023,Adults,Home Support Services (Havering & Essex) Ltd,Home Care - Private Contractors Payment,1106.02,0.00,COMMERCIAL SUPPLIER 
 29-03-2023,Adults,Prior Care Ltd_a,Home Care - Private Contractors Payment,1106.02,0.00,COMMERCIAL SUPPLIER 
 29-03-2023,Adults,Prior Care Ltd_a,Home Care - Private Contractors Payment,1106.02,0.00,COMMERCIAL SUPPLIER 
 06-03-2023,Adults,Home Support Services (Havering & Essex) Ltd,Home Care - Private Contractors Payment,1106.34,0.00,COMMERCIAL SUPPLIER 
 08-03-2023,Adults,Lodge Group Care UK Ltd,Home Care - Private Contractors Payment,1106.34,0.00,COMMERCIAL SUPPLIER 
 08-03-2023,Adults,Lodge Group Care UK Ltd,Home Care - Private Contractors Payment,1106.34,0.00,COMMERCIAL SUPPLIER 
 09-03-2023,Adults,Prior Care Ltd_a,Home Care - Private Contractors Payment,1106.34,0.00,COMMERCIAL SUPPLIER 
 14-03-2023,Adults,Home Sweet Home Care Ltd,Home Care - Private Contractors Payment,1106.67,0.00,COMMERCIAL SUPPLIER 
 08-03-2023,Adults,Lodge Group Care UK Ltd,Home Care - Private Contractors Payment,1107.00,0.00,COMMERCIAL SUPPLIER 
 26-03-2023,Adults,Westminster Homecare Ltd_a,Home Care - Private Contractors Payment,1107.33,0.00,COMMERCIAL SUPPLIER 
 29-03-2023,Adults,Cera Care Operations Ltd,Home Care - Private Contractors Payment,1107.33,0.00,COMMERCIAL SUPPLIER 
 06-03-2023,Adults,Morepower Ltd t/a Aqs Homecare,Home Care - Private Contractors Payment,1107.66,0.00,COMMERCIAL SUPPLIER 
 28-03-2023,Adults,Prestige Care & Support Ltd,Home Care - Private Contractors Payment,1107.98,0.00,COMMERCIAL SUPPLIER 
 08-03-2023,Adults,Lodge Group Care UK Ltd,Home Care - Private Contractors Payment,1108.64,0.00,COMMERCIAL SUPPLIER 
 08-03-2023,Adults,Lodge Group Care UK Ltd,Home Care - Private Contractors Payment,1108.64,0.00,COMMERCIAL SUPPLIER 
 08-03-2023,Adults,Lodge Group Care UK Ltd,Home Care - Private Contractors Payment,1108.64,0.00,COMMERCIAL SUPPLIER 
 14-03-2023,Adults,Home Sweet Home Care Ltd,Home Care - Private Contractors Payment,1108.64,0.00,COMMERCIAL SUPPLIER 
 29-03-2023,Adults,Prior Care Ltd_a,Home Care - Private Contractors Payment,1108.64,0.00,COMMERCIAL SUPPLIER 
 06-03-2023,Adults,Home Support Services (Havering & Essex) Ltd,Home Care - Private Contractors Payment,1108.97,0.00,COMMERCIAL SUPPLIER 
 08-03-2023,Adults,Lodge Group Care UK Ltd,Home Care - Private Contractors Payment,1108.97,0.00,COMMERCIAL SUPPLIER 
 06-03-2023,Adults,Home Support Services (Havering & Essex) Ltd,Home Care - Private Contractors Payment,1109.30,0.00,COMMERCIAL SUPPLIER 
 06-03-2023,Adults,Home Support Services (Havering & Essex) Ltd,Home Care - Private Contractors Payment,1109.30,0.00,COMMERCIAL SUPPLIER 
 06-03-2023,Adults,Home Support Services (Havering & Essex) Ltd,Home Care - Private Contractors Payment,1109.62,0.00,COMMERCIAL SUPPLIER 
 13-03-2023,Adults,Quality Healthcare Solutions Ltd t/a Kare Plus Romford,Home Care - Private Contractors Payment,1110.61,0.00,COMMERCIAL SUPPLIER 
 28-03-2023,Adults,Prestige Care & Support Ltd,Home Care - Private Contractors Payment,1110.61,0.00,COMMERCIAL SUPPLIER 
 06-03-2023,Adults,Home Support Services (Havering & Essex) Ltd,Home Care - Private Contractors Payment,1110.94,0.00,COMMERCIAL SUPPLIER 
 08-03-2023,Adults,Lodge Group Care UK Ltd,Home Care - Private Contractors Payment,1110.94,0.00,COMMERCIAL SUPPLIER 
 14-03-2023,Adults,Home Sweet Home Care Ltd,Home Care - Private Contractors Payment,1110.94,0.00,COMMERCIAL SUPPLIER 
 14-03-2023,Adults,Home Sweet Home Care Ltd,Home Care - Private Contractors Payment,1111.26,0.00,COMMERCIAL SUPPLIER 
 06-03-2023,Adults,Home Support Services (Havering & Essex) Ltd,Home Care - Private Contractors Payment,1111.59,0.00,COMMERCIAL SUPPLIER 
 14-03-2023,Adults,Home Sweet Home Care Ltd,Home Care - Private Contractors Payment,1111.59,0.00,COMMERCIAL SUPPLIER 
 06-03-2023,Adults,Home Support Services (Havering & Essex) Ltd,Home Care - Private Contractors Payment,1111.92,0.00,COMMERCIAL SUPPLIER 
 06-03-2023,Adults,Home Support Services (Havering & Essex) Ltd,Home Care - Private Contractors Payment,1111.92,0.00,COMMERCIAL SUPPLIER 
 06-03-2023,Adults,Home Support Services (Havering & Essex) Ltd,Home Care - Private Contractors Payment,1111.92,0.00,COMMERCIAL SUPPLIER 
 09-03-2023,Adults,Prior Care Ltd_a,Home Care - Private Contractors Payment,1111.92,0.00,COMMERCIAL SUPPLIER 
 14-03-2023,Adults,Home Sweet Home Care Ltd,Home Care - Private Contractors Payment,1111.92,0.00,COMMERCIAL SUPPLIER 
 29-03-2023,Adults,Prior Care Ltd_a,Home Care - Private Contractors Payment,1111.92,0.00,COMMERCIAL SUPPLIER 
 06-03-2023,Adults,Westminster Homecare Ltd_a,Home Care - Private Contractors Payment,1112.25,0.00,COMMERCIAL SUPPLIER 
 08-03-2023,Adults,Lodge Group Care UK Ltd,Home Care - Private Contractors Payment,1112.25,0.00,COMMERCIAL SUPPLIER 
 14-03-2023,Adults,Home Sweet Home Care Ltd,Home Care - Private Contractors Payment,1112.25,0.00,COMMERCIAL SUPPLIER 
 29-03-2023,Adults,Cera Care Operations Ltd,Home Care - Private Contractors Payment,1112.58,0.00,COMMERCIAL SUPPLIER 
 06-03-2023,Adults,Home Support Services (Havering & Essex) Ltd,Home Care - Private Contractors Payment,1112.90,0.00,COMMERCIAL SUPPLIER 
 08-03-2023,Adults,Lodge Group Care UK Ltd,Home Care - Private Contractors Payment,1114.87,0.00,COMMERCIAL SUPPLIER 
 08-03-2023,Adults,Cera Care Operations Ltd,Home Care - Private Contractors Payment,1114.87,0.00,COMMERCIAL SUPPLIER 
 14-03-2023,Adults,Home Sweet Home Care Ltd,Home Care - Private Contractors Payment,1114.87,0.00,COMMERCIAL SUPPLIER 
 08-03-2023,Adults,Cera Care Operations Ltd,Home Care - Private Contractors Payment,1115.86,0.00,COMMERCIAL SUPPLIER 
 28-03-2023,Adults,Prestige Care & Support Ltd,Home Care - Private Contractors Payment,1116.51,0.00,COMMERCIAL SUPPLIER 
 28-03-2023,Adults,Prestige Care & Support Ltd,Home Care - Private Contractors Payment,1117.50,0.00,COMMERCIAL SUPPLIER 
 13-03-2023,Adults,Quality Healthcare Solutions Ltd t/a Kare Plus Romford,Home Care - Private Contractors Payment,1117.82,0.00,COMMERCIAL SUPPLIER 
 06-03-2023,Adults,Home Support Services (Havering & Essex) Ltd,Home Care - Private Contractors Payment,1118.48,0.00,COMMERCIAL SUPPLIER 
 14-03-2023,Adults,Home Sweet Home Care Ltd,Home Care - Private Contractors Payment,1118.48,0.00,COMMERCIAL SUPPLIER 
 29-03-2023,Adults,Prior Care Ltd_a,Home Care - Private Contractors Payment,1118.48,0.00,COMMERCIAL SUPPLIER 
 07-03-2023,Adults,Optimal Care Services Ltd,Supported Other Accommodation - Private Contractors Payment,1118.57,0.00,COMMERCIAL SUPPLIER 
 09-03-2023,Adults,Prior Care Ltd_a,Home Care - Private Contractors Payment,1118.81,0.00,COMMERCIAL SUPPLIER 
 29-03-2023,Adults,Cera Care Operations Ltd,Home Care - Private Contractors Payment,1118.81,0.00,COMMERCIAL SUPPLIER 
 08-03-2023,Adults,Lodge Group Care UK Ltd,Home Care - Private Contractors Payment,1120.12,0.00,COMMERCIAL SUPPLIER 
 06-03-2023,Adults,Home Support Services (Havering & Essex) Ltd,Home Care - Private Contractors Payment,1120.45,0.00,COMMERCIAL SUPPLIER 
 06-03-2023,Adults,Home Support Services (Havering & Essex) Ltd,Home Care - Private Contractors Payment,1120.78,0.00,COMMERCIAL SUPPLIER 
 06-03-2023,Adults,Home Support Services (Havering & Essex) Ltd,Home Care - Private Contractors Payment,1121.76,0.00,COMMERCIAL SUPPLIER 
 06-03-2023,Adults,Morepower Ltd t/a Aqs Homecare,Home Care - Private Contractors Payment,1122.42,0.00,COMMERCIAL SUPPLIER 
 08-03-2023,Adults,Lodge Group Care UK Ltd,Home Care - Private Contractors Payment,1122.42,0.00,COMMERCIAL SUPPLIER 
 03-03-2023,Adults,Anytime Care 2020_a,Home Care - Private Contractors Payment,1122.74,0.00,COMMERCIAL SUPPLIER 
 06-03-2023,Adults,Morepower Ltd t/a Aqs Homecare,Home Care - Private Contractors Payment,1123.73,0.00,COMMERCIAL SUPPLIER 
 14-03-2023,Adults,Home Sweet Home Care Ltd,Home Care - Private Contractors Payment,1123.73,0.00,COMMERCIAL SUPPLIER 
 08-03-2023,Adults,Lodge Group Care UK Ltd,Home Care - Private Contractors Payment,1124.06,0.00,COMMERCIAL SUPPLIER 
 06-03-2023,Adults,Home Support Services (Havering & Essex) Ltd,Home Care - Private Contractors Payment,1124.38,0.00,COMMERCIAL SUPPLIER 
 28-03-2023,Adults,Prestige Care & Support Ltd,Home Care - Private Contractors Payment,1125.37,0.00,COMMERCIAL SUPPLIER 
 03-03-2023,Adults,Anytime Care 2020_a,Home Care - Private Contractors Payment,1125.70,0.00,COMMERCIAL SUPPLIER 
 13-03-2023,Adults,Quality Healthcare Solutions Ltd t/a Kare Plus Romford,Home Care - Private Contractors Payment,1125.70,0.00,COMMERCIAL SUPPLIER 
 14-03-2023,Adults,Home Sweet Home Care Ltd,Home Care - Private Contractors Payment,1125.70,0.00,COMMERCIAL SUPPLIER 
 08-03-2023,Adults,Cera Care Operations Ltd,Home Care - Private Contractors Payment,1126.02,0.00,COMMERCIAL SUPPLIER 
 29-03-2023,Adults,Cera Care Operations Ltd,Home Care - Private Contractors Payment,1126.02,0.00,COMMERCIAL SUPPLIER 
 06-03-2023,Adults,Morepower Ltd t/a Aqs Homecare,Home Care - Private Contractors Payment,1126.35,0.00,COMMERCIAL SUPPLIER 
 20-03-2023,Adults,Morepower Ltd t/a Aqs Homecare,Home Care - Private Contractors Payment,1126.68,0.00,COMMERCIAL SUPPLIER 
 20-03-2023,Adults,Morepower Ltd t/a Aqs Homecare,Home Care - Private Contractors Payment,1126.68,0.00,COMMERCIAL SUPPLIER 
 09-03-2023,Adults,Prior Care Ltd_a,Home Care - Private Contractors Payment,1127.34,0.00,COMMERCIAL SUPPLIER 
 29-03-2023,Adults,Cera Care Operations Ltd,Home Care - Private Contractors Payment,1127.66,0.00,COMMERCIAL SUPPLIER 
 29-03-2023,Adults,Cera Care Operations Ltd,Home Care - Private Contractors Payment,1127.66,0.00,COMMERCIAL SUPPLIER 
 28-03-2023,Adults,Prestige Care & Support Ltd,Home Care - Private Contractors Payment,1127.99,0.00,COMMERCIAL SUPPLIER 
 09-03-2023,Adults,Headway East London,Daycare - Private Contractors Payment,1128.00,0.00,COMMERCIAL SUPPLIER 
 09-03-2023,Adults,Prior Care Ltd_a,Home Care - Private Contractors Payment,1128.32,0.00,COMMERCIAL SUPPLIER 
 14-03-2023,Adults,Home Sweet Home Care Ltd,Home Care - Private Contractors Payment,1128.65,0.00,COMMERCIAL SUPPLIER 
 17-03-2023,Adults,Dignified Homecare,Home Care - Private Contractors Payment,1129.00,0.00,COMMERCIAL SUPPLIER 
 08-03-2023,Adults,Cera Care Operations Ltd,Home Care - Private Contractors Payment,1129.30,0.00,COMMERCIAL SUPPLIER 
 14-03-2023,Adults,Home Sweet Home Care Ltd,Home Care - Private Contractors Payment,1129.63,0.00,COMMERCIAL SUPPLIER 
 06-03-2023,Adults,Morepower Ltd t/a Aqs Homecare,Home Care - Private Contractors Payment,1129.96,0.00,COMMERCIAL SUPPLIER 
 29-03-2023,Adults,Cera Care Operations Ltd,Home Care - Private Contractors Payment,1133.90,0.00,COMMERCIAL SUPPLIER 
 08-03-2023,Adults,Cera Care Operations Ltd,Home Care - Private Contractors Payment,1134.88,0.00,COMMERCIAL SUPPLIER 
 08-03-2023,Adults,Cera Care Operations Ltd,Home Care - Private Contractors Payment,1135.21,0.00,COMMERCIAL SUPPLIER 
 06-03-2023,Adults,Home Support Services (Havering & Essex) Ltd,Home Care - Private Contractors Payment,1135.54,0.00,COMMERCIAL SUPPLIER 
 06-03-2023,Adults,Home Support Services (Havering & Essex) Ltd,Home Care - Private Contractors Payment,1136.19,0.00,COMMERCIAL SUPPLIER 
 06-03-2023,Adults,Home Support Services (Havering & Essex) Ltd,Home Care - Private Contractors Payment,1136.52,0.00,COMMERCIAL SUPPLIER 
 06-03-2023,Adults,Home Support Services (Havering & Essex) Ltd,Home Care - Private Contractors Payment,1136.85,0.00,COMMERCIAL SUPPLIER 
 08-03-2023,Adults,Lodge Group Care UK Ltd,Home Care - Private Contractors Payment,1136.85,0.00,COMMERCIAL SUPPLIER 
 08-03-2023,Adults,Lodge Group Care UK Ltd,Home Care - Private Contractors Payment,1137.50,0.00,COMMERCIAL SUPPLIER 
 01-03-2023,Adults,Matrix SCM Ltd,Agency Staff,1137.84,0.00,COMMERCIAL SUPPLIER 
 08-03-2023,Adults,Lodge Group Care UK Ltd,Home Care - Private Contractors Payment,1138.49,0.00,COMMERCIAL SUPPLIER 
 29-03-2023,Adults,Cera Care Operations Ltd,Home Care - Private Contractors Payment,1139.47,0.00,COMMERCIAL SUPPLIER 
 27-03-2023,Adults,Tapestry_a.,Daycare - Private Contractors Payment,1140.00,0.00,COMMERCIAL SUPPLIER 
 27-03-2023,Adults,Tapestry_a.,Daycare - Private Contractors Payment,1140.00,0.00,COMMERCIAL SUPPLIER 
 27-03-2023,Adults,Tapestry_a.,Daycare - Private Contractors Payment,1140.00,0.00,COMMERCIAL SUPPLIER 
 27-03-2023,Adults,Tapestry_a.,Daycare - Private Contractors Payment,1140.00,0.00,COMMERCIAL SUPPLIER 
 27-03-2023,Adults,Tapestry_a.,Daycare - Private Contractors Payment,1140.00,0.00,COMMERCIAL SUPPLIER 
 08-03-2023,Adults,Lodge Group Care UK Ltd,Home Care - Private Contractors Payment,1141.44,0.00,COMMERCIAL SUPPLIER 
 08-03-2023,Adults,Lodge Group Care UK Ltd,Home Care - Private Contractors Payment,1141.44,0.00,COMMERCIAL SUPPLIER 
 06-03-2023,Adults,Home Support Services (Havering & Essex) Ltd,Home Care - Private Contractors Payment,1144.72,0.00,COMMERCIAL SUPPLIER 
 06-03-2023,Adults,Home Support Services (Havering & Essex) Ltd,Home Care - Private Contractors Payment,1144.72,0.00,COMMERCIAL SUPPLIER 
 06-03-2023,Adults,Morepower Ltd t/a Aqs Homecare,Home Care - Private Contractors Payment,1147.02,0.00,COMMERCIAL SUPPLIER 
 08-03-2023,Adults,Lodge Group Care UK Ltd,Home Care - Private Contractors Payment,1148.00,0.00,COMMERCIAL SUPPLIER 
 06-03-2023,Adults,Morepower Ltd t/a Aqs Homecare,Home Care - Private Contractors Payment,1148.33,0.00,COMMERCIAL SUPPLIER 
 10-03-2023,Adults,Priory Supporting Care Ltd,Respite Care - Private Contractors Payment,1150.00,0.00,COMMERCIAL SUPPLIER 
 09-03-2023,Adults,Prior Care Ltd_a,Home Care - Private Contractors Payment,1151.28,0.00,COMMERCIAL SUPPLIER 
 26-03-2023,Adults,Personal Information � Redacted,Home Care - Private Contractors Payment,1151.28,0.00,INDIVIDUALS 
 26-03-2023,Adults,Personal Information � Redacted,Home Care - Private Contractors Payment,1151.28,0.00,INDIVIDUALS 
 14-03-2023,Adults,Home Sweet Home Care Ltd,Home Care - Private Contractors Payment,1152.59,0.00,COMMERCIAL SUPPLIER 
 14-03-2023,Adults,Home Sweet Home Care Ltd,Home Care - Private Contractors Payment,1154.23,0.00,COMMERCIAL SUPPLIER 
 06-03-2023,Adults,Treal Care Limited,Home Care - Private Contractors Payment,1155.00,0.00,COMMERCIAL SUPPLIER 
 14-03-2023,Adults,Pristine Care London Ltd ,Daycare - Private Contractors Payment,1155.00,0.00,COMMERCIAL SUPPLIER 
 14-03-2023,Adults,Pristine Care London Ltd ,Daycare - Private Contractors Payment,1155.00,0.00,COMMERCIAL SUPPLIER 
 14-03-2023,Adults,Pristine Care London Ltd ,Daycare - Private Contractors Payment,1155.00,0.00,COMMERCIAL SUPPLIER 
 14-03-2023,Adults,Pristine Care London Ltd ,Daycare - Private Contractors Payment,1155.00,0.00,COMMERCIAL SUPPLIER 
 06-03-2023,Adults,Home Support Services (Havering & Essex) Ltd,Home Care - Private Contractors Payment,1156.53,0.00,COMMERCIAL SUPPLIER 
 08-03-2023,Adults,Cera Care Operations Ltd,Home Care - Private Contractors Payment,1156.86,0.00,COMMERCIAL SUPPLIER 
 13-03-2023,Adults,Quality Healthcare Solutions Ltd t/a Kare Plus Romford,Home Care - Private Contractors Payment,1158.17,0.00,COMMERCIAL SUPPLIER 
 06-03-2023,Adults,Home Support Services (Havering & Essex) Ltd,Home Care - Private Contractors Payment,1160.14,0.00,COMMERCIAL SUPPLIER 
 08-03-2023,Adults,Lodge Group Care UK Ltd,Home Care - Private Contractors Payment,1160.79,0.00,COMMERCIAL SUPPLIER 
 06-03-2023,Adults,Morepower Ltd t/a Aqs Homecare,Home Care - Private Contractors Payment,1161.78,0.00,COMMERCIAL SUPPLIER 
 06-03-2023,Adults,Morepower Ltd t/a Aqs Homecare,Home Care - Private Contractors Payment,1161.78,0.00,COMMERCIAL SUPPLIER 
 08-03-2023,Adults,Lodge Group Care UK Ltd,Home Care - Private Contractors Payment,1163.74,0.00,COMMERCIAL SUPPLIER 
 16-03-2023,Adults,Care-Away Ltd T/A Care Support,Home Care - Private Contractors Payment,1164.80,0.00,COMMERCIAL SUPPLIER 
 16-03-2023,Adults,Care-Away Ltd T/A Care Support,Home Care - Private Contractors Payment,1164.80,0.00,COMMERCIAL SUPPLIER 
 16-03-2023,Adults,Care-Away Ltd T/A Care Support,Home Care - Private Contractors Payment,1164.80,0.00,COMMERCIAL SUPPLIER 
 16-03-2023,Adults,Care-Away Ltd T/A Care Support,Home Care - Private Contractors Payment,1164.80,0.00,COMMERCIAL SUPPLIER 
 06-03-2023,Adults,Home Support Services (Havering & Essex) Ltd,Home Care - Private Contractors Payment,1167.35,0.00,COMMERCIAL SUPPLIER 
 08-03-2023,Adults,Matrix SCM Ltd,Agency Staff,1169.28,0.00,COMMERCIAL SUPPLIER 
 06-03-2023,Adults,Morepower Ltd t/a Aqs Homecare,Home Care - Private Contractors Payment,1169.98,0.00,COMMERCIAL SUPPLIER 
 06-03-2023,Adults,Home Support Services (Havering & Essex) Ltd,Home Care - Private Contractors Payment,1172.93,0.00,COMMERCIAL SUPPLIER 
 06-03-2023,Adults,Home Support Services (Havering & Essex) Ltd,Home Care - Private Contractors Payment,1173.58,0.00,COMMERCIAL SUPPLIER 
 06-03-2023,Adults,Home Support Services (Havering & Essex) Ltd,Home Care - Private Contractors Payment,1173.58,0.00,COMMERCIAL SUPPLIER 
 08-03-2023,Adults,Lodge Group Care UK Ltd,Home Care - Private Contractors Payment,1173.91,0.00,COMMERCIAL SUPPLIER 
 08-03-2023,Adults,Lodge Group Care UK Ltd,Home Care - Private Contractors Payment,1174.57,0.00,COMMERCIAL SUPPLIER 
 14-03-2023,Adults,Home Sweet Home Care Ltd,Home Care - Private Contractors Payment,1174.57,0.00,COMMERCIAL SUPPLIER 
 08-03-2023,Adults,Lodge Group Care UK Ltd,Home Care - Private Contractors Payment,1175.88,0.00,COMMERCIAL SUPPLIER 
 14-03-2023,Adults,Home Sweet Home Care Ltd,Home Care - Private Contractors Payment,1175.88,0.00,COMMERCIAL SUPPLIER 
 28-03-2023,Adults,Prestige Care & Support Ltd,Home Care - Private Contractors Payment,1176.54,0.00,COMMERCIAL SUPPLIER 
 29-03-2023,Adults,Cera Care Operations Ltd,Home Care - Private Contractors Payment,1179.82,0.00,COMMERCIAL SUPPLIER 
 01-03-2023,Adults,Ashton Care Ltd ,Home Care - Private Contractors Payment,1180.80,0.00,COMMERCIAL SUPPLIER 
 02-03-2023,Adults,Carers Trust East Midlands,Home Care - Private Contractors Payment,1180.80,0.00,COMMERCIAL SUPPLIER 
 03-03-2023,Adults,Passion Tree Care Services Ltd,Home Care - Private Contractors Payment,1180.80,0.00,COMMERCIAL SUPPLIER 
 27-03-2023,Adults,Premier Carewaiting Ltd,Home Care - Private Contractors Payment,1180.80,0.00,COMMERCIAL SUPPLIER 
 29-03-2023,Adults,Inna Care Ltd,Home Care - Private Contractors Payment,1180.80,0.00,COMMERCIAL SUPPLIER 
 29-03-2023,Adults,Cera Care Operations Ltd,Home Care - Private Contractors Payment,1181.13,0.00,COMMERCIAL SUPPLIER 
 01-03-2023,Adults,Matrix SCM Ltd,Agency Staff,1181.15,0.00,COMMERCIAL SUPPLIER 
 15-03-2023,Adults,Matrix SCM Ltd,Agency Staff,1181.15,0.00,COMMERCIAL SUPPLIER 
 22-03-2023,Adults,Matrix SCM Ltd,Agency Staff,1181.15,0.00,COMMERCIAL SUPPLIER 
 29-03-2023,Adults,Matrix SCM Ltd,Agency Staff,1181.15,0.00,COMMERCIAL SUPPLIER 
 26-03-2023,Adults,Westminster Homecare Ltd_a,Home Care - Private Contractors Payment,1183.42,0.00,COMMERCIAL SUPPLIER 
 06-03-2023,Adults,Home Support Services (Havering & Essex) Ltd,Home Care - Private Contractors Payment,1183.75,0.00,COMMERCIAL SUPPLIER 
 06-03-2023,Adults,Westminster Homecare Ltd_a,Home Care - Private Contractors Payment,1183.75,0.00,COMMERCIAL SUPPLIER 
 13-03-2023,Adults,Quality Healthcare Solutions Ltd t/a Kare Plus Romford,Home Care - Private Contractors Payment,1184.74,0.00,COMMERCIAL SUPPLIER 
 29-03-2023,Adults,Cera Care Operations Ltd,Home Care - Private Contractors Payment,1185.06,0.00,COMMERCIAL SUPPLIER 
 29-03-2023,Adults,Cera Care Operations Ltd,Home Care - Private Contractors Payment,1185.39,0.00,COMMERCIAL SUPPLIER 
 29-03-2023,Adults,Cera Care Operations Ltd,Home Care - Private Contractors Payment,1186.05,0.00,COMMERCIAL SUPPLIER 
 08-03-2023,Adults,Lodge Group Care UK Ltd,Home Care - Private Contractors Payment,1189.33,0.00,COMMERCIAL SUPPLIER 
 01-03-2023,Adults,Matrix SCM Ltd,Agency Staff,1189.65,0.00,COMMERCIAL SUPPLIER 
 08-03-2023,Adults,Matrix SCM Ltd,Agency Staff,1189.65,0.00,COMMERCIAL SUPPLIER 
 15-03-2023,Adults,Matrix SCM Ltd,Agency Staff,1189.65,0.00,COMMERCIAL SUPPLIER 
 22-03-2023,Adults,Matrix SCM Ltd,Agency Staff,1189.65,0.00,COMMERCIAL SUPPLIER 
 29-03-2023,Adults,Matrix SCM Ltd,Agency Staff,1189.65,0.00,COMMERCIAL SUPPLIER 
 06-03-2023,Adults,Morepower Ltd t/a Aqs Homecare,Home Care - Private Contractors Payment,1189.66,0.00,COMMERCIAL SUPPLIER 
 10-03-2023,Adults,Optimal Care Services Ltd,Supported Other Accommodation - Private Contractors Payment,1193.28,0.00,COMMERCIAL SUPPLIER 
 10-03-2023,Adults,Optimal Care Services Ltd,Supported Other Accommodation - Private Contractors Payment,1193.28,0.00,COMMERCIAL SUPPLIER 
 10-03-2023,Adults,Optimal Care Services Ltd,Supported Other Accommodation - Private Contractors Payment,1193.28,0.00,COMMERCIAL SUPPLIER 
 29-03-2023,Adults,Matrix SCM Ltd,Agency Staff,1199.36,0.00,COMMERCIAL SUPPLIER 
 01-03-2023,Adults,Hospiva Care & Associates Agency Ltd_a,Home Care - Private Contractors Payment,1199.50,0.00,COMMERCIAL SUPPLIER 
 01-03-2023,Adults,Hospiva Care & Associates Agency Ltd_a,Home Care - Private Contractors Payment,1199.50,0.00,COMMERCIAL SUPPLIER 
 12-03-2023,Adults,Jaktol Day Centers,Daycare - Private Contractors Payment,1199.84,0.00,COMMERCIAL SUPPLIER 
 10-03-2023,Adults,The Riverside Group,Supported Other Accommodation - Private Contractors Payment,1201.43,0.00, 
 10-03-2023,Adults,The Riverside Group,Supported Other Accommodation - Private Contractors Payment,1201.43,0.00, 
 10-03-2023,Adults,The Riverside Group,Supported Other Accommodation - Private Contractors Payment,1201.43,0.00, 
 10-03-2023,Adults,The Riverside Group,Supported Other Accommodation - Private Contractors Payment,1201.43,0.00, 
 10-03-2023,Adults,The Riverside Group,Supported Other Accommodation - Private Contractors Payment,1201.43,0.00, 
 10-03-2023,Adults,The Riverside Group,Supported Other Accommodation - Private Contractors Payment,1201.43,0.00, 
 10-03-2023,Adults,The Riverside Group,Supported Other Accommodation - Private Contractors Payment,1201.43,0.00, 
 10-03-2023,Adults,The Riverside Group,Supported Other Accommodation - Private Contractors Payment,1201.43,0.00, 
 10-03-2023,Adults,The Riverside Group,Supported Other Accommodation - Private Contractors Payment,1201.43,0.00, 
 22-03-2023,Adults,Matrix SCM Ltd,Agency Staff,1203.40,0.00,COMMERCIAL SUPPLIER 
 15-03-2023,Adults,Matrix SCM Ltd,Agency Staff,1205.63,0.00,COMMERCIAL SUPPLIER 
 22-03-2023,Adults,Matrix SCM Ltd,Agency Staff,1205.63,0.00,COMMERCIAL SUPPLIER 
 29-03-2023,Adults,Matrix SCM Ltd,Agency Staff,1205.63,0.00,COMMERCIAL SUPPLIER 
 08-03-2023,Adults,Matrix SCM Ltd,Agency Staff,1206.80,0.00,COMMERCIAL SUPPLIER 
 08-03-2023,Adults,Lodge Group Care UK Ltd,Home Care - Private Contractors Payment,1207.04,0.00,COMMERCIAL SUPPLIER 
 01-03-2023,Adults,Matrix SCM Ltd,Agency Staff,1209.60,0.00,COMMERCIAL SUPPLIER 
 08-03-2023,Adults,Matrix SCM Ltd,Agency Staff,1209.60,0.00,COMMERCIAL SUPPLIER 
 15-03-2023,Adults,Matrix SCM Ltd,Agency Staff,1209.60,0.00,COMMERCIAL SUPPLIER 
 15-03-2023,Adults,Matrix SCM Ltd,Agency Staff,1209.60,0.00,COMMERCIAL SUPPLIER 
 22-03-2023,Adults,Matrix SCM Ltd,Agency Staff,1209.60,0.00,COMMERCIAL SUPPLIER 
 29-03-2023,Adults,Matrix SCM Ltd,Agency Staff,1209.60,0.00,COMMERCIAL SUPPLIER 
 06-03-2023,Adults,Morepower Ltd t/a Aqs Homecare,Home Care - Private Contractors Payment,1212.29,0.00,COMMERCIAL SUPPLIER 
 15-03-2023,Adults,Matrix SCM Ltd,Agency Staff,1215.45,0.00,COMMERCIAL SUPPLIER 
 10-03-2023,Adults,Footsteps Support Ltd_a,Supported Other Accommodation - Private Contractors Payment,1218.00,0.00,COMMERCIAL SUPPLIER 
 06-03-2023,Adults,Home Support Services (Havering & Essex) Ltd,Home Care - Private Contractors Payment,1220.82,0.00,COMMERCIAL SUPPLIER 
 01-03-2023,Adults,Matrix SCM Ltd,Agency Staff,1228.32,0.00,COMMERCIAL SUPPLIER 
 08-03-2023,Adults,Matrix SCM Ltd,Agency Staff,1228.32,0.00,COMMERCIAL SUPPLIER 
 15-03-2023,Adults,Matrix SCM Ltd,Agency Staff,1228.32,0.00,COMMERCIAL SUPPLIER 
 22-03-2023,Adults,Matrix SCM Ltd,Agency Staff,1228.32,0.00,COMMERCIAL SUPPLIER 
 29-03-2023,Adults,Matrix SCM Ltd,Agency Staff,1228.32,0.00,COMMERCIAL SUPPLIER 
 16-03-2023,Adults,Care-Away Ltd T/A Care Support,Home Care - Private Contractors Payment,1231.36,0.00,COMMERCIAL SUPPLIER 
 01-03-2023,Adults,Matrix SCM Ltd,Agency Staff,1235.52,0.00,COMMERCIAL SUPPLIER 
 01-03-2023,Adults,Matrix SCM Ltd,Agency Staff,1235.52,0.00,COMMERCIAL SUPPLIER 
 08-03-2023,Adults,Matrix SCM Ltd,Agency Staff,1235.52,0.00,COMMERCIAL SUPPLIER 
 15-03-2023,Adults,Matrix SCM Ltd,Agency Staff,1235.52,0.00,COMMERCIAL SUPPLIER 
 22-03-2023,Adults,Matrix SCM Ltd,Agency Staff,1235.52,0.00,COMMERCIAL SUPPLIER 
 10-03-2023,Adults,Optimal Care Services Ltd,Supported Other Accommodation - Private Contractors Payment,1235.90,0.00,COMMERCIAL SUPPLIER 
 08-03-2023,Adults,Lodge Group Care UK Ltd,Home Care - Private Contractors Payment,1237.54,0.00,COMMERCIAL SUPPLIER 
 08-03-2023,Adults,Lodge Group Care UK Ltd,Home Care - Private Contractors Payment,1239.18,0.00,COMMERCIAL SUPPLIER 
 03-03-2023,Adults,Passion Tree Care Services Ltd,Home Care - Private Contractors Payment,1239.84,0.00,COMMERCIAL SUPPLIER 
 03-03-2023,Adults,Passion Tree Care Services Ltd,Home Care - Private Contractors Payment,1239.84,0.00,COMMERCIAL SUPPLIER 
 03-03-2023,Adults,Passion Tree Care Services Ltd,Home Care - Private Contractors Payment,1239.84,0.00,COMMERCIAL SUPPLIER 
 07-03-2023,Adults,Crystalize Care Services Ltd,Home Care - Private Contractors Payment,1239.84,0.00,COMMERCIAL SUPPLIER 
 07-03-2023,Adults,Crystalize Care Services Ltd,Home Care - Private Contractors Payment,1239.84,0.00,COMMERCIAL SUPPLIER 
 26-03-2023,Adults,Personal Information � Redacted,Home Care - Private Contractors Payment,1239.84,0.00,INDIVIDUALS 
 27-03-2023,Adults,Outreach Support Services Ltd,Home Care - Private Contractors Payment,1239.84,0.00,COMMERCIAL SUPPLIER 
 27-03-2023,Adults,Outreach Support Services Ltd,Home Care - Private Contractors Payment,1239.84,0.00,COMMERCIAL SUPPLIER 
 27-03-2023,Adults,Outreach Support Services Ltd,Home Care - Private Contractors Payment,1239.84,0.00,COMMERCIAL SUPPLIER 
 27-03-2023,Adults,London Homecare Ltd,Home Care - Private Contractors Payment,1239.84,0.00,COMMERCIAL SUPPLIER 
 27-03-2023,Adults,London Homecare Ltd,Home Care - Private Contractors Payment,1239.84,0.00,COMMERCIAL SUPPLIER 
 27-03-2023,Adults,London Homecare Ltd,Home Care - Private Contractors Payment,1239.84,0.00,COMMERCIAL SUPPLIER 
 27-03-2023,Adults,London Homecare Ltd,Home Care - Private Contractors Payment,1239.84,0.00,COMMERCIAL SUPPLIER 
 27-03-2023,Adults,London Homecare Ltd,Home Care - Private Contractors Payment,1239.84,0.00,COMMERCIAL SUPPLIER 
 29-03-2023,Adults,Cera Care Operations Ltd,Home Care - Private Contractors Payment,1239.84,0.00,COMMERCIAL SUPPLIER 
 29-03-2023,Adults,Inna Care Ltd,Home Care - Private Contractors Payment,1239.84,0.00,COMMERCIAL SUPPLIER 
 29-03-2023,Adults,Inna Care Ltd,Home Care - Private Contractors Payment,1239.84,0.00,COMMERCIAL SUPPLIER 
 29-03-2023,Adults,Inna Care Ltd,Home Care - Private Contractors Payment,1239.84,0.00,COMMERCIAL SUPPLIER 
 29-03-2023,Adults,Inna Care Ltd,Home Care - Private Contractors Payment,1239.84,0.00,COMMERCIAL SUPPLIER 
 31-03-2023,Adults,Crystalize Care Services Ltd,Home Care - Private Contractors Payment,1239.84,0.00,COMMERCIAL SUPPLIER 
 31-03-2023,Adults,Crystalize Care Services Ltd,Home Care - Private Contractors Payment,1239.84,0.00,COMMERCIAL SUPPLIER 
 08-03-2023,Adults,Action First Assessments Ltd,Private Contractors Payment - Other,1240.00,0.00,COMMERCIAL SUPPLIER 
 10-03-2023,Adults,EC Romford Holdings Ltd,Respite Care - Private Contractors Payment,1240.00,0.00,COMMERCIAL SUPPLIER 
 06-03-2023,Adults,Home Support Services (Havering & Essex) Ltd,Home Care - Private Contractors Payment,1240.82,0.00,COMMERCIAL SUPPLIER 
 26-03-2023,Adults,Westminster Homecare Ltd_a,Home Care - Private Contractors Payment,1241.15,0.00,COMMERCIAL SUPPLIER 
 01-03-2023,Adults,Matrix SCM Ltd,Agency Staff,1241.28,0.00,COMMERCIAL SUPPLIER 
 01-03-2023,Adults,Matrix SCM Ltd,Agency Staff,1241.28,0.00,COMMERCIAL SUPPLIER 
 01-03-2023,Adults,Matrix SCM Ltd,Agency Staff,1241.28,0.00,COMMERCIAL SUPPLIER 
 01-03-2023,Adults,Matrix SCM Ltd,Agency Staff,1241.28,0.00,COMMERCIAL SUPPLIER 
 01-03-2023,Adults,Matrix SCM Ltd,Agency Staff,1241.28,0.00,COMMERCIAL SUPPLIER 
 01-03-2023,Adults,Matrix SCM Ltd,Agency Staff,1241.28,0.00,COMMERCIAL SUPPLIER 
 01-03-2023,Adults,Matrix SCM Ltd,Agency Staff,1241.28,0.00,COMMERCIAL SUPPLIER 
 08-03-2023,Adults,Matrix SCM Ltd,Agency Staff,1241.28,0.00,COMMERCIAL SUPPLIER 
 08-03-2023,Adults,Matrix SCM Ltd,Agency Staff,1241.28,0.00,COMMERCIAL SUPPLIER 
 08-03-2023,Adults,Matrix SCM Ltd,Agency Staff,1241.28,0.00,COMMERCIAL SUPPLIER 
 08-03-2023,Adults,Matrix SCM Ltd,Agency Staff,1241.28,0.00,COMMERCIAL SUPPLIER 
 08-03-2023,Adults,Matrix SCM Ltd,Agency Staff,1241.28,0.00,COMMERCIAL SUPPLIER 
 15-03-2023,Adults,Matrix SCM Ltd,Agency Staff,1241.28,0.00,COMMERCIAL SUPPLIER 
 15-03-2023,Adults,Matrix SCM Ltd,Agency Staff,1241.28,0.00,COMMERCIAL SUPPLIER 
 15-03-2023,Adults,Matrix SCM Ltd,Agency Staff,1241.28,0.00,COMMERCIAL SUPPLIER 
 15-03-2023,Adults,Matrix SCM Ltd,Agency Staff,1241.28,0.00,COMMERCIAL SUPPLIER 
 15-03-2023,Adults,Matrix SCM Ltd,Agency Staff,1241.28,0.00,COMMERCIAL SUPPLIER 
 15-03-2023,Adults,Matrix SCM Ltd,Agency Staff,1241.28,0.00,COMMERCIAL SUPPLIER 
 15-03-2023,Adults,Matrix SCM Ltd,Agency Staff,1241.28,0.00,COMMERCIAL SUPPLIER 
 22-03-2023,Adults,Matrix SCM Ltd,Agency Staff,1241.28,0.00,COMMERCIAL SUPPLIER 
 22-03-2023,Adults,Matrix SCM Ltd,Agency Staff,1241.28,0.00,COMMERCIAL SUPPLIER 
 22-03-2023,Adults,Matrix SCM Ltd,Agency Staff,1241.28,0.00,COMMERCIAL SUPPLIER 
 22-03-2023,Adults,Matrix SCM Ltd,Agency Staff,1241.28,0.00,COMMERCIAL SUPPLIER 
 22-03-2023,Adults,Matrix SCM Ltd,Agency Staff,1241.28,0.00,COMMERCIAL SUPPLIER 
 22-03-2023,Adults,Matrix SCM Ltd,Agency Staff,1241.28,0.00,COMMERCIAL SUPPLIER 
 22-03-2023,Adults,Matrix SCM Ltd,Agency Staff,1241.28,0.00,COMMERCIAL SUPPLIER 
 29-03-2023,Adults,Matrix SCM Ltd,Agency Staff,1241.28,0.00,COMMERCIAL SUPPLIER 
 29-03-2023,Adults,Matrix SCM Ltd,Agency Staff,1241.28,0.00,COMMERCIAL SUPPLIER 
 29-03-2023,Adults,Matrix SCM Ltd,Agency Staff,1241.28,0.00,COMMERCIAL SUPPLIER 
 29-03-2023,Adults,Matrix SCM Ltd,Agency Staff,1241.28,0.00,COMMERCIAL SUPPLIER 
 29-03-2023,Adults,Matrix SCM Ltd,Agency Staff,1241.28,0.00,COMMERCIAL SUPPLIER 
 29-03-2023,Adults,Matrix SCM Ltd,Agency Staff,1241.28,0.00,COMMERCIAL SUPPLIER 
 29-03-2023,Adults,Matrix SCM Ltd,Agency Staff,1241.28,0.00,COMMERCIAL SUPPLIER 
 29-03-2023,Adults,Matrix SCM Ltd,Agency Staff,1241.28,0.00,COMMERCIAL SUPPLIER 
 08-03-2023,Adults,Lodge Group Care UK Ltd,Home Care - Private Contractors Payment,1241.81,0.00,COMMERCIAL SUPPLIER 
 13-03-2023,Adults,Bluebird Care Havering,Home Care - Private Contractors Payment,1245.20,0.00,COMMERCIAL SUPPLIER 
 27-03-2023,Adults,Bluebird Care Havering,Home Care - Private Contractors Payment,1245.20,0.00,COMMERCIAL SUPPLIER 
 06-03-2023,Adults,Care-Away Ltd T/A Care Support,Home Care - Private Contractors Payment,1248.00,0.00,COMMERCIAL SUPPLIER 
 16-03-2023,Adults,Care-Away Ltd T/A Care Support,Home Care - Private Contractors Payment,1248.00,0.00,COMMERCIAL SUPPLIER 
 08-03-2023,Adults,Lodge Group Care UK Ltd,Home Care - Private Contractors Payment,1249.02,0.00,COMMERCIAL SUPPLIER 
 29-03-2023,Adults,London Care Plc_a,Home Care - Private Contractors Payment,1249.02,0.00,COMMERCIAL SUPPLIER 
 08-03-2023,Adults,Lodge Group Care UK Ltd,Home Care - Private Contractors Payment,1249.68,0.00,COMMERCIAL SUPPLIER 
 08-03-2023,Adults,Cera Care Operations Ltd,Home Care - Private Contractors Payment,1251.32,0.00,COMMERCIAL SUPPLIER 
 10-03-2023,Adults,Independent Community Support Ltd t/a Wingletye Lodge ,Supported Other Accommodation - Private Contractors Payment,1252.80,0.00,COMMERCIAL SUPPLIER 
 29-03-2023,Adults,Prior Care Ltd_a,Home Care - Private Contractors Payment,1255.58,0.00,COMMERCIAL SUPPLIER 
 09-03-2023,Adults,Prior Care Ltd_a,Home Care - Private Contractors Payment,1255.91,0.00,COMMERCIAL SUPPLIER 
 08-03-2023,Adults,Lodge Group Care UK Ltd,Home Care - Private Contractors Payment,1258.54,0.00,COMMERCIAL SUPPLIER 
 01-03-2023,Adults,Hospiva Care & Associates Agency Ltd_a,Home Care - Private Contractors Payment,1259.52,0.00,COMMERCIAL SUPPLIER 
 01-03-2023,Adults,Hospiva Care & Associates Agency Ltd_a,Home Care - Private Contractors Payment,1259.52,0.00,COMMERCIAL SUPPLIER 
 26-03-2023,Adults,Personal Information � Redacted,Home Care - Private Contractors Payment,1259.52,0.00,INDIVIDUALS 
 20-03-2023,Adults,Star Mini Cabs.,Client Transport,1260.00,0.00,COMMERCIAL SUPPLIER 
 06-03-2023,Adults,Westminster Homecare Ltd_a,Home Care - Private Contractors Payment,1268.70,0.00,COMMERCIAL SUPPLIER 
 01-03-2023,Adults,Matrix SCM Ltd,Agency Staff,1273.31,0.00,COMMERCIAL SUPPLIER 
 08-03-2023,Adults,Matrix SCM Ltd,Agency Staff,1273.31,0.00,COMMERCIAL SUPPLIER 
 15-03-2023,Adults,Matrix SCM Ltd,Agency Staff,1273.31,0.00,COMMERCIAL SUPPLIER 
 22-03-2023,Adults,Matrix SCM Ltd,Agency Staff,1273.31,0.00,COMMERCIAL SUPPLIER 
 29-03-2023,Adults,Matrix SCM Ltd,Agency Staff,1273.31,0.00,COMMERCIAL SUPPLIER 
 01-03-2023,Adults,Matrix SCM Ltd,Agency Staff,1274.05,0.00,COMMERCIAL SUPPLIER 
 08-03-2023,Adults,Matrix SCM Ltd,Agency Staff,1274.05,0.00,COMMERCIAL SUPPLIER 
 15-03-2023,Adults,Matrix SCM Ltd,Agency Staff,1274.05,0.00,COMMERCIAL SUPPLIER 
 22-03-2023,Adults,Matrix SCM Ltd,Agency Staff,1274.05,0.00,COMMERCIAL SUPPLIER 
 29-03-2023,Adults,Matrix SCM Ltd,Agency Staff,1274.05,0.00,COMMERCIAL SUPPLIER 
 06-03-2023,Adults,Home Support Services (Havering & Essex) Ltd,Home Care - Private Contractors Payment,1275.59,0.00,COMMERCIAL SUPPLIER 
 08-03-2023,Adults,Matrix SCM Ltd,Agency Staff,1275.84,0.00,COMMERCIAL SUPPLIER 
 22-03-2023,Adults,Matrix SCM Ltd,Agency Staff,1275.84,0.00,COMMERCIAL SUPPLIER 
 27-03-2023,Adults,London Homecare Ltd,Home Care - Private Contractors Payment,1279.20,0.00,COMMERCIAL SUPPLIER 
 01-03-2023,Adults,Matrix SCM Ltd,Agency Staff,1281.60,0.00,COMMERCIAL SUPPLIER 
 08-03-2023,Adults,Matrix SCM Ltd,Agency Staff,1281.60,0.00,COMMERCIAL SUPPLIER 
 15-03-2023,Adults,Matrix SCM Ltd,Agency Staff,1281.60,0.00,COMMERCIAL SUPPLIER 
 22-03-2023,Adults,Matrix SCM Ltd,Agency Staff,1281.60,0.00,COMMERCIAL SUPPLIER 
 29-03-2023,Adults,Matrix SCM Ltd,Agency Staff,1281.60,0.00,COMMERCIAL SUPPLIER 
 15-03-2023,Adults,Matrix SCM Ltd,Agency Staff,1282.32,0.00,COMMERCIAL SUPPLIER 
 22-03-2023,Adults,Matrix SCM Ltd,Agency Staff,1282.32,0.00,COMMERCIAL SUPPLIER 
 01-03-2023,Adults,Matrix SCM Ltd,Agency Staff,1282.34,0.00,COMMERCIAL SUPPLIER 
 08-03-2023,Adults,Matrix SCM Ltd,Agency Staff,1282.34,0.00,COMMERCIAL SUPPLIER 
 08-03-2023,Adults,Matrix SCM Ltd,Agency Staff,1282.34,0.00,COMMERCIAL SUPPLIER 
 15-03-2023,Adults,Matrix SCM Ltd,Agency Staff,1282.34,0.00,COMMERCIAL SUPPLIER 
 22-03-2023,Adults,Matrix SCM Ltd,Agency Staff,1282.34,0.00,COMMERCIAL SUPPLIER 
 29-03-2023,Adults,Matrix SCM Ltd,Agency Staff,1282.34,0.00,COMMERCIAL SUPPLIER 
 15-03-2023,Adults,Matrix SCM Ltd,Agency Staff,1283.78,0.00,COMMERCIAL SUPPLIER 
 15-03-2023,Adults,Matrix SCM Ltd,Agency Staff,1283.78,0.00,COMMERCIAL SUPPLIER 
 22-03-2023,Adults,Matrix SCM Ltd,Agency Staff,1283.78,0.00,COMMERCIAL SUPPLIER 
 29-03-2023,Adults,Matrix SCM Ltd,Agency Staff,1283.78,0.00,COMMERCIAL SUPPLIER 
 01-03-2023,Adults,Matrix SCM Ltd,Agency Staff,1286.60,0.00,COMMERCIAL SUPPLIER 
 10-03-2023,Adults,Lodge Lane Care Home Limited,Nursing Homes - Private Contractors Payment,1290.71,0.00,COMMERCIAL SUPPLIER 
 14-03-2023,Adults,Home Sweet Home Care Ltd,Home Care - Private Contractors Payment,1292.98,0.00,COMMERCIAL SUPPLIER 
 30-03-2023,Adults,Thurrock Lifestyle Solutions CIC,Daycare - Private Contractors Payment,1294.12,0.00,COMMERCIAL SUPPLIER 
 29-03-2023,Adults,Cera Care Operations Ltd,Home Care - Private Contractors Payment,1294.62,0.00,COMMERCIAL SUPPLIER 
 20-03-2023,Adults,Funky Willows Ltd,Daycare - Private Contractors Payment,1296.00,0.00,COMMERCIAL SUPPLIER 
 13-03-2023,Adults,Delight Supported Living Ltd,Home Care - Private Contractors Payment,1296.96,0.00,COMMERCIAL SUPPLIER 
 13-03-2023,Adults,Delight Supported Living Ltd,Home Care - Private Contractors Payment,1296.96,0.00,COMMERCIAL SUPPLIER 
 13-03-2023,Adults,Quality Healthcare Solutions Ltd t/a Kare Plus Romford,Home Care - Private Contractors Payment,1297.57,0.00,COMMERCIAL SUPPLIER 
 26-03-2023,Adults,Personal Information � Redacted,Home Care - Private Contractors Payment,1298.88,0.00,INDIVIDUALS 
 27-03-2023,Adults,Premier Carewaiting Ltd,Home Care - Private Contractors Payment,1298.88,0.00,COMMERCIAL SUPPLIER 
 27-03-2023,Adults,Premier Carewaiting Ltd,Home Care - Private Contractors Payment,1298.88,0.00,COMMERCIAL SUPPLIER 
 08-03-2023,Adults,Lodge Group Care UK Ltd,Home Care - Private Contractors Payment,1301.50,0.00,COMMERCIAL SUPPLIER 
 08-03-2023,Adults,Cera Care Operations Ltd,Home Care - Private Contractors Payment,1305.44,0.00,COMMERCIAL SUPPLIER 
 06-03-2023,Adults,Home Support Services (Havering & Essex) Ltd,Home Care - Private Contractors Payment,1309.05,0.00,COMMERCIAL SUPPLIER 
 17-03-2023,Adults,Dignified Homecare,Home Care - Private Contractors Payment,1312.00,0.00,COMMERCIAL SUPPLIER 
 17-03-2023,Adults,Dignified Homecare,Home Care - Private Contractors Payment,1312.00,0.00,COMMERCIAL SUPPLIER 
 08-03-2023,Adults,Cera Care Operations Ltd,Home Care - Private Contractors Payment,1312.98,0.00,COMMERCIAL SUPPLIER 
 27-03-2023,Adults,London Homecare Ltd,Home Care - Private Contractors Payment,1318.56,0.00,COMMERCIAL SUPPLIER 
 03-03-2023,Adults,Romford Private Hire Ltd,Client Transport,1320.00,0.00,COMMERCIAL SUPPLIER 
 15-03-2023,Adults,Matrix SCM Ltd,Agency Staff,1323.36,0.00,COMMERCIAL SUPPLIER 
 22-03-2023,Adults,Matrix SCM Ltd,Agency Staff,1323.36,0.00,COMMERCIAL SUPPLIER 
 21-03-2023,Adults,Bettertogether Limited,Supported Other Accommodation - Private Contractors Payment,1324.14,0.00,NON COMMERCIAL SUPPLIER 
 08-03-2023,Adults,Lodge Group Care UK Ltd,Home Care - Private Contractors Payment,1325.78,0.00,COMMERCIAL SUPPLIER 
 13-03-2023,Adults,Quality Healthcare Solutions Ltd t/a Kare Plus Romford,Home Care - Private Contractors Payment,1326.43,0.00,COMMERCIAL SUPPLIER 
 29-03-2023,Adults,Prior Care Ltd_a,Home Care - Private Contractors Payment,1328.40,0.00,COMMERCIAL SUPPLIER 
 14-03-2023,Adults,Home Sweet Home Care Ltd,Home Care - Private Contractors Payment,1330.37,0.00,COMMERCIAL SUPPLIER 
 01-03-2023,Adults,Hospiva Care & Associates Agency Ltd_a,Home Care - Private Contractors Payment,1333.32,0.00,COMMERCIAL SUPPLIER 
 01-03-2023,Adults,Hospiva Care & Associates Agency Ltd_a,Home Care - Private Contractors Payment,1333.32,0.00,COMMERCIAL SUPPLIER 
 06-03-2023,Adults,Morepower Ltd t/a Aqs Homecare,Home Care - Private Contractors Payment,1333.65,0.00,COMMERCIAL SUPPLIER 
 08-03-2023,Adults,Lodge Group Care UK Ltd,Home Care - Private Contractors Payment,1338.24,0.00,COMMERCIAL SUPPLIER 
 08-03-2023,Adults,Cera Care Operations Ltd,Home Care - Private Contractors Payment,1339.22,0.00,COMMERCIAL SUPPLIER 
 02-03-2023,Adults,Dignified Homecare,Home Care - Private Contractors Payment,1341.00,0.00,COMMERCIAL SUPPLIER 
 17-03-2023,Adults,Dignified Homecare,Home Care - Private Contractors Payment,1341.00,0.00,COMMERCIAL SUPPLIER 
 14-03-2023,Adults,Home Sweet Home Care Ltd,Home Care - Private Contractors Payment,1341.19,0.00,COMMERCIAL SUPPLIER 
 10-03-2023,Adults,Independant Community Support Ltd T/A Heaton Lodge,Supported Other Accommodation - Private Contractors Payment,1342.29,0.00,COMMERCIAL SUPPLIER 
 08-03-2023,Adults,Lodge Group Care UK Ltd,Home Care - Private Contractors Payment,1343.49,0.00,COMMERCIAL SUPPLIER 
 01-03-2023,Adults,Hospiva Care & Associates Agency Ltd_a,Home Care - Private Contractors Payment,1345.78,0.00,COMMERCIAL SUPPLIER 
 06-03-2023,Adults,Home Support Services (Havering & Essex) Ltd,Home Care - Private Contractors Payment,1348.08,0.00,COMMERCIAL SUPPLIER 
 08-03-2023,Adults,Lodge Group Care UK Ltd,Home Care - Private Contractors Payment,1348.08,0.00,COMMERCIAL SUPPLIER 
 27-03-2023,Adults,London Homecare Ltd,Home Care - Private Contractors Payment,1348.08,0.00,COMMERCIAL SUPPLIER 
 13-03-2023,Adults,All Therapy Solutions Ltd,Occupational Health,1350.00,0.00,COMMERCIAL SUPPLIER 
 10-03-2023,Adults,Ashgate House Ltd_a,Residential Placements - Private Contractors Payment,1350.36,0.00,COMMERCIAL SUPPLIER 
 15-03-2023,Adults,London Care Plc_a,Home Care - Private Contractors Payment,1350.38,0.00,COMMERCIAL SUPPLIER 
 15-03-2023,Adults,London Care Plc_a,Home Care - Private Contractors Payment,1350.70,0.00,COMMERCIAL SUPPLIER 
 13-03-2023,Adults,Quality Healthcare Solutions Ltd t/a Kare Plus Romford,Home Care - Private Contractors Payment,1351.36,0.00,COMMERCIAL SUPPLIER 
 08-03-2023,Adults,Cera Care Operations Ltd,Home Care - Private Contractors Payment,1358.58,0.00,COMMERCIAL SUPPLIER 
 08-03-2023,Adults,Lodge Group Care UK Ltd,Home Care - Private Contractors Payment,1360.54,0.00,COMMERCIAL SUPPLIER 
 10-03-2023,Adults,L & Q Living (SWIFT Payments),Supported Other Accommodation - Private Contractors Payment,1365.82,0.00,COMMERCIAL SUPPLIER 
 15-03-2023,Adults,London Care Plc_a,Home Care - Private Contractors Payment,1374.65,0.00,COMMERCIAL SUPPLIER 
 29-03-2023,Adults,London Care Plc_a,Home Care - Private Contractors Payment,1375.63,0.00,COMMERCIAL SUPPLIER 
 01-03-2023,Adults,Certified Healthcare Solutions Ltd t/a In Home Care Havering,Home Care - Private Contractors Payment,1377.60,0.00,COMMERCIAL SUPPLIER 
 01-03-2023,Adults,Certified Healthcare Solutions Ltd t/a In Home Care Havering,Home Care - Private Contractors Payment,1377.60,0.00,COMMERCIAL SUPPLIER 
 03-03-2023,Adults,Passion Tree Care Services Ltd,Home Care - Private Contractors Payment,1377.60,0.00,COMMERCIAL SUPPLIER 
 07-03-2023,Adults,Crystalize Care Services Ltd,Home Care - Private Contractors Payment,1377.60,0.00,COMMERCIAL SUPPLIER 
 07-03-2023,Adults,Rosemont Care Limited,Home Care - Private Contractors Payment,1377.60,0.00,COMMERCIAL SUPPLIER 
 07-03-2023,Adults,Rosemont Care Limited,Home Care - Private Contractors Payment,1377.60,0.00,COMMERCIAL SUPPLIER 
 26-03-2023,Adults,Personal Information � Redacted,Home Care - Private Contractors Payment,1377.60,0.00,INDIVIDUALS 
 28-03-2023,Adults,Certified Healthcare Solutions Ltd t/a In Home Care Havering,Home Care - Private Contractors Payment,1377.60,0.00,COMMERCIAL SUPPLIER 
 28-03-2023,Adults,Certified Healthcare Solutions Ltd t/a In Home Care Havering,Home Care - Private Contractors Payment,1377.60,0.00,COMMERCIAL SUPPLIER 
 31-03-2023,Adults,Crystalize Care Services Ltd,Home Care - Private Contractors Payment,1377.60,0.00,COMMERCIAL SUPPLIER 
 20-03-2023,Adults,Eastway Care Ltd_a,Daycare - Private Contractors Payment,1380.00,0.00,COMMERCIAL SUPPLIER 
 01-03-2023,Adults,Matrix SCM Ltd,Agency Staff,1380.61,0.00,COMMERCIAL SUPPLIER 
 09-03-2023,Adults,Prior Care Ltd_a,Home Care - Private Contractors Payment,1381.21,0.00,COMMERCIAL SUPPLIER 
 06-03-2023,Adults,Home Support Services (Havering & Essex) Ltd,Home Care - Private Contractors Payment,1381.54,0.00,COMMERCIAL SUPPLIER 
 01-03-2023,Adults,Matrix SCM Ltd,Agency Staff,1384.58,0.00,COMMERCIAL SUPPLIER 
 08-03-2023,Adults,Matrix SCM Ltd,Agency Staff,1384.58,0.00,COMMERCIAL SUPPLIER 
 15-03-2023,Adults,Matrix SCM Ltd,Agency Staff,1384.58,0.00,COMMERCIAL SUPPLIER 
 22-03-2023,Adults,Matrix SCM Ltd,Agency Staff,1384.58,0.00,COMMERCIAL SUPPLIER 
 29-03-2023,Adults,Matrix SCM Ltd,Agency Staff,1384.58,0.00,COMMERCIAL SUPPLIER 
 15-03-2023,Adults,London Care Plc_a,Home Care - Private Contractors Payment,1385.47,0.00,COMMERCIAL SUPPLIER 
 10-03-2023,Adults,Shalom Community Support Services,Supported Other Accommodation - Private Contractors Payment,1392.00,0.00,COMMERCIAL SUPPLIER 
 29-03-2023,Adults,London Care Plc_a,Home Care - Private Contractors Payment,1392.03,0.00,COMMERCIAL SUPPLIER 
 12-03-2023,Adults,Jaktol Day Centers,Daycare - Private Contractors Payment,1393.92,0.00,COMMERCIAL SUPPLIER 
 08-03-2023,Adults,Lodge Group Care UK Ltd,Home Care - Private Contractors Payment,1395.64,0.00,COMMERCIAL SUPPLIER 
 15-03-2023,Adults,Matrix SCM Ltd,Agency Staff,1395.71,0.00,COMMERCIAL SUPPLIER 
 01-03-2023,Adults,Matrix SCM Ltd,Agency Staff,1395.73,0.00,COMMERCIAL SUPPLIER 
 08-03-2023,Adults,Matrix SCM Ltd,Agency Staff,1395.73,0.00,COMMERCIAL SUPPLIER 
 22-03-2023,Adults,Matrix SCM Ltd,Agency Staff,1395.73,0.00,COMMERCIAL SUPPLIER 
 29-03-2023,Adults,Matrix SCM Ltd,Agency Staff,1395.73,0.00,COMMERCIAL SUPPLIER 
 26-03-2023,Adults,Personal Information � Redacted,Home Care - Private Contractors Payment,1397.28,0.00,INDIVIDUALS 
 27-03-2023,Adults,London Homecare Ltd,Home Care - Private Contractors Payment,1397.28,0.00,COMMERCIAL SUPPLIER 
 16-03-2023,Adults,Care-Away Ltd T/A Care Support,Home Care - Private Contractors Payment,1397.76,0.00,COMMERCIAL SUPPLIER 
 10-03-2023,Adults,2 Peel Way - Outlook Care,Supported Other Accommodation - Private Contractors Payment,1398.09,0.00,NON COMMERCIAL SUPPLIER 
 29-03-2023,Adults,London Care Plc_a,Home Care - Private Contractors Payment,1398.59,0.00,COMMERCIAL SUPPLIER 
 15-03-2023,Adults,London Care Plc_a,Home Care - Private Contractors Payment,1399.58,0.00,COMMERCIAL SUPPLIER 
 07-03-2023,Adults,Flex360 Limited,Private Contractors Payment - Other,1400.00,0.00,COMMERCIAL SUPPLIER 
 14-03-2023,Adults,Home Sweet Home Care Ltd,Home Care - Private Contractors Payment,1400.23,0.00,COMMERCIAL SUPPLIER 
 10-03-2023,Adults,DMP Healthcare (Cherry Orchard) Ltd,Nursing Homes - Private Contractors Payment,1402.47,0.00,COMMERCIAL SUPPLIER 
 29-03-2023,Adults,London Care Plc_a,Home Care - Private Contractors Payment,1406.14,0.00,COMMERCIAL SUPPLIER 
 10-03-2023,Adults,Fountains Care Centre - Bondcare,Nursing Homes - Private Contractors Payment,1414.29,0.00,COMMERCIAL SUPPLIER 
 01-03-2023,Adults,Hospiva Care & Associates Agency Ltd_a,Home Care - Private Contractors Payment,1416.94,0.00,COMMERCIAL SUPPLIER 
 07-03-2023,Adults,Crystalize Care Services Ltd,Home Care - Private Contractors Payment,1416.96,0.00,COMMERCIAL SUPPLIER 
 29-03-2023,Adults,Inna Care Ltd,Home Care - Private Contractors Payment,1416.96,0.00,COMMERCIAL SUPPLIER 
 31-03-2023,Adults,Crystalize Care Services Ltd,Home Care - Private Contractors Payment,1416.96,0.00,COMMERCIAL SUPPLIER 
 10-03-2023,Adults,Outlook Care - 76 Neave Crescent,Supported Other Accommodation - Private Contractors Payment,1425.52,0.00,COMMERCIAL SUPPLIER 
 06-03-2023,Adults,Home Support Services (Havering & Essex) Ltd,Home Care - Private Contractors Payment,1429.10,0.00,COMMERCIAL SUPPLIER 
 29-03-2023,Adults,Cera Care Operations Ltd,Home Care - Private Contractors Payment,1430.08,0.00,COMMERCIAL SUPPLIER 
 01-03-2023,Adults,Matrix SCM Ltd,Agency Staff,1436.42,0.00,COMMERCIAL SUPPLIER 
 08-03-2023,Adults,Matrix SCM Ltd,Agency Staff,1436.42,0.00,COMMERCIAL SUPPLIER 
 15-03-2023,Adults,Matrix SCM Ltd,Agency Staff,1436.42,0.00,COMMERCIAL SUPPLIER 
 22-03-2023,Adults,Matrix SCM Ltd,Agency Staff,1436.42,0.00,COMMERCIAL SUPPLIER 
 29-03-2023,Adults,Matrix SCM Ltd,Agency Staff,1436.42,0.00,COMMERCIAL SUPPLIER 
 26-03-2023,Adults,Westminster Homecare Ltd_a,Home Care - Private Contractors Payment,1436.64,0.00,COMMERCIAL SUPPLIER 
 06-03-2023,Adults,London Borough of Barking & Dagenham_a,Daycare - Private Contractors Payment,1440.00,0.00,LOCAL AUTHORITY SERVICES 
 06-03-2023,Adults,London Borough of Barking & Dagenham_a,Daycare - Private Contractors Payment,1440.00,0.00,LOCAL AUTHORITY SERVICES 
 10-03-2023,Adults,Bettertogether Limited,Supported Other Accommodation - Private Contractors Payment,1440.00,0.00,NON COMMERCIAL SUPPLIER 
 10-03-2023,Adults,Bettertogether Limited,Supported Other Accommodation - Private Contractors Payment,1440.00,0.00,NON COMMERCIAL SUPPLIER 
 20-03-2023,Adults,Funky Willows Ltd,Daycare - Private Contractors Payment,1440.00,0.00,COMMERCIAL SUPPLIER 
 20-03-2023,Adults,Funky Willows Ltd,Daycare - Private Contractors Payment,1440.00,0.00,COMMERCIAL SUPPLIER 
 08-03-2023,Adults,Lodge Group Care UK Ltd,Home Care - Private Contractors Payment,1444.84,0.00,COMMERCIAL SUPPLIER 
 08-03-2023,Adults,Lodge Group Care UK Ltd,Home Care - Private Contractors Payment,1453.04,0.00,COMMERCIAL SUPPLIER 
 08-03-2023,Adults,Lodge Group Care UK Ltd,Home Care - Private Contractors Payment,1464.19,0.00,COMMERCIAL SUPPLIER 
 06-03-2023,Adults,Westminster Homecare Ltd_a,Home Care - Private Contractors Payment,1476.00,0.00,COMMERCIAL SUPPLIER 
 08-03-2023,Adults,Cera Care Operations Ltd,Home Care - Private Contractors Payment,1479.28,0.00,COMMERCIAL SUPPLIER 
 29-03-2023,Adults,Matrix SCM Ltd,Agency Staff,1482.64,0.00,COMMERCIAL SUPPLIER 
 10-03-2023,Adults,Ranc Care Homes Ltd - Romford Care Centre,Residential Placements - Private Contractors Payment,1485.71,0.00,COMMERCIAL SUPPLIER 
 08-03-2023,Adults,Lodge Group Care UK Ltd,Home Care - Private Contractors Payment,1491.42,0.00,COMMERCIAL SUPPLIER 
 21-03-2023,Adults,Bettertogether Limited,Supported Other Accommodation - Private Contractors Payment,1496.86,0.00,NON COMMERCIAL SUPPLIER 
 01-03-2023,Adults,Matrix SCM Ltd,Agency Staff,1499.20,0.00,COMMERCIAL SUPPLIER 
 08-03-2023,Adults,Matrix SCM Ltd,Agency Staff,1499.20,0.00,COMMERCIAL SUPPLIER 
 15-03-2023,Adults,Matrix SCM Ltd,Agency Staff,1499.20,0.00,COMMERCIAL SUPPLIER 
 22-03-2023,Adults,Matrix SCM Ltd,Agency Staff,1499.20,0.00,COMMERCIAL SUPPLIER 
 01-03-2023,Adults,Osborne Partnership,Daycare - Private Contractors Payment,1500.00,0.00,COMMERCIAL SUPPLIER 
 31-03-2023,Adults,Osborne Partnership,Daycare - Private Contractors Payment,1500.00,0.00,COMMERCIAL SUPPLIER 
 06-03-2023,Adults,Westminster Homecare Ltd_a,Home Care - Private Contractors Payment,1513.06,0.00,COMMERCIAL SUPPLIER 
 06-03-2023,Adults,Care-Away Ltd T/A Care Support,Home Care - Private Contractors Payment,1514.24,0.00,COMMERCIAL SUPPLIER 
 26-03-2023,Adults,Personal Information � Redacted,Home Care - Private Contractors Payment,1515.36,0.00,INDIVIDUALS 
 15-03-2023,Adults,Matrix SCM Ltd,Agency Staff,1517.94,0.00,COMMERCIAL SUPPLIER 
 22-03-2023,Adults,Matrix SCM Ltd,Agency Staff,1517.94,0.00,COMMERCIAL SUPPLIER 
 10-03-2023,Adults,Black Swan International Ltd - Drummonds,Residential Placements - Private Contractors Payment,1522.50,0.00,COMMERCIAL SUPPLIER 
 01-03-2023,Adults,Matrix SCM Ltd,Agency Staff,1523.92,0.00,COMMERCIAL SUPPLIER 
 10-03-2023,Adults,Blueboard Care Services Ltd,Supported Other Accommodation - Private Contractors Payment,1531.20,0.00,COMMERCIAL SUPPLIER 
 10-03-2023,Adults,Blueboard Care Services Ltd,Supported Other Accommodation - Private Contractors Payment,1531.20,0.00,COMMERCIAL SUPPLIER 
 10-03-2023,Adults,The Cedars,Supported Other Accommodation - Private Contractors Payment,1532.07,0.00,COMMERCIAL SUPPLIER 
 06-03-2023,Adults,Westminster Homecare Ltd_a,Home Care - Private Contractors Payment,1533.07,0.00,COMMERCIAL SUPPLIER 
 26-03-2023,Adults,Personal Information � Redacted,Home Care - Private Contractors Payment,1535.04,0.00,INDIVIDUALS 
 26-03-2023,Adults,Personal Information � Redacted,Home Care - Private Contractors Payment,1535.04,0.00,INDIVIDUALS 
 14-03-2023,Adults,Home Sweet Home Care Ltd,Home Care - Private Contractors Payment,1537.01,0.00,COMMERCIAL SUPPLIER 
 20-03-2023,Adults,Romford Private Hire Ltd,Client Transport,1540.00,0.00,COMMERCIAL SUPPLIER 
 10-03-2023,Adults,Ebony Health Care Services Limited,Supported Other Accommodation - Private Contractors Payment,1549.68,0.00,COMMERCIAL SUPPLIER 
 08-03-2023,Adults,Action First Assessments Ltd,Private Contractors Payment - Other,1550.00,0.00,COMMERCIAL SUPPLIER 
 22-03-2023,Adults,Action First Assessments Ltd,Private Contractors Payment - Other,1550.00,0.00,COMMERCIAL SUPPLIER 
 26-03-2023,Adults,Westminster Homecare Ltd_a,Home Care - Private Contractors Payment,1550.46,0.00,COMMERCIAL SUPPLIER 
 03-03-2023,Adults,Passion Tree Care Services Ltd,Home Care - Private Contractors Payment,1554.72,0.00,COMMERCIAL SUPPLIER 
 26-03-2023,Adults,Westminster Homecare Ltd_a,Home Care - Private Contractors Payment,1561.61,0.00,COMMERCIAL SUPPLIER 
 16-03-2023,Adults,Care-Away Ltd T/A Care Support,Home Care - Private Contractors Payment,1564.16,0.00,COMMERCIAL SUPPLIER 
 10-03-2023,Adults,Heath Care Services Ltd ,Supported Other Accommodation - Private Contractors Payment,1566.00,0.00,COMMERCIAL SUPPLIER 
 10-03-2023,Adults,Regal Care Ltd,Nursing Homes - Private Contractors Payment,1571.43,0.00,COMMERCIAL SUPPLIER 
 08-03-2023,Adults,Lodge Group Care UK Ltd,Home Care - Private Contractors Payment,1574.07,0.00,COMMERCIAL SUPPLIER 
 29-03-2023,Adults,Inna Care Ltd,Home Care - Private Contractors Payment,1574.40,0.00,COMMERCIAL SUPPLIER 
 10-03-2023,Adults,The Cedars,Supported Other Accommodation - Private Contractors Payment,1585.68,0.00,COMMERCIAL SUPPLIER 
 10-03-2023,Adults,Lodge Lane Care Home Limited,Residential Placements - Private Contractors Payment,1588.57,0.00,COMMERCIAL SUPPLIER 
 21-03-2023,Adults,Lodge Lane Care Home Limited,Nursing Homes - Private Contractors Payment,1588.57,0.00,COMMERCIAL SUPPLIER 
 10-03-2023,Adults,Affinia Healthcare Ltd_a,Supported Other Accommodation - Private Contractors Payment,1593.43,0.00,COMMERCIAL SUPPLIER 
 10-03-2023,Adults,Coastal Supported Living CIC,Supported Other Accommodation - Private Contractors Payment,1606.88,0.00,COMMERCIAL SUPPLIER 
 10-03-2023,Adults,Bettertogether Limited,Supported Other Accommodation - Private Contractors Payment,1612.00,0.00,NON COMMERCIAL SUPPLIER 
 10-03-2023,Adults,Bettertogether Limited,Supported Other Accommodation - Private Contractors Payment,1612.00,0.00,NON COMMERCIAL SUPPLIER 
 21-03-2023,Adults,Bettertogether Limited,Supported Other Accommodation - Private Contractors Payment,1612.00,0.00,NON COMMERCIAL SUPPLIER 
 21-03-2023,Adults,Bettertogether Limited,Supported Other Accommodation - Private Contractors Payment,1612.00,0.00,NON COMMERCIAL SUPPLIER 
 21-03-2023,Adults,Bettertogether Limited,Supported Other Accommodation - Private Contractors Payment,1612.00,0.00,NON COMMERCIAL SUPPLIER 
 21-03-2023,Adults,Bettertogether Limited,Supported Other Accommodation - Private Contractors Payment,1612.00,0.00,NON COMMERCIAL SUPPLIER 
 21-03-2023,Adults,Bettertogether Limited,Supported Other Accommodation - Private Contractors Payment,1612.00,0.00,NON COMMERCIAL SUPPLIER 
 21-03-2023,Adults,Bettertogether Limited,Supported Other Accommodation - Private Contractors Payment,1612.00,0.00,NON COMMERCIAL SUPPLIER 
 21-03-2023,Adults,Bettertogether Limited,Supported Other Accommodation - Private Contractors Payment,1612.00,0.00,NON COMMERCIAL SUPPLIER 
 21-03-2023,Adults,Bettertogether Limited,Supported Other Accommodation - Private Contractors Payment,1612.00,0.00,NON COMMERCIAL SUPPLIER 
 21-03-2023,Adults,Bettertogether Limited,Supported Other Accommodation - Private Contractors Payment,1612.00,0.00,NON COMMERCIAL SUPPLIER 
 10-03-2023,Adults,Outlook Care - 76 Neave Crescent,Supported Other Accommodation - Private Contractors Payment,1617.79,0.00,COMMERCIAL SUPPLIER 
 10-03-2023,Adults,Outlook Care - 76 Neave Crescent,Supported Other Accommodation - Private Contractors Payment,1617.79,0.00,COMMERCIAL SUPPLIER 
 10-03-2023,Adults,Outlook Care - 76 Neave Crescent,Supported Other Accommodation - Private Contractors Payment,1617.79,0.00,COMMERCIAL SUPPLIER 
 10-03-2023,Adults,Outlook Care - 76 Neave Crescent,Supported Other Accommodation - Private Contractors Payment,1617.79,0.00,COMMERCIAL SUPPLIER 
 10-03-2023,Adults,Outlook Care - 76 Neave Crescent,Supported Other Accommodation - Private Contractors Payment,1617.79,0.00,COMMERCIAL SUPPLIER 
 10-03-2023,Adults,Outlook Care - 76 Neave Crescent,Supported Other Accommodation - Private Contractors Payment,1617.79,0.00,COMMERCIAL SUPPLIER 
 10-03-2023,Adults,Outlook Care - 76 Neave Crescent,Supported Other Accommodation - Private Contractors Payment,1617.79,0.00,COMMERCIAL SUPPLIER 
 10-03-2023,Adults,Outlook Care - 76 Neave Crescent,Supported Other Accommodation - Private Contractors Payment,1617.79,0.00,COMMERCIAL SUPPLIER 
 10-03-2023,Adults,Outlook Care - 86 Veronica Close,Residential Placements - Private Contractors Payment,1621.47,0.00,COMMERCIAL SUPPLIER 
 10-03-2023,Adults,Outlook Care - 76 Neave Crescent,Supported Other Accommodation - Private Contractors Payment,1622.55,0.00,COMMERCIAL SUPPLIER 
 10-03-2023,Adults,Outlook Care - 76 Neave Crescent,Supported Other Accommodation - Private Contractors Payment,1622.55,0.00,COMMERCIAL SUPPLIER 
 10-03-2023,Adults,Outlook Care - 4 Peel Way,Supported Other Accommodation - Private Contractors Payment,1626.90,0.00,COMMERCIAL SUPPLIER 
 27-03-2023,Adults,Outreach Support Services Ltd,Home Care - Private Contractors Payment,1633.44,0.00,COMMERCIAL SUPPLIER 
 10-03-2023,Adults,Pathways Care and Support Services Ltd,Supported Other Accommodation - Private Contractors Payment,1638.21,0.00,COMMERCIAL SUPPLIER 
 03-03-2023,Adults,Unique Office Solutions Ltd,Purchase - Equipment Furniture And Materials,1640.00,0.00,COMMERCIAL SUPPLIER 
 10-03-2023,Adults,Willows Care Home - Churchgate Healthcare (Willows) Ltd,Respite Care - Private Contractors Payment,1642.86,0.00,COMMERCIAL SUPPLIER 
 10-03-2023,Adults,Fountains Care Centre - Bondcare,Nursing Homes - Private Contractors Payment,1650.00,0.00,COMMERCIAL SUPPLIER 
 06-03-2023,Adults,Home Support Services (Havering & Essex) Ltd,Home Care - Private Contractors Payment,1653.12,0.00,COMMERCIAL SUPPLIER 
 27-03-2023,Adults,Outreach Support Services Ltd,Home Care - Private Contractors Payment,1653.12,0.00,COMMERCIAL SUPPLIER 
 27-03-2023,Adults,Premier Carewaiting Ltd,Home Care - Private Contractors Payment,1653.12,0.00,COMMERCIAL SUPPLIER 
 28-03-2023,Adults,Bloomscare Ltd,Home Care - Private Contractors Payment,1653.12,0.00,COMMERCIAL SUPPLIER 
 28-03-2023,Adults,Bloomscare Ltd,Home Care - Private Contractors Payment,1653.12,0.00,COMMERCIAL SUPPLIER 
 29-03-2023,Adults,Inna Care Ltd,Home Care - Private Contractors Payment,1653.12,0.00,COMMERCIAL SUPPLIER 
 10-03-2023,Adults,Outlook Care - 76 Neave Crescent,Supported Other Accommodation - Private Contractors Payment,1654.99,0.00,COMMERCIAL SUPPLIER 
 10-03-2023,Adults,Outlook Care - 76 Neave Crescent,Supported Other Accommodation - Private Contractors Payment,1654.99,0.00,COMMERCIAL SUPPLIER 
 10-03-2023,Adults,Outlook Care - 76 Neave Crescent,Supported Other Accommodation - Private Contractors Payment,1654.99,0.00,COMMERCIAL SUPPLIER 
 10-03-2023,Adults,Outlook Care - 76 Neave Crescent,Supported Other Accommodation - Private Contractors Payment,1654.99,0.00,COMMERCIAL SUPPLIER 
 10-03-2023,Adults,Outreach Support Services Ltd,Supported Other Accommodation - Private Contractors Payment,1657.14,0.00,COMMERCIAL SUPPLIER 
 10-03-2023,Adults,Affinia Healthcare Ltd_a,Supported Other Accommodation - Private Contractors Payment,1661.70,0.00,COMMERCIAL SUPPLIER 
 02-03-2023,Adults,Gims Care Solution Ltd_a,Home Care - Private Contractors Payment,1669.68,0.00,NON COMMERCIAL SUPPLIER 
 10-03-2023,Adults,Masumin Ltd t/s Abbeleigh House,Respite Care - Private Contractors Payment,1670.00,0.00,COMMERCIAL SUPPLIER 
 10-03-2023,Adults,Ashking House Ltd,Residential Placements - Private Contractors Payment,1674.58,0.00,COMMERCIAL SUPPLIER 
 10-03-2023,Adults,The Riverside Group,Supported Other Accommodation - Private Contractors Payment,1681.09,0.00, 
 01-03-2023,Adults,Matrix SCM Ltd,Agency Staff,1686.60,0.00,COMMERCIAL SUPPLIER 
 08-03-2023,Adults,Matrix SCM Ltd,Agency Staff,1686.60,0.00,COMMERCIAL SUPPLIER 
 29-03-2023,Adults,Matrix SCM Ltd,Agency Staff,1686.60,0.00,COMMERCIAL SUPPLIER 
 10-03-2023,Adults,Lodge Lane Care Home Limited,Residential Placements - Private Contractors Payment,1687.86,0.00,COMMERCIAL SUPPLIER 
 21-03-2023,Adults,Mundy House,Residential Placements - Private Contractors Payment,1687.86,0.00,COMMERCIAL SUPPLIER 
 02-03-2023,Adults,IJB Healthcare Ltd,Home Care - Private Contractors Payment,1692.48,0.00,COMMERCIAL SUPPLIER 
 31-03-2023,Adults,IJB Healthcare Ltd,Home Care - Private Contractors Payment,1692.48,0.00,COMMERCIAL SUPPLIER 
 10-03-2023,Adults,Affinia Healthcare Ltd_a,Supported Other Accommodation - Private Contractors Payment,1709.72,0.00,COMMERCIAL SUPPLIER 
 10-03-2023,Adults,Beechcourt Care Centre - Bondcare,Nursing Homes - Private Contractors Payment,1710.00,0.00,COMMERCIAL SUPPLIER 
 10-03-2023,Adults,Optimal Care Services Ltd,Supported Other Accommodation - Private Contractors Payment,1710.00,0.00,COMMERCIAL SUPPLIER 
 06-03-2023,Adults,Morepower Ltd t/a Aqs Homecare,Home Care - Private Contractors Payment,1716.42,0.00,COMMERCIAL SUPPLIER 
 08-03-2023,Adults,Lodge Group Care UK Ltd,Home Care - Private Contractors Payment,1719.05,0.00,COMMERCIAL SUPPLIER 
 10-03-2023,Adults,Outlook Care - 76 Neave Crescent,Supported Other Accommodation - Private Contractors Payment,1737.85,0.00,COMMERCIAL SUPPLIER 
 07-03-2023,Adults,Optimal Care Services Ltd,Supported Other Accommodation - Private Contractors Payment,1740.00,0.00,COMMERCIAL SUPPLIER 
 07-03-2023,Adults,Optimal Care Services Ltd,Supported Other Accommodation - Private Contractors Payment,1740.00,0.00,COMMERCIAL SUPPLIER 
 07-03-2023,Adults,Optimal Care Services Ltd,Supported Other Accommodation - Private Contractors Payment,1740.00,0.00,COMMERCIAL SUPPLIER 
 10-03-2023,Adults,Protecthand Care Ltd ,Supported Other Accommodation - Private Contractors Payment,1740.00,0.00,COMMERCIAL SUPPLIER 
 29-03-2023,Adults,Cera Care Operations Ltd,Home Care - Private Contractors Payment,1740.37,0.00,COMMERCIAL SUPPLIER 
 10-03-2023,Adults,2 Peel Way - Outlook Care,Supported Other Accommodation - Private Contractors Payment,1747.54,0.00,NON COMMERCIAL SUPPLIER 
 14-03-2023,Adults,Flex360 Limited,Private Contractors Payment - Other,1750.00,0.00,COMMERCIAL SUPPLIER 
 21-03-2023,Adults,Flex360 Limited,Private Contractors Payment - Other,1750.00,0.00,COMMERCIAL SUPPLIER 
 27-03-2023,Adults,Outreach Support Services Ltd,Home Care - Private Contractors Payment,1758.48,0.00,COMMERCIAL SUPPLIER 
 27-03-2023,Adults,Outreach Support Services Ltd,Home Care - Private Contractors Payment,1758.48,0.00,COMMERCIAL SUPPLIER 
 12-03-2023,Adults,Jaktol Day Centers,Daycare - Private Contractors Payment,1762.56,0.00,COMMERCIAL SUPPLIER 
 10-03-2023,Adults,Affinia Healthcare Ltd_a,Supported Other Accommodation - Private Contractors Payment,1765.06,0.00,COMMERCIAL SUPPLIER 
 10-03-2023,Adults,Bettertogether Limited,Supported Other Accommodation - Private Contractors Payment,1776.00,0.00,NON COMMERCIAL SUPPLIER 
 10-03-2023,Adults,Bettertogether Limited,Supported Other Accommodation - Private Contractors Payment,1776.00,0.00,NON COMMERCIAL SUPPLIER 
 10-03-2023,Adults,Sahara Care Ltd,Residential Placements - Private Contractors Payment,1776.00,0.00,COMMERCIAL SUPPLIER 
 10-03-2023,Adults,Outlook Care - 4 Peel Way,Supported Other Accommodation - Private Contractors Payment,1781.22,0.00,COMMERCIAL SUPPLIER 
 10-03-2023,Adults,Outlook Care - 76 Neave Crescent,Supported Other Accommodation - Private Contractors Payment,1781.30,0.00,COMMERCIAL SUPPLIER 
 10-03-2023,Adults,Outlook Care - 76 Neave Crescent,Supported Other Accommodation - Private Contractors Payment,1781.30,0.00,COMMERCIAL SUPPLIER 
 10-03-2023,Adults,Vibrance ,Residential Placements - Private Contractors Payment,1782.22,0.00,COMMERCIAL SUPPLIER 
 10-03-2023,Adults,2 Peel Way - Outlook Care,Supported Other Accommodation - Private Contractors Payment,1782.46,0.00,NON COMMERCIAL SUPPLIER 
 10-03-2023,Adults,Lodge Lane Care Home Limited,Respite Care - Private Contractors Payment,1787.14,0.00,COMMERCIAL SUPPLIER 
 26-03-2023,Adults,Personal Information � Redacted,Home Care - Private Contractors Payment,1790.88,0.00,INDIVIDUALS 
 26-03-2023,Adults,Personal Information � Redacted,Home Care - Private Contractors Payment,1790.88,0.00,INDIVIDUALS 
 10-03-2023,Adults,Affinia Healthcare Ltd_a,Supported Other Accommodation - Private Contractors Payment,1793.11,0.00,COMMERCIAL SUPPLIER 
 03-03-2023,Adults,Pleasant Home Healthcare Ltd,Home Care - Private Contractors Payment,1795.80,0.00,COMMERCIAL SUPPLIER 
 10-03-2023,Adults,Optimal Care Services Ltd,Supported Other Accommodation - Private Contractors Payment,1802.14,0.00,COMMERCIAL SUPPLIER 
 10-03-2023,Adults,Priory Supporting Care Ltd,Respite Care - Private Contractors Payment,1807.14,0.00,COMMERCIAL SUPPLIER 
 10-03-2023,Adults,Affinia Healthcare Ltd_a,Supported Other Accommodation - Private Contractors Payment,1813.66,0.00,COMMERCIAL SUPPLIER 
 10-03-2023,Adults,Affinia Healthcare Ltd_a,Supported Other Accommodation - Private Contractors Payment,1813.66,0.00,COMMERCIAL SUPPLIER 
 10-03-2023,Adults,Affinia Healthcare Ltd_a,Supported Other Accommodation - Private Contractors Payment,1813.66,0.00,COMMERCIAL SUPPLIER 
 10-03-2023,Adults,Affinia Healthcare Ltd_a,Supported Other Accommodation - Private Contractors Payment,1815.07,0.00,COMMERCIAL SUPPLIER 
 10-03-2023,Adults,Abbottswood Lodge,Residential Placements - Private Contractors Payment,1826.75,0.00,COMMERCIAL SUPPLIER 
 06-03-2023,Adults,Care-Away Ltd T/A Care Support,Home Care - Private Contractors Payment,1830.40,0.00,COMMERCIAL SUPPLIER 
 10-03-2023,Adults,Bettertogether Limited,Supported Other Accommodation - Private Contractors Payment,1832.00,0.00,NON COMMERCIAL SUPPLIER 
 10-03-2023,Adults,Bettertogether Limited,Supported Other Accommodation - Private Contractors Payment,1832.00,0.00,NON COMMERCIAL SUPPLIER 
 10-03-2023,Adults,Bettertogether Limited,Supported Other Accommodation - Private Contractors Payment,1832.00,0.00,NON COMMERCIAL SUPPLIER 
 10-03-2023,Adults,Bettertogether Limited,Supported Other Accommodation - Private Contractors Payment,1832.00,0.00,NON COMMERCIAL SUPPLIER 
 10-03-2023,Adults,Bettertogether Limited,Supported Other Accommodation - Private Contractors Payment,1832.00,0.00,NON COMMERCIAL SUPPLIER 
 10-03-2023,Adults,Bettertogether Limited,Supported Other Accommodation - Private Contractors Payment,1832.00,0.00,NON COMMERCIAL SUPPLIER 
 10-03-2023,Adults,Bettertogether Limited,Supported Other Accommodation - Private Contractors Payment,1832.00,0.00,NON COMMERCIAL SUPPLIER 
 10-03-2023,Adults,Bettertogether Limited,Supported Other Accommodation - Private Contractors Payment,1832.00,0.00,NON COMMERCIAL SUPPLIER 
 10-03-2023,Adults,Bettertogether Limited,Supported Other Accommodation - Private Contractors Payment,1832.00,0.00,NON COMMERCIAL SUPPLIER 
 10-03-2023,Adults,Bettertogether Limited,Supported Other Accommodation - Private Contractors Payment,1832.00,0.00,NON COMMERCIAL SUPPLIER 
 10-03-2023,Adults,Bettertogether Limited,Supported Other Accommodation - Private Contractors Payment,1832.00,0.00,NON COMMERCIAL SUPPLIER 
 10-03-2023,Adults,Bettertogether Limited,Supported Other Accommodation - Private Contractors Payment,1832.00,0.00,NON COMMERCIAL SUPPLIER 
 10-03-2023,Adults,Bettertogether Limited,Supported Other Accommodation - Private Contractors Payment,1832.00,0.00,NON COMMERCIAL SUPPLIER 
 10-03-2023,Adults,Bettertogether Limited,Supported Other Accommodation - Private Contractors Payment,1832.00,0.00,NON COMMERCIAL SUPPLIER 
 10-03-2023,Adults,Bettertogether Limited,Supported Other Accommodation - Private Contractors Payment,1832.00,0.00,NON COMMERCIAL SUPPLIER 
 10-03-2023,Adults,DMP Healthcare (Heatherbrook) Ltd,Nursing Homes - Private Contractors Payment,1836.00,0.00,NON COMMERCIAL SUPPLIER 
 01-03-2023,Adults,Hospiva Care & Associates Agency Ltd_a,Home Care - Private Contractors Payment,1836.14,0.00,COMMERCIAL SUPPLIER 
 10-03-2023,Adults,Fountains Care Centre - Bondcare,Respite Care - Private Contractors Payment,1840.29,0.00,COMMERCIAL SUPPLIER 
 12-03-2023,Adults,Jaktol Day Centers,Daycare - Private Contractors Payment,1858.56,0.00,COMMERCIAL SUPPLIER 
 10-03-2023,Adults,Outlook Care - 4 Peel Way,Supported Other Accommodation - Private Contractors Payment,1860.23,0.00,COMMERCIAL SUPPLIER 
 10-03-2023,Adults,Outlook Care - 4 Peel Way,Supported Other Accommodation - Private Contractors Payment,1860.23,0.00,COMMERCIAL SUPPLIER 
 16-03-2023,Adults,Care-Away Ltd T/A Care Support,Home Care - Private Contractors Payment,1863.68,0.00,COMMERCIAL SUPPLIER 
 16-03-2023,Adults,Care-Away Ltd T/A Care Support,Home Care - Private Contractors Payment,1863.68,0.00,COMMERCIAL SUPPLIER 
 10-03-2023,Adults,Kadmiel Projects Ltd,Supported Other Accommodation - Private Contractors Payment,1867.77,0.00,COMMERCIAL SUPPLIER 
 10-03-2023,Adults,Kadmiel Projects Ltd,Supported Other Accommodation - Private Contractors Payment,1877.63,0.00,COMMERCIAL SUPPLIER 
 10-03-2023,Adults,Affinia Healthcare Ltd_a,Supported Other Accommodation - Private Contractors Payment,1882.72,0.00,COMMERCIAL SUPPLIER 
 10-03-2023,Adults,Forward Support Ltd ,Residential Placements - Private Contractors Payment,1895.36,0.00,COMMERCIAL SUPPLIER 
 03-03-2023,Adults,Pleasant Home Healthcare Ltd,Home Care - Private Contractors Payment,1899.12,0.00,COMMERCIAL SUPPLIER 
 10-03-2023,Adults,Ranc Care Homes Ltd - Romford Care Centre,Residential Placements - Private Contractors Payment,1900.00,0.00,COMMERCIAL SUPPLIER 
 27-03-2023,Adults,Outreach Support Services Ltd,Home Care - Private Contractors Payment,1928.64,0.00,COMMERCIAL SUPPLIER 
 14-03-2023,Adults,Home Sweet Home Care Ltd,Home Care - Private Contractors Payment,1930.28,0.00,COMMERCIAL SUPPLIER 
 29-03-2023,Adults,Lorablooms Care Services Ltd,Home Care - Private Contractors Payment,1943.04,0.00,NON COMMERCIAL SUPPLIER 
 13-03-2023,Adults,John Stanleys Care Agency Ltd,Home Care - Private Contractors Payment,1948.32,0.00,COMMERCIAL SUPPLIER 
 26-03-2023,Adults,Personal Information � Redacted,Home Care - Private Contractors Payment,1948.32,0.00,INDIVIDUALS 
 10-03-2023,Adults,Acer Healthcare Operation Ltd,Nursing Homes - Private Contractors Payment,1950.00,0.00,COMMERCIAL SUPPLIER 
 10-03-2023,Adults,Maison Moti Ltd,Supported Other Accommodation - Private Contractors Payment,1957.50,0.00,COMMERCIAL SUPPLIER 
 28-03-2023,Adults,Prestige Care & Support Ltd,Home Care - Private Contractors Payment,1959.14,0.00,COMMERCIAL SUPPLIER 
 06-03-2023,Adults,Romford Private Hire Ltd,Client Transport,1960.00,0.00,COMMERCIAL SUPPLIER 
 10-03-2023,Adults,Affinia Healthcare Ltd_a,Supported Other Accommodation - Private Contractors Payment,1968.93,0.00,COMMERCIAL SUPPLIER 
 10-03-2023,Adults,S & S Support Service Ltd   ,Supported Other Accommodation - Private Contractors Payment,1972.00,0.00,COMMERCIAL SUPPLIER 
 06-03-2023,Adults,R G Care Ltd ,Daycare - Private Contractors Payment,2000.00,0.00,COMMERCIAL SUPPLIER 
 10-03-2023,Adults,Ashgate House Ltd_a,Residential Placements - Private Contractors Payment,2001.99,0.00,COMMERCIAL SUPPLIER 
 10-03-2023,Adults,Endsleigh Care Ltd,Residential Placements - Private Contractors Payment,2010.16,0.00,COMMERCIAL SUPPLIER 
 01-03-2023,Adults,Marlow,Residential Placements - Private Contractors Payment,2018.48,0.00,COMMERCIAL SUPPLIER 
 01-03-2023,Adults,Marlow,Residential Placements - Private Contractors Payment,2018.48,0.00,COMMERCIAL SUPPLIER 
 20-03-2023,Adults,Romford Private Hire Ltd,Client Transport,2040.00,0.00,COMMERCIAL SUPPLIER 
 27-03-2023,Adults,Outreach Support Services Ltd,Home Care - Private Contractors Payment,2046.72,0.00,COMMERCIAL SUPPLIER 
 27-03-2023,Adults,Outreach Support Services Ltd,Home Care - Private Contractors Payment,2046.72,0.00,COMMERCIAL SUPPLIER 
 27-03-2023,Adults,Outreach Support Services Ltd,Home Care - Private Contractors Payment,2046.72,0.00,COMMERCIAL SUPPLIER 
 27-03-2023,Adults,Outreach Support Services Ltd,Home Care - Private Contractors Payment,2046.72,0.00,COMMERCIAL SUPPLIER 
 20-03-2023,Adults,Trinity London Care Ltd,Daycare - Private Contractors Payment,2050.00,0.00,COMMERCIAL SUPPLIER 
 20-03-2023,Adults,Trinity London Care Ltd,Daycare - Private Contractors Payment,2050.00,0.00,COMMERCIAL SUPPLIER 
 20-03-2023,Adults,Trinity London Care Ltd,Daycare - Private Contractors Payment,2050.00,0.00,COMMERCIAL SUPPLIER 
 10-03-2023,Adults,Bettertogether Limited,Supported Other Accommodation - Private Contractors Payment,2056.00,0.00,NON COMMERCIAL SUPPLIER 
 10-03-2023,Adults,Bettertogether Limited,Supported Other Accommodation - Private Contractors Payment,2056.00,0.00,NON COMMERCIAL SUPPLIER 
 10-03-2023,Adults,Bettertogether Limited,Supported Other Accommodation - Private Contractors Payment,2056.00,0.00,NON COMMERCIAL SUPPLIER 
 10-03-2023,Adults,Bettertogether Limited,Supported Other Accommodation - Private Contractors Payment,2056.00,0.00,NON COMMERCIAL SUPPLIER 
 10-03-2023,Adults,Bettertogether Limited,Supported Other Accommodation - Private Contractors Payment,2056.00,0.00,NON COMMERCIAL SUPPLIER 
 10-03-2023,Adults,Bettertogether Limited,Supported Other Accommodation - Private Contractors Payment,2056.00,0.00,NON COMMERCIAL SUPPLIER 
 10-03-2023,Adults,Affinia Healthcare Ltd_a,Supported Other Accommodation - Private Contractors Payment,2058.71,0.00,COMMERCIAL SUPPLIER 
 10-03-2023,Adults,Ebony Health Care Services Limited,Supported Other Accommodation - Private Contractors Payment,2062.73,0.00,COMMERCIAL SUPPLIER 
 10-03-2023,Adults,Blueboard Care Services Ltd,Supported Other Accommodation - Private Contractors Payment,2070.60,0.00,COMMERCIAL SUPPLIER 
 10-03-2023,Adults,Masumin Ltd t/s Abbeleigh House,Respite Care - Private Contractors Payment,2085.00,0.00,COMMERCIAL SUPPLIER 
 10-03-2023,Adults,S&A Care Services Ltd.,Supported Other Accommodation - Private Contractors Payment,2088.00,0.00,COMMERCIAL SUPPLIER 
 16-03-2023,Adults,Care-Away Ltd T/A Care Support,Home Care - Private Contractors Payment,2096.64,0.00,COMMERCIAL SUPPLIER 
 10-03-2023,Adults,Parklands Nursing Home ,Nursing Homes - Private Contractors Payment,2100.00,0.00,COMMERCIAL SUPPLIER 
 10-03-2023,Adults,Adjuvo Care Essex Ltd ,Supported Other Accommodation - Private Contractors Payment,2106.35,0.00,COMMERCIAL SUPPLIER 
 10-03-2023,Adults,DMP Healthcare (Heatherbrook) Ltd,Nursing Homes - Private Contractors Payment,2106.64,0.00,NON COMMERCIAL SUPPLIER 
 10-03-2023,Adults,Black Swan International Ltd - Drummonds,Residential Placements - Private Contractors Payment,2116.80,0.00,COMMERCIAL SUPPLIER 
 10-03-2023,Adults,Black Swan International Ltd - Drummonds,Residential Placements - Private Contractors Payment,2117.00,0.00,COMMERCIAL SUPPLIER 
 10-03-2023,Adults,Affinia Healthcare Ltd_a,Supported Other Accommodation - Private Contractors Payment,2127.03,0.00,COMMERCIAL SUPPLIER 
 10-03-2023,Adults,Gemstone Properties Ltd,Residential Placements - Private Contractors Payment,2152.67,0.00,COMMERCIAL SUPPLIER 
 10-03-2023,Adults,Hillsview Care Services Ltd,Residential Placements - Private Contractors Payment,2153.25,0.00,COMMERCIAL SUPPLIER 
 06-03-2023,Adults,Home Support Services (Havering & Essex) Ltd,Home Care - Private Contractors Payment,2153.32,0.00,COMMERCIAL SUPPLIER 
 06-03-2023,Adults,London Borough of Barking & Dagenham_a,Daycare - Private Contractors Payment,2160.00,0.00,LOCAL AUTHORITY SERVICES 
 06-03-2023,Adults,London Borough of Barking & Dagenham_a,Daycare - Private Contractors Payment,2160.00,0.00,LOCAL AUTHORITY SERVICES 
 28-03-2023,Adults,Be You,Daycare - Private Contractors Payment,2160.00,0.00,NON COMMERCIAL SUPPLIER 
 10-03-2023,Adults,DMP Healthcare (Heatherbrook) Ltd,Residential Placements - Private Contractors Payment,2171.43,0.00,NON COMMERCIAL SUPPLIER 
 10-03-2023,Adults,Alpine Resources UK Ltd,Supported Other Accommodation - Private Contractors Payment,2175.00,0.00,COMMERCIAL SUPPLIER 
 10-03-2023,Adults,Cygnet (OE) Ltd ,Residential Placements - Private Contractors Payment,2175.00,0.00,COMMERCIAL SUPPLIER 
 10-03-2023,Adults,Highfield Care Homes Ltd t/a Romford Grange Care Home,Respite Care - Private Contractors Payment,2184.29,0.00,COMMERCIAL SUPPLIER 
 10-03-2023,Adults,Priory Supporting Care Ltd,Residential Placements - Private Contractors Payment,2185.71,0.00,COMMERCIAL SUPPLIER 
 10-03-2023,Adults,One Tree Estates Ltd t/a Ashbrook Nursing Home,Nursing Homes - Private Contractors Payment,2193.75,0.00,COMMERCIAL SUPPLIER 
 10-03-2023,Adults,Outreach Support Services Ltd,Supported Other Accommodation - Private Contractors Payment,2196.75,0.00,COMMERCIAL SUPPLIER 
 10-03-2023,Adults,Ranc Care Homes Ltd - Romford Care Centre,Nursing Homes - Private Contractors Payment,2200.00,0.00,COMMERCIAL SUPPLIER 
 02-03-2023,Adults,Gims Care Solution Ltd_a,Home Care - Private Contractors Payment,2204.16,0.00,NON COMMERCIAL SUPPLIER 
 29-03-2023,Adults,Inna Care Ltd,Home Care - Private Contractors Payment,2204.16,0.00,COMMERCIAL SUPPLIER 
 29-03-2023,Adults,Inna Care Ltd,Home Care - Private Contractors Payment,2204.16,0.00,COMMERCIAL SUPPLIER 
 01-03-2023,Adults,Agracare Ltd t/a Home Instead Senior Care,Home Care - Private Contractors Payment,2214.00,0.00,COMMERCIAL SUPPLIER 
 06-03-2023,Adults,Home Support Services (Havering & Essex) Ltd,Home Care - Private Contractors Payment,2221.87,0.00,COMMERCIAL SUPPLIER 
 10-03-2023,Adults,Bettertogether Limited,Supported Other Accommodation - Private Contractors Payment,2236.00,0.00,NON COMMERCIAL SUPPLIER 
 10-03-2023,Adults,Bettertogether Limited,Supported Other Accommodation - Private Contractors Payment,2236.00,0.00,NON COMMERCIAL SUPPLIER 
 12-03-2023,Adults,Jaktol Day Centers,Daycare - Private Contractors Payment,2239.68,0.00,COMMERCIAL SUPPLIER 
 12-03-2023,Adults,Jaktol Day Centers,Daycare - Private Contractors Payment,2239.68,0.00,COMMERCIAL SUPPLIER 
 27-03-2023,Adults,Agracare Ltd t/a Home Instead Senior Care,Home Care - Private Contractors Payment,2259.00,0.00,COMMERCIAL SUPPLIER 
 10-03-2023,Adults,Gims Care Solution Ltd_a,Supported Other Accommodation - Private Contractors Payment,2270.57,0.00,NON COMMERCIAL SUPPLIER 
 27-03-2023,Adults,London Homecare Ltd,Home Care - Private Contractors Payment,2282.88,0.00,COMMERCIAL SUPPLIER 
 10-03-2023,Adults,Cygnet Health Care,Residential Placements - Private Contractors Payment,2283.75,0.00,COMMERCIAL SUPPLIER 
 10-03-2023,Adults,Affinia Healthcare Ltd_a,Supported Other Accommodation - Private Contractors Payment,2304.46,0.00,COMMERCIAL SUPPLIER 
 06-03-2023,Adults,Romford Private Hire Ltd,Client Transport,2325.00,0.00,COMMERCIAL SUPPLIER 
 16-03-2023,Adults,Care-Away Ltd T/A Care Support,Home Care - Private Contractors Payment,2329.60,0.00,COMMERCIAL SUPPLIER 
 10-03-2023,Adults,Outlook Care_a,Supported Other Accommodation - Private Contractors Payment,2333.92,0.00,COMMERCIAL SUPPLIER 
 10-03-2023,Adults,Faris Lodge,Supported Other Accommodation - Private Contractors Payment,2348.71,0.00,COMMERCIAL SUPPLIER 
 10-03-2023,Adults,Ashgate House Ltd_a,Residential Placements - Private Contractors Payment,2362.42,0.00,COMMERCIAL SUPPLIER 
 29-03-2023,Adults,Lorablooms Care Services Ltd,Home Care - Private Contractors Payment,2365.44,0.00,NON COMMERCIAL SUPPLIER 
 10-03-2023,Adults,Pathways Care Group Ltd,Residential Placements - Private Contractors Payment,2367.19,0.00,COMMERCIAL SUPPLIER 
 10-03-2023,Adults,DMP Healthcare (Cherry Orchard) Ltd,Residential Placements - Private Contractors Payment,2382.27,0.00,COMMERCIAL SUPPLIER 
 10-03-2023,Adults,Lodge Lane Care Home Limited,Residential Placements - Private Contractors Payment,2382.86,0.00,COMMERCIAL SUPPLIER 
 10-03-2023,Adults,Livability - John Grooms Court,Residential Placements - Private Contractors Payment,2393.83,0.00,COMMERCIAL SUPPLIER 
 10-03-2023,Adults,Livability - John Grooms Court,Residential Placements - Private Contractors Payment,2393.83,0.00,COMMERCIAL SUPPLIER 
 12-03-2023,Adults,Jaktol Day Centers,Daycare - Private Contractors Payment,2399.68,0.00,COMMERCIAL SUPPLIER 
 10-03-2023,Adults,Lukka Care Homes Ltd - Ravenscourt,Respite Care - Private Contractors Payment,2421.43,0.00,COMMERCIAL SUPPLIER 
 10-03-2023,Adults,Kadmiel Projects Ltd,Supported Other Accommodation - Private Contractors Payment,2425.73,0.00,COMMERCIAL SUPPLIER 
 10-03-2023,Adults,2 Peel Way - Outlook Care,Supported Other Accommodation - Private Contractors Payment,2428.71,0.00,NON COMMERCIAL SUPPLIER 
 10-03-2023,Adults,Fresh Tree Care Services,Supported Other Accommodation - Private Contractors Payment,2436.00,0.00,COMMERCIAL SUPPLIER 
 10-03-2023,Adults,Fresh Tree Care Services,Supported Other Accommodation - Private Contractors Payment,2436.00,0.00,COMMERCIAL SUPPLIER 
 29-03-2023,Adults,Lorablooms Care Services Ltd,Home Care - Private Contractors Payment,2449.92,0.00,NON COMMERCIAL SUPPLIER 
 13-03-2023,Adults,Bluebird Care Havering,Home Care - Private Contractors Payment,2450.00,0.00,COMMERCIAL SUPPLIER 
 13-03-2023,Adults,Bluebird Care Havering,Home Care - Private Contractors Payment,2450.00,0.00,COMMERCIAL SUPPLIER 
 27-03-2023,Adults,Bluebird Care Havering,Home Care - Private Contractors Payment,2450.00,0.00,COMMERCIAL SUPPLIER 
 27-03-2023,Adults,Bluebird Care Havering,Home Care - Private Contractors Payment,2450.00,0.00,COMMERCIAL SUPPLIER 
 10-03-2023,Adults,Lodge Lane Care Home Limited,Residential Placements - Private Contractors Payment,2482.14,0.00,COMMERCIAL SUPPLIER 
 10-03-2023,Adults,Clearwater Care (Hackney) Ltd - Craigdale,Supported Other Accommodation - Private Contractors Payment,2499.22,0.00,COMMERCIAL SUPPLIER 
 10-03-2023,Adults,Ebony Health Care Services Limited,Supported Other Accommodation - Private Contractors Payment,2504.03,0.00,COMMERCIAL SUPPLIER 
 10-03-2023,Adults,Clearwater Care (Hackney) Ltd - Craigdale,Supported Other Accommodation - Private Contractors Payment,2512.15,0.00,COMMERCIAL SUPPLIER 
 09-03-2023,Adults,Matrix SCM Ltd,Consultancy Fees,2519.44,0.00,COMMERCIAL SUPPLIER 
 10-03-2023,Adults,Havering Care Homes Ltd t/a Abbscross Nursing Home,Nursing Homes - Private Contractors Payment,2528.00,0.00,COMMERCIAL SUPPLIER 
 10-03-2023,Adults,R G Care Ltd ,Residential Placements - Private Contractors Payment,2537.50,0.00,COMMERCIAL SUPPLIER 
 10-03-2023,Adults,One Tree Estates Ltd t/a Ashbrook Nursing Home,Nursing Homes - Private Contractors Payment,2550.00,0.00,COMMERCIAL SUPPLIER 
 10-03-2023,Adults,Langley House,Residential Placements - Private Contractors Payment,2550.00,0.00,COMMERCIAL SUPPLIER 
 10-03-2023,Adults,Adjuvo Care and Support Ltd,Supported Other Accommodation - Private Contractors Payment,2551.67,0.00,COMMERCIAL SUPPLIER 
 10-03-2023,Adults,Black Swan International Ltd - Drummonds,Residential Placements - Private Contractors Payment,2556.97,0.00,COMMERCIAL SUPPLIER 
 10-03-2023,Adults,Black Swan International Ltd - Drummonds,Residential Placements - Private Contractors Payment,2556.97,0.00,COMMERCIAL SUPPLIER 
 10-03-2023,Adults,Highfield Care Homes Ltd t/a Romford Grange Care Home,Nursing Homes - Private Contractors Payment,2561.16,0.00,COMMERCIAL SUPPLIER 
 10-03-2023,Adults,Royal Masonic Benevolent Institution,Residential Placements - Private Contractors Payment,2561.72,0.00,COMMERCIAL SUPPLIER 
 16-03-2023,Adults,Care-Away Ltd T/A Care Support,Home Care - Private Contractors Payment,2562.56,0.00,COMMERCIAL SUPPLIER 
 10-03-2023,Adults,Fountains Care Centre - Bondcare,Residential Placements - Private Contractors Payment,2568.57,0.00,COMMERCIAL SUPPLIER 
 10-03-2023,Adults,Fountains Care Centre - Bondcare,Nursing Homes - Private Contractors Payment,2568.57,0.00,COMMERCIAL SUPPLIER 
 10-03-2023,Adults,Fountains Care Centre - Bondcare,Residential Placements - Private Contractors Payment,2568.57,0.00,COMMERCIAL SUPPLIER 
 10-03-2023,Adults,Fountains Care Centre - Bondcare,Residential Placements - Private Contractors Payment,2568.57,0.00,COMMERCIAL SUPPLIER 
 10-03-2023,Adults,Highfield Care Homes Ltd t/a Romford Grange Care Home,Residential Placements - Private Contractors Payment,2568.57,0.00,COMMERCIAL SUPPLIER 
 10-03-2023,Adults,Beechcourt Care Centre - Bondcare,Residential Placements - Private Contractors Payment,2568.57,0.00,COMMERCIAL SUPPLIER 
 10-03-2023,Adults,Oakley Carehomes Ltd t/a Abbey Care Home,Residential Placements - Private Contractors Payment,2568.57,0.00,COMMERCIAL SUPPLIER 
 10-03-2023,Adults,Clover Cottage Ltd,Residential Placements - Private Contractors Payment,2568.57,0.00,COMMERCIAL SUPPLIER 
 10-03-2023,Adults,Clover Cottage Ltd,Residential Placements - Private Contractors Payment,2568.57,0.00,COMMERCIAL SUPPLIER 
 10-03-2023,Adults,Clover Cottage Ltd,Residential Placements - Private Contractors Payment,2568.57,0.00,COMMERCIAL SUPPLIER 
 10-03-2023,Adults,Clover Cottage Ltd,Residential Placements - Private Contractors Payment,2568.57,0.00,COMMERCIAL SUPPLIER 
 10-03-2023,Adults,Langley House,Residential Placements - Private Contractors Payment,2568.57,0.00,COMMERCIAL SUPPLIER 
 10-03-2023,Adults,Langley House,Residential Placements - Private Contractors Payment,2568.57,0.00,COMMERCIAL SUPPLIER 
